Transaction Reference,Supplier Name,Line Value,Department,Category,Transaction Date,Year/Period,SME,Costs split between Mid Suffolk and Babergh District Councils Y/N,% of transaction apportioned to Babergh District Council
0000365070,AARON SERVICES LTD,"29,189.01",Planned Maint - Heating,Property Servicing,29 Dec 2022,2223/10,SME,N,
0000422979,AARON SERVICES LTD,"1,757.81",Voids Maintenance,Repairs,29 Dec 2022,2223/10,SME,N,
0000422979,AARON SERVICES LTD,"25,976.24",Planned Maint - Heating,Property Servicing,29 Dec 2022,2223/10,SME,N,
0000422985,AARON SERVICES LTD,"12,171.88",Planned Maint - Heating,Property Servicing,12 Jan 2023,2223/10,SME,N,
0000422985,AARON SERVICES LTD,"1,779.39",Voids Maintenance,Repairs,12 Jan 2023,2223/10,SME,N,
0000423018,AARON SERVICES LTD,315.24,Voids Maintenance,Repairs,19 Jan 2023,2223/10,SME,N,
0000423018,AARON SERVICES LTD,"40,161.90",Planned Maint - Heating,Property Servicing,19 Jan 2023,2223/10,SME,N,
0000423024,AARON SERVICES LTD,"1,537.06",Voids Maintenance,Repairs,26 Jan 2023,2223/10,SME,N,
0000423024,AARON SERVICES LTD,"28,135.86",Planned Maint - Heating,Property Servicing,26 Jan 2023,2223/10,SME,N,
0000365274,AE WHITE SURFACING,"2,124.00",Pld Maint/ Enhncmts-C Parks,Annual Bldg Maint Contracts,09 Jan 2023,2223/10,SME,N,
0000365036,ANGLIA RUSKIN UNIVERSITY,"6,935.00",Organisational Devt,Post-Entry Training,17 Dec 2022,2223/10,LGE,Y,50%
0000364979,ANGLIAN WATER,"1,207.55",Sheltered Accommodation,Water Rates - Metered,18 Dec 2022,2223/10,LGE,N,
0000365243,ANGLIAN WATER,291.82,Temporary Accommodation,Water Rates - Metered,03 Jan 2023,2223/10,LGE,N,
0000365277,ANGLIAN WATER,"1,370.30",Sheltered Accommodation,Water Rates - Metered,21 Dec 2022,2223/10,LGE,N,
0000365317,ANGLIAN WATER,595.48,Other HRA Temp Accommodation,Water Rates - Metered,18 Dec 2022,2223/10,LGE,N,
0000365634,BEN BURGESS GARDEN EQUIPMENT,"4,500.00",Open Spaces,Plant & Vehicle - Other costs,17 Jan 2023,2223/10,SME,N,
0000364874,BINDER LTD,"8,376.00",Sewage Treatment Works,Contracted Services,20 Dec 2022,2223/10,SME,N,
0000365100,BINDER LTD,"8,388.75",Sewage Treatment Works,Contracted Services,29 Dec 2022,2223/10,SME,N,
0000365203,BINDER LTD,54.50,Sewage Treatment Works,Contracted Services,05 Jan 2023,2223/10,SME,N,
0000365203,BINDER LTD,233.75,Sewage Treatment Works,Contracted Services,05 Jan 2023,2223/10,SME,N,
0000365326,BINDER LTD,54.50,Sewage Treatment Works,Contracted Services,05 Jan 2023,2223/10,SME,N,
0000365326,BINDER LTD,140.25,Sewage Treatment Works,Contracted Services,05 Jan 2023,2223/10,SME,N,
0000365326,BINDER LTD,238.44,Sewage Treatment Works,Repairs,05 Jan 2023,2223/10,SME,N,
0000365095,BOWER FULLER,738.66,Sheltered Accommodation,Fire Prevention,30 Dec 2022,2223/10,SME,N,
0000365098,BOWER FULLER,"2,475.00",Sheltered Accommodation,Fire Prevention,30 Dec 2022,2223/10,SME,N,
0000365273,BOWER FULLER,"7,718.25",Sheltered Units-Gen.Imp,Improvements,10 Jan 2023,2223/10,SME,N,
0000365297,AQUASAMPLERS,375.00,Water Sampling,Sampling & Analysis,30 Nov 2022,2223/10,SME,N,
0000365037,CENTRAL TYRE LTD,485.20,Street & Major Road Cleansing,Plant & Vehicle - Other costs,29 Dec 2022,2223/10,SME,N,
0000365065,CHEQUERS HOTEL LTD,"1,395.00",Homelessness Private Sector,B&B Costs,05 Dec 2022,2223/10,SME,N,
0000365067,CHEQUERS HOTEL LTD,770.00,Homelessness Private Sector,B&B Costs,05 Dec 2022,2223/10,SME,N,
0000365068,CHEQUERS HOTEL LTD,"2,450.00",Homelessness Private Sector,B&B Costs,05 Dec 2022,2223/10,SME,N,
0000365069,CHEQUERS HOTEL LTD,"1,400.00",Homelessness Private Sector,B&B Costs,05 Dec 2022,2223/10,SME,N,
0000365365,CHEQUERS HOTEL LTD,"1,400.00",Homelessness Private Sector,B&B Costs,05 Dec 2022,2223/10,SME,N,
0000364215,CHIPSIDE LTD,"1,104.42",C Parks General,Contracted Services,31 Oct 2022,2223/10,SME,N,
0000364637,CHIPSIDE LTD,"1,164.50",C Parks General,Contracted Services,30 Nov 2022,2223/10,SME,N,
0000365209,CHIPSIDE LTD,"1,212.50",C Parks General,Contracted Services,31 Dec 2022,2223/10,SME,N,
0000364664,CLARKE FENCING LTD,"3,960.00",C Parks General,Repairs,12 Dec 2022,2223/10,SME,N,
0000365455,CLARKE FENCING LTD,318.83,Open Spaces,"Equipment, Tools & Materials",16 Jan 2023,2223/10,SME,N,
0000365579,CLARKE FENCING LTD,256.00,Open Spaces,"Equipment, Tools & Materials",19 Jan 2023,2223/10,SME,N,
0000365492,DMA HEALTH AND SAFETY LTD,300.00,Planned Maint - Ext Painting,Prof & Consultancy Fees,17 Jan 2023,2223/10,SME,N,
0000365316,DOLPHIN STAIRLIFTS (EAST ANGLIA) LTD,"2,997.00",Mand Disabled Facilities Grant,Grants,11 Jan 2023,2223/10,SME,N,
0000365721,EAST ANGLIA CLEANING SERVICES LTD,"1,489.71",Jnt Waste Contract,General Cleaning,26 Jan 2023,2223/10,SME,Y,50%
0000365421,ENGLISH SECURITY,422.89,Sheltered Accommodation,Fire Prevention,12 Dec 2022,2223/10,SME,N,
0000365422,ENGLISH SECURITY,284.57,Sheltered Accommodation,Fire Prevention,12 Dec 2022,2223/10,SME,N,
0000365105,FELLBRIDGE BUILDING SERVICES,"13,273.02",Building Services,Repairs,03 Jan 2023,2223/10,SME,N,
0000365107,FELLBRIDGE BUILDING SERVICES,"11,129.12",Building Services,Repairs,03 Jan 2023,2223/10,SME,N,
0000365165,FELLBRIDGE BUILDING SERVICES,792.00,Roofing,Repairs,05 Jan 2023,2223/10,SME,N,
0000365269,FELLBRIDGE BUILDING SERVICES,"1,891.76",Building Services,Repairs,09 Jan 2023,2223/10,SME,N,
0000365270,FELLBRIDGE BUILDING SERVICES,"9,365.79",Building Services,Repairs,09 Jan 2023,2223/10,SME,N,
0000365382,FELLBRIDGE BUILDING SERVICES,"24,971.53",Major Imps,Improvements,12 Jan 2023,2223/10,SME,N,
0000365387,FELLBRIDGE BUILDING SERVICES,"12,468.42",Building Services,Repairs,12 Jan 2023,2223/10,SME,N,
0000365548,FELLBRIDGE BUILDING SERVICES,"7,739.13",Voids Maintenance,Repairs,19 Jan 2023,2223/10,SME,N,
0000365071,FORE-MOST GARAGE DOORS LTD,278.00,"Garages, Forecourts & Stores",Repairs,31 Dec 2022,2223/10,SME,N,
0000365312,GB ADAPTIONS LTD,"5,043.00",Mand Disabled Facilities Grant,Grants,10 Jan 2023,2223/10,SME,N,
0000365195,G4S CASH SOLUTIONS LTD,607.66,C Parks General,Audit Fees,31 Dec 2022,2223/10,LGE,N,
0000365183,HOUSEMARK LTD,"6,335.00",Capita System Support,Subscriptions,05 Jan 2023,2223/10,SME,N,
0000365730,JMP SERVICES LTD,920.00,Street & Major Road Cleansing,Contracted Services,26 Jan 2023,2223/10,SME,N,
0000364853,JOHN PEEL CENTRE FOR CREATIVE ARTS,"1,000.00",Grants & Contrbns,Contributions & Donations,19 Dec 2022,2223/10,SME,N,
0000365309,KEYWAYS THE LOCKSMITHS LTD,319.80,Temporary Accommodation,Misc Premises Costs,10 Jan 2023,2223/10,SME,N,
0000365523,KEYWAYS THE LOCKSMITHS LTD,"1,400.00",MSM Housing Solutions,Misc Supplies & Services Costs,18 Jan 2023,2223/10,SME,N,
0000365419,LABC,760.00,Bldg Regs Chargeable Serv,Conference Expenses,11 Jan 2023,2223/10,SME,Y,45%
0000365494,LABC,600.00,Bldg Regs Chargeable Serv,Training,03 Jan 2023,2223/10,SME,Y,50%
0000365551,LJ GAMMER (STOWMARKET) LTD,468.59,Building Services,Plant & Vehicle - Other costs,19 Jan 2023,2223/10,SME,Y,50%
0000365366,LOCAL GOVERNMENT INFORMATION UNIT,"2,428.00",Management Team,Subscriptions,03 Jan 2023,2223/10,LGE,N,
0000365415,M & H CIVIL ENGINEERING LTD,556.70,Building Services,Repairs,11 Jan 2023,2223/10,SME,N,
0000365086,MATERIAL CHANGE COMPOSTING LTD,366.63,Open Spaces,Waste Disposal,31 Dec 2022,2223/10,LGE,N,
0000365207,MATERIAL CHANGE COMPOSTING LTD,337.54,Open Spaces,Waste Disposal,31 Dec 2022,2223/10,LGE,N,
0000364779,MB TREES (EAST ANGLIA) LTD,"2,150.00",Neighbourhood Services,Grounds & Site Maintenance,15 Dec 2022,2223/10,SME,N,
0000365226,MB TREES (EAST ANGLIA) LTD,"3,945.75",Amenity Areas,Tree felling/maintenance,06 Jan 2023,2223/10,SME,N,
0000365522,MB TREES (EAST ANGLIA) LTD,840.00,Public Tree Programme,Tree felling/maintenance,18 Jan 2023,2223/10,SME,N,
0000364755,MID SUFFOLK FENCING LTD,675.00,Building Services,Repairs,14 Dec 2022,2223/10,SME,N,
0000364852,MIXBROW LTD,"4,970.00",Council House Adaptions,Improvements,16 Dec 2022,2223/10,SME,N,
0000364855,MIXBROW LTD,"3,137.00",Council House Adaptions,Improvements,16 Dec 2022,2223/10,SME,N,
0000364968,MIXBROW LTD,"7,975.13",Council House Adaptions,Improvements,22 Dec 2022,2223/10,SME,N,
0000364971,MIXBROW LTD,"8,228.87",Council House Adaptions,Improvements,22 Dec 2022,2223/10,SME,N,
0000364981,MIXBROW LTD,"7,345.45",Council House Adaptions,Improvements,22 Dec 2022,2223/10,SME,N,
0000364984,MIXBROW LTD,"7,289.63",Council House Adaptions,Improvements,22 Dec 2022,2223/10,SME,N,
0000364986,MIXBROW LTD,"7,449.17",Council House Adaptions,Improvements,22 Dec 2022,2223/10,SME,N,
0000365500,MIXBROW LTD,"4,358.98",Council House Adaptions,Improvements,17 Jan 2023,2223/10,SME,N,
0000365501,MIXBROW LTD,"4,388.00",Council House Adaptions,Improvements,17 Jan 2023,2223/10,SME,N,
0000364920,NEEDHAM MARKET TOWN COUNCIL,"8,405.66",S106 Open Spaces Expenditure,Grants,21 Dec 2022,2223/10,SME,N,
0000423004,NEEDHAM MARKET TOWN COUNCIL,"2,717.00",Street & Major Road Cleansing,Contributions to other Bodies,13 Jan 2023,2223/10,SME,N,
0000364610,PLAYDALE PLAYGROUNDS LTD,320.66,Open Spaces,"Equipment, Tools & Materials",08 Dec 2022,2223/10,SME,N,
0000364871,REID PLUMBING & HEATING CONTRACTORS LTD,"9,008.12",Central Heating,Major Contracts,19 Dec 2022,2223/10,SME,N,
0000364951,REID PLUMBING & HEATING CONTRACTORS LTD,"18,587.56",Central Heating,Major Contracts,22 Dec 2022,2223/10,SME,N,
0000364962,REID PLUMBING & HEATING CONTRACTORS LTD,"11,030.61",Central Heating,Major Contracts,22 Dec 2022,2223/10,SME,N,
0000365075,REID PLUMBING & HEATING CONTRACTORS LTD,"10,661.61",Central Heating,Major Contracts,03 Jan 2023,2223/10,SME,N,
0000365303,REID PLUMBING & HEATING CONTRACTORS LTD,"10,970.04",Central Heating,Major Contracts,09 Jan 2023,2223/10,SME,N,
0000365337,REID PLUMBING & HEATING CONTRACTORS LTD,"16,205.49",Central Heating,Major Contracts,11 Jan 2023,2223/10,SME,N,
0000365474,REID PLUMBING & HEATING CONTRACTORS LTD,"21,075.16",Central Heating,Major Contracts,16 Jan 2023,2223/10,SME,N,
0000365495,REID PLUMBING & HEATING CONTRACTORS LTD,"10,504.31",Central Heating,Major Contracts,17 Jan 2023,2223/10,SME,N,
0000365104,SACKERS LTD,"1,610.26",Building Services,Waste Disposal,31 Dec 2022,2223/10,SME,Y,50%
0000365460,SEAGER HOME SOLUTIONS,"63,119.19",Kitchens/Bathrooms,Major Contracts,13 Jan 2023,2223/10,SME,N,
0000365562,SUFFOLK LIBRARIES IPS LTD IPSWICH,"6,750.00",Customer Servs,Contracted Services,19 Jan 2023,2223/10,LGE,Y,50%
0000364522,THERMATECH,"3,850.00",Tenancy Services,Fire Prevention,05 Dec 2022,2223/10,SME,N,
0000365417,THERMATECH,475.00,Tenancy Services,Fire Prevention,12 Jan 2023,2223/10,SME,N,
0000365108,WINDIMAN LTD,780.00,Building Services,Repairs,31 Dec 2022,2223/10,SME,N,
0000365109,WINDIMAN LTD,780.00,Major Imps,Improvements,31 Dec 2022,2223/10,SME,N,
0000365110,WINDIMAN LTD,300.00,Building Services,Repairs,31 Dec 2022,2223/10,SME,N,
0000365489,WINDIMAN LTD,"1,388.00",Window & Door Rplcmts,Improvements,17 Jan 2023,2223/10,SME,N,
0000365490,WINDIMAN LTD,800.00,Voids Maintenance,Repairs,17 Jan 2023,2223/10,SME,N,
0000364935,WORKWEAR (EAST ANGLIA) LTD,339.62,Street & Major Road Cleansing,Protective clothing,01 Dec 2022,2223/10,SME,N,
0000364936,WORKWEAR (EAST ANGLIA) LTD,197.49,Open Spaces,Protective clothing,01 Dec 2022,2223/10,SME,N,
0000364936,WORKWEAR (EAST ANGLIA) LTD,197.47,Street & Major Road Cleansing,Protective clothing,01 Dec 2022,2223/10,SME,N,
0000364937,WORKWEAR (EAST ANGLIA) LTD,296.19,Street & Major Road Cleansing,Protective clothing,01 Dec 2022,2223/10,SME,N,
0000364941,WORKWEAR (EAST ANGLIA) LTD,311.16,Open Spaces,Protective clothing,01 Dec 2022,2223/10,SME,N,
0000364942,WORKWEAR (EAST ANGLIA) LTD,419.14,Open Spaces,Protective clothing,01 Dec 2022,2223/10,SME,N,
0000364943,WORKWEAR (EAST ANGLIA) LTD,429.31,Open Spaces,Protective clothing,01 Dec 2022,2223/10,SME,N,
0000364944,WORKWEAR (EAST ANGLIA) LTD,386.80,Open Spaces,Protective clothing,01 Dec 2022,2223/10,SME,N,
0000364945,WORKWEAR (EAST ANGLIA) LTD,348.17,Street & Major Road Cleansing,Protective clothing,01 Dec 2022,2223/10,SME,N,
0000364946,WORKWEAR (EAST ANGLIA) LTD,309.50,Open Spaces,Protective clothing,01 Dec 2022,2223/10,SME,N,
0000364947,WORKWEAR (EAST ANGLIA) LTD,413.37,Open Spaces,Protective clothing,01 Dec 2022,2223/10,SME,N,
0000364949,WORKWEAR (EAST ANGLIA) LTD,397.51,Street & Major Road Cleansing,Protective clothing,13 Dec 2022,2223/10,SME,N,
0000365080,WORKWEAR (EAST ANGLIA) LTD,270.61,Open Spaces,Protective clothing,01 Dec 2022,2223/10,SME,N,
0000365081,WORKWEAR (EAST ANGLIA) LTD,498.95,Building Services,Protective clothing,19 Dec 2022,2223/10,SME,Y,50%
0000365570,WORKWEAR (EAST ANGLIA) LTD,262.10,Open Spaces,Protective clothing,17 Jan 2023,2223/10,SME,N,
0000365570,WORKWEAR (EAST ANGLIA) LTD,262.10,Street & Major Road Cleansing,Protective clothing,17 Jan 2023,2223/10,SME,N,
0000365573,WORKWEAR (EAST ANGLIA) LTD,262.10,Open Spaces,Protective clothing,19 Jan 2023,2223/10,SME,N,
0000365573,WORKWEAR (EAST ANGLIA) LTD,262.10,Street & Major Road Cleansing,Protective clothing,19 Jan 2023,2223/10,SME,N,
0000364888,HAYMARKET MEDIA GROUP LTD,"1,072.50",Planning Performance Agreement,"Equipment, Tools & Materials",20 Dec 2022,2223/10,SME,N,
0000364888,HAYMARKET MEDIA GROUP LTD,877.50,Devt Management - Apps,"Equipment, Tools & Materials",20 Dec 2022,2223/10,SME,Y,100%
0000365437,SPORTS & LEISURE MANAGEMENT LTD,"20,833.33",Leisure Contract,Contributions to other Bodies,16 Jan 2023,2223/10,LGE,N,
0000365056,ESSEX COUNTY COUNCIL,"2,244.00",Pre App Charging,Landscape Consultancy,30 Dec 2022,2223/10,LGE,N,
0000365057,ESSEX COUNTY COUNCIL,"8,696.25",Devt Management - Apps,Landscape Consultancy,30 Dec 2022,2223/10,LGE,N,
0000365242,IDOX SOFTWARE LTD,"10,450.00",Addl Projects,Prof & Consultancy Fees,05 Jan 2023,2223/10,SME,Y,50%
0000365035,IPSWICH BOROUGH COUNCIL,"12,356.34",Shared Revenues Partnership,Contributions to other Bodies,14 Dec 2022,2223/10,LGE,N,
0000365076,IPSWICH BOROUGH COUNCIL,"1,000.00",Internal Audit,Prof & Consultancy Fees,30 Dec 2022,2223/10,LGE,N,
0000365306,SERCO LTD,"4,587.00",Domestic Waste,Refuse Contract,09 Jan 2023,2223/10,LGE,Y,50%
0000365307,SERCO LTD,"320,710.50",Domestic Waste,Refuse Contract,09 Jan 2023,2223/10,LGE,Y,48%
0000365307,SERCO LTD,"21,380.70",Trade Waste,Refuse Contract,09 Jan 2023,2223/10,LGE,Y,60%
0000365307,SERCO LTD,"85,522.80",Garden Waste,Refuse Contract,09 Jan 2023,2223/10,LGE,Y,47.5%
0000365308,SERCO LTD,"10,000.00",Jnt Waste Contract,Plant & Vehicle Fuel,09 Jan 2023,2223/10,LGE,Y,50%
0000422973,EDF ENERGY,185.45,"11 Market Place, Stowmarket",Electricity,01 Dec 2022,2223/10,LGE,N,
0000422973,EDF ENERGY,714.95,C Parks General,Electricity,01 Dec 2022,2223/10,LGE,N,
0000422973,EDF ENERGY,"1,382.15",Creeting Rd Depot,Electricity,01 Dec 2022,2223/10,LGE,Y,50%
0000422973,EDF ENERGY,650.79,Headquarters General,Electricity,01 Dec 2022,2223/10,LGE,N,
0000422973,EDF ENERGY,"32,385.37",Leisure Contract,Electricity,01 Dec 2022,2223/10,LGE,N,
0000422973,EDF ENERGY,167.85,Needham Market Middle School,Electricity,01 Dec 2022,2223/10,LGE,N,
0000422973,EDF ENERGY,192.22,Open Spaces,Electricity,01 Dec 2022,2223/10,LGE,N,
0000422973,EDF ENERGY,"1,062.32",Other HRA Temp Accommodation,Electricity,01 Dec 2022,2223/10,LGE,N,
0000422973,EDF ENERGY,179.32,Pure Gym & Adjacent Building,Electricity,01 Dec 2022,2223/10,LGE,N,
0000422973,EDF ENERGY,39.23,Recycling Centre,Electricity,01 Dec 2022,2223/10,LGE,N,
0000422973,EDF ENERGY,755.30,Sewage Treatment Works,Electricity,01 Dec 2022,2223/10,LGE,N,
0000422973,EDF ENERGY,"23,047.01",Sheltered Accommodation,Electricity,01 Dec 2022,2223/10,LGE,N,
0000422973,EDF ENERGY,340.22,Tacon Close Eye TDP,Electricity,01 Dec 2022,2223/10,LGE,Y,50%
0000422973,EDF ENERGY,861.33,Temporary Accommodation,Electricity,01 Dec 2022,2223/10,LGE,N,
0000422973,EDF ENERGY,"3,144.53",Tenancy Services,Electricity,01 Dec 2022,2223/10,LGE,N,
0000422973,EDF ENERGY,"3,777.01",Wingfield Barns,Electricity,01 Dec 2022,2223/10,LGE,N,
0000423026,EDF ENERGY,-429.63,"11 Market Place, Stowmarket",Electricity,03 Jan 2023,2223/10,LGE,N,
0000423026,EDF ENERGY,732.24,C Parks General,Electricity,03 Jan 2023,2223/10,LGE,N,
0000423026,EDF ENERGY,206.56,Climate Change and Sustainabil,Electricity,03 Jan 2023,2223/10,LGE,N,
0000423026,EDF ENERGY,"1,404.78",Creeting Rd Depot,Electricity,03 Jan 2023,2223/10,LGE,Y,50%
0000423026,EDF ENERGY,650.89,Headquarters General,Electricity,03 Jan 2023,2223/10,LGE,N,
0000423026,EDF ENERGY,"33,148.51",Leisure Contract,Electricity,03 Jan 2023,2223/10,LGE,N,
0000423026,EDF ENERGY,172.83,Needham Market Middle School,Electricity,03 Jan 2023,2223/10,LGE,N,
0000423026,EDF ENERGY,248.02,Open Spaces,Electricity,03 Jan 2023,2223/10,LGE,N,
0000423026,EDF ENERGY,"1,987.66",Other HRA Temp Accommodation,Electricity,03 Jan 2023,2223/10,LGE,N,
0000423026,EDF ENERGY,"1,162.40",Public Conveniences,Electricity,03 Jan 2023,2223/10,LGE,N,
0000423026,EDF ENERGY,855.80,Pure Gym & Adjacent Building,Electricity,03 Jan 2023,2223/10,LGE,N,
0000423026,EDF ENERGY,37.96,Recycling Centre,Electricity,03 Jan 2023,2223/10,LGE,N,
0000423026,EDF ENERGY,"1,966.44",Sewage Treatment Works,Electricity,03 Jan 2023,2223/10,LGE,N,
0000423026,EDF ENERGY,"30,944.55",Sheltered Accommodation,Electricity,03 Jan 2023,2223/10,LGE,N,
0000423026,EDF ENERGY,408.63,Tacon Close Eye TDP,Electricity,03 Jan 2023,2223/10,LGE,Y,50%
0000423026,EDF ENERGY,993.17,Temporary Accommodation,Electricity,03 Jan 2023,2223/10,LGE,N,
0000423026,EDF ENERGY,"4,463.66",Tenancy Services,Electricity,03 Jan 2023,2223/10,LGE,N,
0000423026,EDF ENERGY,"4,593.18",Wingfield Barns,Electricity,03 Jan 2023,2223/10,LGE,N,
0000423017,GPC BARCLAYS,"5,843.01",Current Assets,Barclaycard Control,14 Jan 2023,2223/10,LGE,Y,9%
0000422975,ALLSTAR BUSINESS SOLUTIONS LTD,124.49,Housing Options,Plant & Vehicle Fuel,31 Dec 2022,2223/10,SME,Y,50%
0000422975,ALLSTAR BUSINESS SOLUTIONS LTD,"10,815.58",Building Services,Plant & Vehicle Fuel,31 Dec 2022,2223/10,SME,Y,50%
0000364955,STANNAH STAIRLIFTS LTD,"6,192.00",Council House Adaptions,Improvements,22 Dec 2022,2223/10,LGE,N,
0000422974,COMPUTERSHARE ,890.00,Current Assets,ChildCare Vouchers-Control,28 Dec 2022,2223/10,LGE,N,
0000365003,BARHAM PARISH COUNCIL,"1,670.00",Grants & Contrbns,Contributions & Donations,23 Dec 2022,2223/10,SME,N,
0000422988,BARHAM PARISH COUNCIL,617.50,Street & Major Road Cleansing,Contributions to other Bodies,13 Jan 2023,2223/10,SME,N,
0000422989,BARKING PARISH COUNCIL,370.50,Street & Major Road Cleansing,Contributions to other Bodies,13 Jan 2023,2223/10,SME,N,
0000365641,BOTESDALE PARISH COUNCIL,"2,640.60",CIL Funded REFCUS,Grants,24 Jan 2023,2223/10,SME,N,
0000365716,BOTESDALE PARISH COUNCIL,"1,817.15",Community Fund Projects-Grants,Grants,26 Jan 2023,2223/10,SME,N,
0000365746,BOTESDALE PARISH COUNCIL,"3,667.63",CIL Funded REFCUS,Grants,27 Jan 2023,2223/10,SME,N,
0000422990,BOTESDALE PARISH COUNCIL,370.50,Street & Major Road Cleansing,Contributions to other Bodies,13 Jan 2023,2223/10,SME,N,
0000422991,BRAMFORD PARISH COUNCIL,617.50,Street & Major Road Cleansing,Contributions to other Bodies,13 Jan 2023,2223/10,SME,N,
0000365625,CLAYDON & WHITTON PARISH COUNCIL,"1,235.00",Street & Major Road Cleansing,Contributions to other Bodies,24 Jan 2023,2223/10,SME,N,
0000422992,CLAYDON & WHITTON PARISH COUNCIL,"1,235.00",Street & Major Road Cleansing,Contributions to other Bodies,13 Jan 2023,2223/10,SME,N,
0000364985,COTTON PARISH COUNCIL,677.20,Grants & Contrbns,Contributions & Donations,22 Dec 2022,2223/10,SME,N,
0000422993,DEBENHAM PARISH COUNCIL,"2,192.13",Street & Major Road Cleansing,Contributions to other Bodies,13 Jan 2023,2223/10,SME,N,
0000365480,DEBENHAM VILLAGE HALL & PLAYING FIELD TR,"19,744.30",Community Wellbeing,Contributions & Donations,16 Jan 2023,2223/10,SME,N,
0000365623,ELMSWELL PARISH COUNCIL,500.00,Grants & Contrbns,Contributions & Donations,23 Jan 2023,2223/10,SME,N,
0000422994,EYE TOWN COUNCIL,"2,470.00",Street & Major Road Cleansing,Contributions to other Bodies,13 Jan 2023,2223/10,SME,N,
0000422995,FRESSINGFIELD PARISH COUNCIL,555.75,Street & Major Road Cleansing,Contributions to other Bodies,13 Jan 2023,2223/10,SME,N,
0000422996,GREAT BLAKENHAM PARISH COUNCIL,"1,235.00",Street & Major Road Cleansing,Contributions to other Bodies,13 Jan 2023,2223/10,SME,N,
0000422998,HARLESTON PARISH MEETING,617.50,Street & Major Road Cleansing,Contributions to other Bodies,13 Jan 2023,2223/10,SME,N,
0000422999,HAUGHLEY PARISH COUNCIL,617.50,Street & Major Road Cleansing,Contributions to other Bodies,13 Jan 2023,2223/10,SME,N,
0000365605,HENLEY PARISH COUNCIL,"2,786.00",Grants & Contrbns,Contributions & Donations,23 Jan 2023,2223/10,SME,N,
0000423001,HOXNE PARISH COUNCIL,617.50,Street & Major Road Cleansing,Contributions to other Bodies,13 Jan 2023,2223/10,SME,N,
0000365258,KENTON PARISH MEETING,"2,400.00",Grants & Contrbns,Contributions & Donations,09 Jan 2023,2223/10,SME,N,
0000423003,MENDLESHAM PARISH COUNCIL,432.25,Street & Major Road Cleansing,Contributions to other Bodies,13 Jan 2023,2223/10,SME,N,
0000365004,OFFTON & WILLISHAM VILLAGE HALL,500.00,Grants & Contrbns,Contributions & Donations,23 Dec 2022,2223/10,SME,N,
0000365723,REDGRAVE PARISH COUNCIL,"2,144.23",Community Fund Projects-Grants,Grants,26 Jan 2023,2223/10,SME,N,
0000365723,REDGRAVE PARISH COUNCIL,"7,141.71",Communities,Grants,26 Jan 2023,2223/10,SME,N,
0000423007,RICKINGHALL INFERIOR AND RICKINGHALL SUP,494.00,Street & Major Road Cleansing,Contributions to other Bodies,13 Jan 2023,2223/10,SME,N,
0000365476,RINGSHALL PARISH COUNCIL,"16,939.73",Community Fund Projects-Grants,Grants,16 Jan 2023,2223/10,SME,N,
0000365426,RINGSHALL VILLAGE HALL,"1,305.00",Grants & Contrbns,Contributions & Donations,13 Jan 2023,2223/10,SME,N,
0000423009,STOWUPLAND PARISH COUNCIL,"1,235.00",Street & Major Road Cleansing,Contributions to other Bodies,13 Jan 2023,2223/10,SME,N,
0000423010,STRADBROKE PARISH COUNCIL,"1,049.75",Street & Major Road Cleansing,Contributions to other Bodies,13 Jan 2023,2223/10,SME,N,
0000365477,SUDBURY TOWN COUNCIL,"19,594.04",Comm Devt Grants,Grants,16 Jan 2023,2223/10,SME,N,
0000364982,SYLEHAM PARISH COUNCIL,750.00,Grants & Contrbns,Contributions & Donations,22 Dec 2022,2223/10,SME,N,
0000423011,THURSTON PARISH COUNCIL,940.50,Street & Major Road Cleansing,Contributions to other Bodies,13 Jan 2023,2223/10,SME,N,
0000365211,WALSHAM LE WILLOWS PARISH COUNCIL,"9,315.75",CIL Funded REFCUS,Grants,06 Jan 2023,2223/10,SME,N,
0000423013,WETHERDEN PARISH COUNCIL,370.50,Street & Major Road Cleansing,Contributions to other Bodies,13 Jan 2023,2223/10,SME,N,
0000364980,WINGFIELD PARISH COUNCIL,"1,400.00",Grants & Contrbns,Contributions & Donations,22 Dec 2022,2223/10,SME,N,
0000423014,WOOLPIT PARISH COUNCIL,741.00,Street & Major Road Cleansing,Contributions to other Bodies,13 Jan 2023,2223/10,SME,N,
0000364627,SUFFOLK COUNTY COUNCIL,679.55,Organisational Devt,Recruitment,08 Dec 2022,2223/10,LGE,Y,50%
0000364805,SUFFOLK COUNTY COUNCIL,"1,515.00",Land Chgs,Contracted Services,15 Dec 2022,2223/10,LGE,N,
0000365077,SUFFOLK COUNTY COUNCIL,"41,000.00",Endeavour House - HQ,Operating Lease Payments,01 Jan 2023,2223/10,LGE,Y,50%
0000365077,SUFFOLK COUNTY COUNCIL,"53,750.00",Endeavour House - HQ,Contracted Services,01 Jan 2023,2223/10,LGE,Y,50%
0000365078,SUFFOLK COUNTY COUNCIL,"4,557.00",Stowmarket CAP,Operating Lease Payments,01 Jan 2023,2223/10,LGE,Y,50%
0000365078,SUFFOLK COUNTY COUNCIL,"3,307.00",Stowmarket CAP,Contracted Services,01 Jan 2023,2223/10,LGE,Y,50%
0000365131,SUFFOLK COUNTY COUNCIL,"2,446.00",Organisational Devt,Recruitment,03 Jan 2023,2223/10,LGE,Y,50%
0000365386,SUFFOLK COUNTY COUNCIL,925.00,Land Chgs,Contracted Services,11 Jan 2023,2223/10,LGE,N,
0000365506,SUFFOLK COUNTY COUNCIL,"3,001.92",Garden Waste,Garden Waste Disposal,17 Jan 2023,2223/10,LGE,N,
0000365571,SUFFOLK COUNTY COUNCIL,"2,424.00",Taxi & Private Hire Licensing,Prof & Consultancy Fees,19 Jan 2023,2223/10,LGE,N,
0000365572,SUFFOLK COUNTY COUNCIL,"19,907.18",Garden Waste,Garden Waste Disposal,19 Jan 2023,2223/10,LGE,N,
0000365743,SUFFOLK COUNTY COUNCIL,846.75,Organisational Devt,Recruitment,26 Jan 2023,2223/10,LGE,Y,50%
0000365009,TELEFONICA UK LIMITED - O2,"1,548.18",ICT,Telephone Costs,27 Dec 2022,2223/10,LGE,Y,50%
0000365738,TELEFONICA UK LIMITED - O2,"1,503.97",ICT,Telephone Costs,27 Jan 2023,2223/10,LGE,Y,50%
0000365670,TRANSLATION & INTERPRETING PROVIDER LTD,575.90,Homelessness Private Sector,Telephone Costs,25 Jan 2023,2223/10,SME,N,
0000365444,A. R. KENT & SONS (T/A KENT SKIPS),575.00,Building Services,Repairs,31 Dec 2022,2223/10,SME,N,
0000364995,LEX AUTOLEASE,265.48,Building Services,Lease Cars - Payment,12 Dec 2022,2223/10,SME,N,
0000364996,LEX AUTOLEASE,325.05,Building Services,Lease Cars - Payment,12 Dec 2022,2223/10,SME,Y,50%
0000364997,LEX AUTOLEASE,337.78,Building Services,Lease Cars - Payment,12 Dec 2022,2223/10,SME,Y,50%
0000364998,LEX AUTOLEASE,263.72,Building Services,Lease Cars - Payment,12 Dec 2022,2223/10,SME,Y,50%
0000365000,LEX AUTOLEASE,424.45,Building Services,Lease Cars - Payment,16 Dec 2022,2223/10,SME,Y,50%
0000365001,LEX AUTOLEASE,380.23,Building Services,Lease Cars - Payment,16 Dec 2022,2223/10,SME,Y,50%
0000365002,LEX AUTOLEASE,620.97,Building Services,Lease Cars - Payment,16 Dec 2022,2223/10,SME,Y,50%
0000365089,LEX AUTOLEASE,348.97,Building Services,Lease Cars - Payment,28 Dec 2022,2223/10,SME,Y,50%
0000365647,LEX AUTOLEASE,311.29,Building Services,Lease Cars - Payment,08 Dec 2022,2223/10,SME,Y,50%
0000365648,LEX AUTOLEASE,315.39,Building Services,Lease Cars - Payment,11 Dec 2022,2223/10,SME,Y,50%
0000365649,LEX AUTOLEASE,303.08,Building Services,Lease Cars - Payment,11 Dec 2022,2223/10,SME,Y,50%
0000365650,LEX AUTOLEASE,276.83,Building Services,Lease Cars - Payment,29 Dec 2022,2223/10,SME,Y,50%
0000365651,LEX AUTOLEASE,310.10,Building Services,Lease Cars - Payment,29 Dec 2022,2223/10,SME,Y,50%
0000365652,LEX AUTOLEASE,320.52,Building Services,Lease Cars - Payment,08 Jan 2023,2223/10,SME,Y,50%
0000365653,LEX AUTOLEASE,311.29,Building Services,Lease Cars - Payment,08 Jan 2023,2223/10,SME,Y,50%
0000365654,LEX AUTOLEASE,327.22,Building Services,Lease Cars - Payment,08 Jan 2023,2223/10,SME,Y,50%
0000365655,LEX AUTOLEASE,315.39,Building Services,Lease Cars - Payment,11 Jan 2023,2223/10,SME,Y,50%
0000365656,LEX AUTOLEASE,303.08,Building Services,Lease Cars - Payment,11 Jan 2023,2223/10,SME,Y,50%
0000365657,LEX AUTOLEASE,265.48,Building Services,Lease Cars - Payment,12 Jan 2023,2223/10,SME,Y,50%
0000365658,LEX AUTOLEASE,325.05,Building Services,Lease Cars - Payment,12 Jan 2023,2223/10,SME,Y,50%
0000365659,LEX AUTOLEASE,337.78,Building Services,Lease Cars - Payment,12 Jan 2023,2223/10,SME,Y,50%
0000365660,LEX AUTOLEASE,263.72,Building Services,Lease Cars - Payment,12 Jan 2023,2223/10,SME,Y,50%
0000365662,LEX AUTOLEASE,620.97,Building Services,Lease Cars - Payment,16 Jan 2023,2223/10,SME,Y,50%
0000365663,LEX AUTOLEASE,380.23,Building Services,Lease Cars - Payment,16 Jan 2023,2223/10,SME,Y,50%
0000365664,LEX AUTOLEASE,424.45,Building Services,Lease Cars - Payment,16 Jan 2023,2223/10,SME,Y,50%
0000365013,LAMBERT SMITH HAMPTON GROUP LTD,362.80,Devt Management - Appeals,Prof & Consultancy Fees,28 Dec 2022,2223/10,LGE,N,
0000365509,LAMBERT SMITH HAMPTON GROUP LTD,900.00,Devt Management - Apps,Prof & Consultancy Fees,23 Dec 2022,2223/10,LGE,N,
0000364573,ERNEST DOE & SONS LTD,"1,355.86",Open Spaces,"Equipment, Tools & Materials",10 Nov 2022,2223/10,LGE,N,
0000364575,ERNEST DOE & SONS LTD,633.70,Open Spaces,"Equipment, Tools & Materials",09 Nov 2022,2223/10,LGE,N,
0000365340,ERNEST DOE & SONS LTD,728.69,Open Spaces,"Equipment, Tools & Materials",21 Dec 2022,2223/10,LGE,N,
0000365420,SUFFOLK AGRICULTURAL ASSOCIATION,"1,014.17",Bldg Regs Chargeable Serv,Advertising&mkting (non-staff),09 Jan 2023,2223/10,SME,Y,45%
0000365539,PATHFINDER DEVELOPMENT CONSULTANTS LTD,"35,572.50","Framlingham Road, Laxfield",Prof & Consultancy Fees,18 Jan 2023,2223/10,SME,N,
0000365134,ACUITY RESEARCH & PRACTICE LTD,735.20,Software/ICT Projects/Surveys,Improvements,22 Dec 2022,2223/10,SME,Y,50%
0000365135,ACUITY RESEARCH & PRACTICE LTD,"4,949.20",Software/ICT Projects/Surveys,Improvements,22 Dec 2022,2223/10,SME,Y,50%
0000364785,WHYBROW PROPERTY SOLUTIONS LTD,"1,221.07",Building Services,Repairs,15 Dec 2022,2223/10,SME,N,
0000364787,WHYBROW PROPERTY SOLUTIONS LTD,"1,875.84",Building Services,Repairs,15 Dec 2022,2223/10,SME,N,
0000364831,WHYBROW PROPERTY SOLUTIONS LTD,510.80,Building Services,Repairs,14 Dec 2022,2223/10,SME,N,
0000364832,WHYBROW PROPERTY SOLUTIONS LTD,563.80,Building Services,Repairs,14 Dec 2022,2223/10,SME,N,
0000364833,WHYBROW PROPERTY SOLUTIONS LTD,445.00,Building Services,Repairs,14 Dec 2022,2223/10,SME,N,
0000364836,WHYBROW PROPERTY SOLUTIONS LTD,551.70,Building Services,Repairs,14 Dec 2022,2223/10,SME,N,
0000364838,WHYBROW PROPERTY SOLUTIONS LTD,433.00,Building Services,Repairs,14 Dec 2022,2223/10,SME,N,
0000364840,WHYBROW PROPERTY SOLUTIONS LTD,395.50,Building Services,Repairs,14 Dec 2022,2223/10,SME,N,
0000364841,WHYBROW PROPERTY SOLUTIONS LTD,445.50,Building Services,Repairs,14 Dec 2022,2223/10,SME,N,
0000364842,WHYBROW PROPERTY SOLUTIONS LTD,982.00,Building Services,Repairs,14 Dec 2022,2223/10,SME,N,
0000364903,WHYBROW PROPERTY SOLUTIONS LTD,"3,147.10",Council House Adaptions,Improvements,20 Dec 2022,2223/10,SME,N,
0000365388,WHYBROW PROPERTY SOLUTIONS LTD,"16,687.64",Insurance Claims,Misc Premises Costs,06 Jan 2023,2223/10,SME,N,
0000365431,WHYBROW PROPERTY SOLUTIONS LTD,"1,001.59",Roads and Paths,Repairs,13 Jan 2023,2223/10,SME,N,
0000365433,WHYBROW PROPERTY SOLUTIONS LTD,"2,176.00",Building Services,Repairs,13 Jan 2023,2223/10,SME,N,
0000364906,L A C CLEANING CONTRACTORS LIMITED,366.16,Temporary Accommodation,General Cleaning,19 Dec 2022,2223/10,SME,N,
0000364907,L A C CLEANING CONTRACTORS LIMITED,824.41,Temporary Accommodation,General Cleaning,19 Dec 2022,2223/10,SME,N,
0000365370,L A C CLEANING CONTRACTORS LIMITED,425.50,Building Services,Repairs,12 Jan 2023,2223/10,SME,N,
0000365163,ARMSTRONG YORK ASBESTOS ENVIRONMENTAL,"10,605.77",Asbestos Survey & Reinspection,Prof & Consultancy Fees,30 Dec 2022,2223/10,SME,N,
0000364905,DMP TRAINING (UK),384.00,Open Spaces,Training,21 Nov 2022,2223/10,SME,N,
0000365482,TUDOR ENVIRONMENTAL,671.37,Open Spaces,"Equipment, Tools & Materials",16 Jan 2023,2223/10,SME,N,
0000364989,BT DIRECT DEBIT,"10,575.06",ICT,Telephone Costs,21 Dec 2022,2223/10,LGE,N,
0000364756,ORSIS UK LTD,"4,902.00",PV Panels,Contracted Services,15 Dec 2022,2223/10,SME,N,
0000365369,HOXNE PLAYING FIELD FUND,500.00,Grants & Contrbns,Contributions & Donations,11 Jan 2023,2223/10,SME,N,
0000365488,OXBURY CHARTERED SURVEYORS,"2,550.00","Framlingham Road, Laxfield",Prof & Consultancy Fees,13 Jan 2023,2223/10,SME,N,
0000365593,OXBURY CHARTERED SURVEYORS,"1,530.00","Framlingham Road, Laxfield",Prof & Consultancy Fees,23 Jan 2023,2223/10,SME,N,
0000365737,OXBURY CHARTERED SURVEYORS,"2,550.00","Framlingham Road, Laxfield",Prof & Consultancy Fees,13 Jan 2023,2223/10,SME,N,
0000365442,OPUS PEOPLE SOLUTIONS LTD,157.90,Health & Safety,Agency Staff,12 Jan 2023,2223/10,SME,N,
0000365442,OPUS PEOPLE SOLUTIONS LTD,215.76,Dev Mgmt - Applications,Agency Staff,12 Jan 2023,2223/10,SME,N,
0000365628,OPUS PEOPLE SOLUTIONS LTD,197.78,Health & Safety,Agency Staff,19 Jan 2023,2223/10,SME,N,
0000365628,OPUS PEOPLE SOLUTIONS LTD,322.66,Homeless Prevention Fund,Agency Staff,19 Jan 2023,2223/10,SME,N,
0000365628,OPUS PEOPLE SOLUTIONS LTD,270.99,Dev Mgmt - Applications,Agency Staff,19 Jan 2023,2223/10,SME,N,
0000365212,VERTAS GROUP LTD,"1,485.00",Assets & Development,Repairs,31 Dec 2022,2223/10,SME,N,
0000365136,4PRINCIPLES CONSTRUCTION LTD,"6,424.00",Mand Disabled Facilities Grant,Grants,04 Jan 2023,2223/10,SME,N,
0000365485,4PRINCIPLES CONSTRUCTION LTD,"5,383.83",Mand Disabled Facilities Grant,Grants,17 Jan 2023,2223/10,SME,N,
0000365486,4PRINCIPLES CONSTRUCTION LTD,"6,191.54",Mand Disabled Facilities Grant,Grants,17 Jan 2023,2223/10,SME,N,
0000364864,GALLAGHER CAR & VAN RENTALS LTD,"1,316.00",Domestic Waste,Refuse Contract,19 Dec 2022,2223/10,LGE,N,
0000364879,GALLAGHER CAR & VAN RENTALS LTD,"1,467.20",Domestic Waste,Refuse Contract,20 Dec 2022,2223/10,LGE,N,
0000364990,GALLAGHER CAR & VAN RENTALS LTD,"1,232.00",Domestic Waste,Refuse Contract,23 Dec 2022,2223/10,LGE,N,
0000365235,GALLAGHER CAR & VAN RENTALS LTD,893.00,Domestic Waste,Refuse Contract,06 Jan 2023,2223/10,LGE,N,
0000365375,GALLAGHER CAR & VAN RENTALS LTD,836.00,Domestic Waste,Refuse Contract,11 Jan 2023,2223/10,LGE,N,
0000365696,GALLAGHER CAR & VAN RENTALS LTD,678.57,Domestic Waste,Refuse Contract,26 Jan 2023,2223/10,LGE,N,
0000365546,OPINION RESEARCH SERVICES LTD,"10,568.75",Customer Servs,Contracted Services,19 Jan 2023,2223/10,SME,Y,50%
0000365547,OPINION RESEARCH SERVICES LTD,"1,450.00",Customer Servs,Contracted Services,19 Jan 2023,2223/10,SME,Y,50%
0000365300,FORESOLUTIONS LTD,276.08,Open Spaces,Plant & Vehicle - Other costs,09 Jan 2023,2223/10,SME,N,
0000365452,DEBENHAM GIRLS GROUP,"1,000.00",Grants & Contrbns,Contributions & Donations,16 Jan 2023,2223/10,SME,N,
0000365429,RICHARD UTTING ASSOCIATES LLP,"2,124.74",Stowmarket Middle School,Prof & Consultancy Fees,31 Dec 2022,2223/10,SME,N,
0000365363,UPSTIX VENTURES LLP,700.00,Homeless Prevention Fund,Misc Supplies & Services Costs,11 Jan 2023,2223/10,SME,N,
0000365189,THE STOWMARKET GLASS COMPANY LTD,270.23,Building Services,Repairs,15 Dec 2022,2223/10,SME,N,
0000365193,THE STOWMARKET GLASS COMPANY LTD,"1,210.61",Building Services,Repairs,16 Dec 2022,2223/10,SME,N,
0000365194,THE STOWMARKET GLASS COMPANY LTD,"1,278.29",Building Services,Repairs,16 Dec 2022,2223/10,SME,N,
0000365338,ASPECT CONTRACTS LTD,"6,719.00",Asbestos,Improvements,10 Jan 2023,2223/10,LGE,N,
0000365614,ASPECT CONTRACTS LTD,"6,924.00",Asbestos,Improvements,08 Dec 2022,2223/10,LGE,N,
0000364923,THE OYSTER PARTNERSHIP LTD,923.25,Building Services,Agency Staff,21 Dec 2022,2223/10,SME,N,
0000365022,THE OYSTER PARTNERSHIP LTD,923.25,Building Services,Agency Staff,28 Dec 2022,2223/10,SME,Y,50%
0000365023,THE OYSTER PARTNERSHIP LTD,"3,150.00",HRA Strategic Property,Agency Staff,28 Dec 2022,2223/10,SME,Y,50%
0000365024,THE OYSTER PARTNERSHIP LTD,"1,740.00",Financial Servs,Agency Staff,28 Dec 2022,2223/10,SME,Y,50%
0000365025,THE OYSTER PARTNERSHIP LTD,"2,656.25",Building Servs Tech Staff,Agency Staff,28 Dec 2022,2223/10,SME,Y,50%
0000365026,THE OYSTER PARTNERSHIP LTD,"1,895.90",Building Servs Tech Staff,Agency Staff,28 Dec 2022,2223/10,SME,Y,50%
0000365141,THE OYSTER PARTNERSHIP LTD,"1,160.00",Financial Servs,Agency Staff,04 Jan 2023,2223/10,SME,Y,50%
0000365142,THE OYSTER PARTNERSHIP LTD,"3,150.00",HRA Strategic Property,Agency Staff,04 Jan 2023,2223/10,SME,Y,50%
0000365143,THE OYSTER PARTNERSHIP LTD,"1,593.75",Building Servs Tech Staff,Agency Staff,04 Jan 2023,2223/10,SME,Y,50%
0000365144,THE OYSTER PARTNERSHIP LTD,553.95,Building Services,Agency Staff,04 Jan 2023,2223/10,SME,Y,50%
0000365145,THE OYSTER PARTNERSHIP LTD,"1,100.00",Building Servs Tech Staff,Agency Staff,04 Jan 2023,2223/10,SME,Y,50%
0000365159,THE OYSTER PARTNERSHIP LTD,616.00,Building Services,Agency Staff,28 Dec 2022,2223/10,SME,Y,50%
0000365224,THE OYSTER PARTNERSHIP LTD,795.00,Building Servs Tech Staff,Agency Staff,04 Jan 2023,2223/10,SME,Y,50%
0000365225,THE OYSTER PARTNERSHIP LTD,"1,934.50",Building Servs Tech Staff,Agency Staff,28 Dec 2022,2223/10,SME,Y,50%
0000365355,THE OYSTER PARTNERSHIP LTD,"2,320.00",Financial Servs,Agency Staff,11 Jan 2023,2223/10,SME,Y,50%
0000365356,THE OYSTER PARTNERSHIP LTD,"2,125.00",Building Servs Tech Staff,Agency Staff,11 Jan 2023,2223/10,SME,Y,50%
0000365357,THE OYSTER PARTNERSHIP LTD,923.25,Building Services,Agency Staff,11 Jan 2023,2223/10,SME,Y,50%
0000365358,THE OYSTER PARTNERSHIP LTD,406.00,Building Services,Agency Staff,11 Jan 2023,2223/10,SME,Y,50%
0000365359,THE OYSTER PARTNERSHIP LTD,"1,962.05",Building Servs Tech Staff,Agency Staff,11 Jan 2023,2223/10,SME,Y,50%
0000365360,THE OYSTER PARTNERSHIP LTD,"3,150.00",HRA Strategic Property,Agency Staff,11 Jan 2023,2223/10,SME,Y,50%
0000365524,THE OYSTER PARTNERSHIP LTD,"2,656.25",Building Servs Tech Staff,Agency Staff,18 Jan 2023,2223/10,SME,Y,50%
0000365525,THE OYSTER PARTNERSHIP LTD,"2,900.00",Financial Servs,Agency Staff,18 Jan 2023,2223/10,SME,Y,50%
0000365526,THE OYSTER PARTNERSHIP LTD,923.25,Building Services,Agency Staff,18 Jan 2023,2223/10,SME,Y,50%
0000365527,THE OYSTER PARTNERSHIP LTD,756.00,Building Services,Agency Staff,18 Jan 2023,2223/10,SME,Y,50%
0000365530,THE OYSTER PARTNERSHIP LTD,"2,446.40",Building Servs Tech Staff,Agency Staff,18 Jan 2023,2223/10,SME,Y,50%
0000365535,THE OYSTER PARTNERSHIP LTD,"3,150.00",HRA Strategic Property,Agency Staff,18 Jan 2023,2223/10,SME,Y,50%
0000365674,THE OYSTER PARTNERSHIP LTD,"3,150.00",HRA Strategic Property,Agency Staff,25 Jan 2023,2223/10,SME,Y,50%
0000365675,THE OYSTER PARTNERSHIP LTD,738.60,Building Services,Agency Staff,25 Jan 2023,2223/10,SME,Y,50%
0000365676,THE OYSTER PARTNERSHIP LTD,"1,034.00",Building Services,Agency Staff,25 Jan 2023,2223/10,SME,Y,50%
0000365677,THE OYSTER PARTNERSHIP LTD,"2,445.95",Building Servs Tech Staff,Agency Staff,25 Jan 2023,2223/10,SME,Y,50%
0000365678,THE OYSTER PARTNERSHIP LTD,"2,656.25",Building Servs Tech Staff,Agency Staff,25 Jan 2023,2223/10,SME,Y,50%
0000365679,THE OYSTER PARTNERSHIP LTD,"2,900.00",Financial Servs,Agency Staff,25 Jan 2023,2223/10,SME,Y,50%
0000422980,RIX PETROLEUM (EAST ANGLIA) LTD,"9,061.50",Open Spaces,Plant & Vehicle Fuel,02 Jan 2023,2223/10,SME,N,
0000364917,NORTHUMBRIAN WATER LTD,33.46,Cedars Park,Legionella Testing,21 Dec 2022,2223/10,LGE,N,
0000364917,NORTHUMBRIAN WATER LTD,33.46,Creeting Rd Depot,Legionella Testing,21 Dec 2022,2223/10,LGE,Y,50%
0000364917,NORTHUMBRIAN WATER LTD,33.48,Open Spaces,Legionella Testing,21 Dec 2022,2223/10,LGE,N,
0000364917,NORTHUMBRIAN WATER LTD,507.82,Sheltered Accommodation,Legionella Testing,21 Dec 2022,2223/10,LGE,N,
0000364917,NORTHUMBRIAN WATER LTD,39.53,Tacon Close Eye TDP,Legionella Testing,21 Dec 2022,2223/10,LGE,Y,50%
0000364917,NORTHUMBRIAN WATER LTD,39.53,Temporary Accommodation,Legionella Testing,21 Dec 2022,2223/10,LGE,N,
0000364917,NORTHUMBRIAN WATER LTD,629.52,Tenancy Services,Legionella Testing,21 Dec 2022,2223/10,LGE,N,
0000364917,NORTHUMBRIAN WATER LTD,72.99,Wingfield Barns,Legionella Testing,21 Dec 2022,2223/10,LGE,N,
0000365166,THE KNOWLEDGE ACADEMY LTD,"1,795.00",Homeless Prevention Fund,Misc Supplies & Services Costs,05 Jan 2023,2223/10,LGE,Y,50%
0000365030,GIPPING OCCUPATIONAL HEALTH LTD,289.29,Health & Safety,Contracted Services,22 Dec 2022,2223/10,SME,N,
0000365552,GIPPING OCCUPATIONAL HEALTH LTD,360.00,Organisational Devt,Contracted Services,15 Jan 2023,2223/10,SME,Y,50%
0000365751,GIPPING OCCUPATIONAL HEALTH LTD,335.00,Organisational Devt,Contracted Services,27 Jan 2023,2223/10,SME,Y,50%
0000365499,PARK AVENUE RECRUITMENT LTD,"1,800.00",Devt Management - Apps,Prof & Consultancy Fees,18 Jan 2023,2223/10,SME,Y,45%
0000365129,JOHN FORD GROUP LTD,"5,795.00",Mand Disabled Facilities Grant,Grants,04 Jan 2023,2223/10,SME,N,
0000365335,RESIDENTIALLY CHARTERED SURVEYORS,400.00,Eves Meadow Haughley S106,Prof & Consultancy Fees,21 Dec 2022,2223/10,SME,N,
0000363657,BRITISH RED CROSS,259.00,Organisational Devt,Training,22 Sep 2022,2223/10,SME,Y,50%
0000365575,SILCOCK DAWSON & PARTNERS LTD,"10,000.00",SHELF Project,Prof & Consultancy Fees,30 Dec 2022,2223/10,SME,N,
0000365106,WILD FRONTIER ECOLOGY LTD,"3,120.00",Paddock House Eye,Prof & Consultancy Fees,17 Oct 2022,2223/10,SME,N,
0000364656,AQUAM WATER SERVICES LTD,"1,300.00",Street & Major Road Cleansing,"Equipment, Tools & Materials",02 Dec 2022,2223/10,SME,N,
0000365223,PORTAL PLAN QUEST LTD,462.00,Devt Management - Apps,Planning Fees,06 Jan 2023,2223/10,SME,N,
0000364649,A C LEIGH (NORWICH) LTD,276.84,Building Services,"Equipment, Tools & Materials",09 Dec 2022,2223/10,SME,N,
0000365179,A C LEIGH (NORWICH) LTD,272.96,Building Services,"Equipment, Tools & Materials",23 Dec 2022,2223/10,SME,N,
0000365344,A C LEIGH (NORWICH) LTD,906.80,Building Services,"Equipment, Tools & Materials",09 Jan 2023,2223/10,SME,N,
0000365347,A C LEIGH (NORWICH) LTD,275.68,Building Services,"Equipment, Tools & Materials",03 Jan 2023,2223/10,SME,N,
0000365451,A C LEIGH (NORWICH) LTD,339.36,Building Services,"Equipment, Tools & Materials",13 Jan 2023,2223/10,SME,N,
0000365521,SUFFOLK POWER EQUIPMENT,417.19,Open Spaces,Plant & Vehicle - Other costs,15 Nov 2022,2223/10,ST,N,
0000365044,3 POINT PROPERTY MANAGEMENT LTD,895.00,Guaranteed Rent Scheme,Rent Payable,03 Jan 2023,2223/10,SME,N,
0000365063,3 POINT PROPERTY MANAGEMENT LTD,595.00,Guaranteed Rent Scheme,Rent Payable,03 Jan 2023,2223/10,SME,N,
0000365263,3 POINT PROPERTY MANAGEMENT LTD,825.00,Guaranteed Rent Scheme,Rent Payable,09 Jan 2023,2223/10,SME,N,
0000422983,3 POINT PROPERTY MANAGEMENT LTD,"1,350.00",Guaranteed Rent Scheme,Rent Payable,10 Jan 2023,2223/10,SME,N,
0000365298,OAKPARK SECURITY SYSTEMS LTD,"1,140.00",Temporary Accommodation,Misc Premises Costs,09 Jan 2023,2223/10,LGE,N,
0000365299,OAKPARK SECURITY SYSTEMS LTD,"1,050.00",Temporary Accommodation,Misc Premises Costs,31 Dec 2022,2223/10,LGE,N,
0000365459,FLAGSHIP HOUSING GROUP LTD-RENT ACCOUNT,"1,325.00",Homeless Prevention Fund,Misc Supplies & Services Costs,16 Jan 2023,2223/10,LGE,N,
0000365146,WEST DEVON BOROUGH COUNCIL,"3,138.00",Management Team,Subscriptions,04 Jan 2023,2223/10,LGE,N,
0000365583,WEST SUFFOLK COUNCIL,"109,855.07",Civil Parking Enforcement,Contracted Services,20 Jan 2023,2223/10,LGE,Y,45%
0000365240,HUGHES TRADE,355.26,Homeless Prevention Fund,Misc Supplies & Services Costs,06 Jan 2023,2223/10,LGE,N,
0000365051,APTL ENTERPRISES LTD,"4,326.67",PV Panels,Contracted Services,31 Dec 2022,2223/10,SME,N,
0000365373,APTL ENTERPRISES LTD,"8,515.00",PV Panels,Contracted Services,02 Dec 2022,2223/10,SME,N,
0000365374,APTL ENTERPRISES LTD,"4,125.00",PV Panels,Contracted Services,04 Nov 2022,2223/10,SME,N,
0000364988,WASHCO LTD,294.90,Sheltered Accommodation,General Cleaning,22 Dec 2022,2223/10,SME,N,
0000365119,WASHCO LTD,386.00,Sheltered Accommodation,"Equipment, Tools & Materials",01 Jan 2023,2223/10,SME,N,
0000365119,WASHCO LTD,81.00,Sheltered Accommodation,"Equipment, Tools & Materials",01 Jan 2023,2223/10,SME,N,
0000365394,ANGLIA COMMERCIAL FLOORING LTD,"1,473.09",Building Services,Repairs,10 Jan 2023,2223/10,SME,N,
0000365395,ANGLIA COMMERCIAL FLOORING LTD,949.99,Building Services,Repairs,10 Jan 2023,2223/10,SME,N,
0000365396,ANGLIA COMMERCIAL FLOORING LTD,589.23,Building Services,Repairs,12 Jan 2023,2223/10,SME,N,
0000365399,ANGLIA COMMERCIAL FLOORING LTD,"1,202.52",Kitchens/Bathrooms,Repairs,12 Jan 2023,2223/10,SME,N,
0000365555,ANGLIA COMMERCIAL FLOORING LTD,940.95,Voids Maintenance,Repairs,12 Jan 2023,2223/10,SME,N,
0000365563,ANGLIA COMMERCIAL FLOORING LTD,745.50,Voids Maintenance,Repairs,12 Jan 2023,2223/10,SME,N,
0000423025,ANGLIAN WATER BUS (NAT) LTD T/A WAVE,122.00,Headquarters General,Water Rates - Metered,12 Jan 2023,2223/10,LGE,N,
0000423025,ANGLIAN WATER BUS (NAT) LTD T/A WAVE,32.26,HRA Strategic Property,Water Rates - Metered,12 Jan 2023,2223/10,LGE,N,
0000423025,ANGLIAN WATER BUS (NAT) LTD T/A WAVE,133.53,Open Spaces,Water Rates - Metered,12 Jan 2023,2223/10,LGE,N,
0000423025,ANGLIAN WATER BUS (NAT) LTD T/A WAVE,806.53,Public Conveniences,Water Rates - Metered,12 Jan 2023,2223/10,LGE,N,
0000423025,ANGLIAN WATER BUS (NAT) LTD T/A WAVE,5.80,Recycling Centre,Water Rates - Metered,12 Jan 2023,2223/10,LGE,N,
0000423025,ANGLIAN WATER BUS (NAT) LTD T/A WAVE,4.21,Sewage Treatment Works,Water Rates - Metered,12 Jan 2023,2223/10,LGE,N,
0000423025,ANGLIAN WATER BUS (NAT) LTD T/A WAVE,"1,794.84",Sheltered Accommodation,Water Rates - Metered,12 Jan 2023,2223/10,LGE,N,
0000423025,ANGLIAN WATER BUS (NAT) LTD T/A WAVE,17.30,Tacon Close Eye TDP,Water Rates - Metered,12 Jan 2023,2223/10,LGE,Y,50%
0000423025,ANGLIAN WATER BUS (NAT) LTD T/A WAVE,304.50,Temporary Accommodation,Water Rates - Metered,12 Jan 2023,2223/10,LGE,N,
0000423025,ANGLIAN WATER BUS (NAT) LTD T/A WAVE,13.93,Tenancy Services,Water Rates - Metered,12 Jan 2023,2223/10,LGE,N,
0000423025,ANGLIAN WATER BUS (NAT) LTD T/A WAVE,19.69,Wingfield Barns,Water Rates - Metered,12 Jan 2023,2223/10,LGE,N,
0000365692,HEALTH AND CARE (UK) LTD,324.96,Jnt Waste Contract,"Equipment, Tools & Materials",20 Jan 2023,2223/10,SME,Y,50%
0000365139,STUDLEY CAPITAL LIMITED,950.00,MSM Feasibility & Match Fundin,Prof & Consultancy Fees,04 Jan 2023,2223/10,ST,N,
0000365140,STUDLEY CAPITAL LIMITED,"1,662.50",MSM Skills & Innovation Centre,Prof & Consultancy Fees,04 Jan 2023,2223/10,ST,N,
0000365010,GREENACRE RECRUITMENT LTD,"1,183.26",Housing Standards,Agency Staff,27 Dec 2022,2223/10,SME,Y,50%
0000365011,GREENACRE RECRUITMENT LTD,"1,660.00",Building Services,Agency Staff,27 Dec 2022,2223/10,SME,Y,50%
0000365125,GREENACRE RECRUITMENT LTD,767.52,Housing Standards,Agency Staff,04 Jan 2023,2223/10,SME,Y,50%
0000365126,GREENACRE RECRUITMENT LTD,"1,245.00",Building Services,Agency Staff,04 Jan 2023,2223/10,SME,Y,50%
0000365505,GREENACRE RECRUITMENT LTD,"2,075.00",Building Services,Agency Staff,18 Jan 2023,2223/10,SME,Y,50%
0000365667,GREENACRE RECRUITMENT LTD,"1,660.00",Building Services,Agency Staff,25 Jan 2023,2223/10,SME,Y,50%
0000365160,MID SUFFOLK GROWTH LTD,"1,969.50","Cedars Park C & D, Stowmarket",Prof & Consultancy Fees,31 Dec 2022,2223/10,SME,N,
0000365161,MID SUFFOLK GROWTH LTD,"5,703.37",Loraine Way Bramford  S106,Prof & Consultancy Fees,31 Dec 2022,2223/10,SME,N,
0000365074,INFORM COMMUNICATIONS LTD,"30,240.00",Customer Servs,Contracted Services,31 Dec 2022,2223/10,SME,Y,50%
0000365504,OCN CONTRACTS,"7,320.00",Other Temp Accommodation,Furniture,08 Nov 2022,2223/10,SME,Y,50%
0000365445,EYE OPPORTUNITY GROUP,642.15,Grants & Contrbns,Contributions & Donations,16 Jan 2023,2223/10,SME,N,
0000422982,ELLISONS SOLICITORS,"698,224.69","The Broadway, Badwell Ash",Purchase of Land & Buildings,10 Jan 2023,2223/10,SME,N,
0000423015,ELLISONS SOLICITORS,"263,500.01","Framlingham Road, Laxfield",Purchase of Land & Buildings,13 Jan 2023,2223/10,SME,N,
0000365323,GLASSTAP LIMITED,380.00,Organisational Devt,Corporate Training,22 Dec 2022,2223/10,SME,Y,50%
0000365336,OAKSHIRE ENVIRONMENTAL,954.00,Assets & Development,Prof & Consultancy Fees,01 Dec 2022,2223/10,SME,N,
0000365390,OAKSHIRE ENVIRONMENTAL,"7,896.00",Assets & Development,Prof & Consultancy Fees,06 Jan 2023,2223/10,SME,N,
0000365611,LIMELEASE LTD,435.00,Guaranteed Rent Scheme,Rent Payable,24 Jan 2023,2223/10,SME,N,
0000365728,BUCHER MUNICIPAL LTD,437.00,Street & Major Road Cleansing,Plant & Vehicle - Other costs,26 Jan 2023,2223/10,LGE,N,
0000365072,GIPPING CONSTRUCTION LTD,"11,590.02",Regen Fund - HQ Sites,Prof & Consultancy Fees,02 Dec 2022,2223/10,SME,N,
0000365072,GIPPING CONSTRUCTION LTD,"151,734.16",Needham Market Middle School,Prof & Consultancy Fees,02 Dec 2022,2223/10,SME,N,
0000365239,GIPPING CONSTRUCTION LTD,"8,098.77",Regen Fund - HQ Sites,Prof & Consultancy Fees,04 Jan 2023,2223/10,SME,N,
0000365239,GIPPING CONSTRUCTION LTD,"106,027.45",Needham Market Middle School,Prof & Consultancy Fees,04 Jan 2023,2223/10,SME,N,
0000365607,PRIVATE LANDLORD,786.50,Guaranteed Rent Scheme,Rent Payable,24 Jan 2023,2223/10,ST,N,
0000365454,PAUL WRIGHT & CO,775.00,Guaranteed Rent Scheme,Rent Payable,16 Jan 2023,2223/10,SME,N,
0000365250,ASHTONS LEGAL,700.00,Devt Management - Apps,Legal expenses - Costs awarded,06 Jan 2023,2223/10,LGE,N,
0000365276,PRIVATE LANDLORD,786.50,Guaranteed Rent Scheme,Rent Payable,09 Jan 2023,2223/10,ST,N,
0000365101,COUNTRYSTYLE RECYCLING LTD,"4,994.40",Bring Sites,Contracted Services,31 Dec 2022,2223/10,SME,N,
0000365049,DGL QUALITY MANAGEMENT LTD,"1,092.00",Stowmarket Middle School,Prof & Consultancy Fees,31 Dec 2022,2223/10,SME,N,
0000365167,DGL QUALITY MANAGEMENT LTD,478.00,Needham Market Middle School,Prof & Consultancy Fees,31 Dec 2022,2223/10,SME,N,
0000365669,DGL QUALITY MANAGEMENT LTD,864.80,Needham Market Middle School,Prof & Consultancy Fees,31 Dec 2022,2223/10,SME,N,
0000364919,ENVIROSIGNS LTD,"1,506.00",Public Sector Decarbonisation,Prof & Consultancy Fees,21 Dec 2022,2223/10,SME,N,
0000364994,PRIMADONNA FESTIVAL CIC,"9,500.00",Communities,Grants,23 Dec 2022,2223/10,SME,N,
0000365367,PRIMADONNA FESTIVAL CIC,"2,505.00",MSM Town Centre Vision,Advertising&mkting (non-staff),11 Jan 2023,2223/10,SME,N,
0000365103,PCC OF STOWMARKET,"3,000.00",Grants & Contrbns,Contributions & Donations,03 Jan 2023,2223/10,SME,N,
0000365473,PCC OF STOWMARKET,"3,591.77",Community Fund Projects-Grants,Grants,16 Jan 2023,2223/10,SME,N,
0000363692,ARAN INSULATION LTD,"23,542.05",Insulation Imps,Improvements,31 Oct 2022,2223/10,SME,N,
0000363693,ARAN INSULATION LTD,"19,385.57",Insulation Imps,Improvements,31 Oct 2022,2223/10,SME,N,
0000365090,ARAN INSULATION LTD,"4,292.89",Insulation Imps,Improvements,31 Dec 2022,2223/10,SME,N,
0000365282,ARAN INSULATION LTD,"1,155.00",Insulation Imps,Improvements,09 Jan 2023,2223/10,SME,N,
0000365304,ARAN INSULATION LTD,"2,730.62",Insulation Imps,Improvements,10 Jan 2023,2223/10,SME,N,
0000365439,ARAN INSULATION LTD,"2,129.67",Insulation Imps,Improvements,16 Jan 2023,2223/10,SME,N,
0000365440,ARAN INSULATION LTD,"2,349.62",Insulation Imps,Improvements,16 Jan 2023,2223/10,SME,N,
0000365315,ORWELL REMOVALS & STORAGE LTD,"1,023.00",Homeless Prevention Fund,Removal Expenses,04 Jan 2023,2223/10,SME,N,
0000365046,MARCHDELL LTD,715.00,Guaranteed Rent Scheme,Rent Payable,03 Jan 2023,2223/10,SME,N,
0000365045,PRIVATE LANDLORD,"1,300.00",Guaranteed Rent Scheme,Rent Payable,03 Jan 2023,2223/10,ST,N,
0000365047,SSE,319.84,Other Temp Accommodation,Electricity,20 Dec 2022,2223/10,LGE,N,
0000365137,SSE,384.20,Voids Maintenance,Electricity,30 Dec 2022,2223/10,LGE,N,
0000365590,PRIVATE LANDLORD,669.00,Guaranteed Rent Scheme,Rent Payable,23 Jan 2023,2223/10,ST,N,
0000365275,PRIVATE LANDLORD,650.00,Guaranteed Rent Scheme,Rent Payable,09 Jan 2023,2223/10,ST,N,
0000365034,BUCKINGHAM FUTURES,"1,080.00",Covid-19 Test and Trace,Agency Staff,28 Dec 2022,2223/10,SME,N,
0000365400,BUCKINGHAM FUTURES,855.00,Covid-19 Test and Trace,Agency Staff,11 Jan 2023,2223/10,SME,Y,50%
0000365412,BUCKINGHAM FUTURES,"1,665.00",Covid-19 Test and Trace,Agency Staff,19 Oct 2022,2223/10,SME,Y,50%
0000365553,BUCKINGHAM FUTURES,"1,125.00",Covid-19 Test and Trace,Agency Staff,18 Jan 2023,2223/10,SME,Y,50%
0000365719,BUCKINGHAM FUTURES,"1,125.00",Covid-19 Test and Trace,Agency Staff,25 Jan 2023,2223/10,SME,Y,50%
0000365124,MK AUTOS MOT CENTRE LIMITED,650.00,Taxi & Private Hire Licensing,Contracted Services,30 Nov 2022,2223/10,SME,N,
0000365062,PRIVATE LANDLORD,555.00,Guaranteed Rent Scheme,Rent Payable,03 Jan 2023,2223/10,ST,N,
0000365042,SHJ HOMES LTD,525.00,Guaranteed Rent Scheme,Rent Payable,03 Jan 2023,2223/10,SME,N,
0000365608,SHJ HOMES LTD,550.00,Guaranteed Rent Scheme,Rent Payable,24 Jan 2023,2223/10,SME,N,
0000364983,NLA MEDIA ACCESS LTD,"21,582.60",Communications,Subscriptions,22 Dec 2022,2223/10,SME,Y,50%
0000365508,SHARPS ACOUSTICS LLP,"1,700.00",Devt Management - Appeals,Environmental  Consultancy,31 Dec 2022,2223/10,SME,N,
0000364987,BACTON & WYVERSTONE HORT & SPORTS ASSOC,450.00,Grants & Contrbns,Contributions & Donations,22 Dec 2022,2223/10,SME,N,
0000365048,PONT ENTERPRISES LTD,"13,212.08",Tenants Forum,Prof & Consultancy Fees,31 Dec 2022,2223/10,SME,N,
0000365122,IVY LEGAL LTD,750.00,Organisational Devt,Training,03 Jan 2023,2223/10,SME,N,
0000365055,HAMILTON SMITH LETTINGS,550.00,Guaranteed Rent Scheme,Rent Payable,03 Jan 2023,2223/10,SME,N,
0000365264,HAMILTON SMITH LETTINGS,590.00,Guaranteed Rent Scheme,Rent Payable,09 Jan 2023,2223/10,SME,N,
0000365435,HAMILTON SMITH LETTINGS,775.00,Guaranteed Rent Scheme,Rent Payable,16 Jan 2023,2223/10,SME,N,
0000365606,HAMILTON SMITH LETTINGS,500.00,Guaranteed Rent Scheme,Rent Payable,23 Jan 2023,2223/10,SME,N,
0000423021,HAMILTON SMITH LETTINGS,500.00,Guaranteed Rent Scheme,Rent Payable,24 Jan 2023,2223/10,SME,N,
0000365745,THE RESPUBLICA PARTNERSHIP LTD,"14,700.00",MSM Skills & Innovation Centre,Prof & Consultancy Fees,27 Jan 2023,2223/10,SME,N,
0000365430,PAY 360 LIMITED,"7,080.67",Bank Chgs,Bank Charges,13 Jan 2023,2223/10,LGE,N,
0000365577,THE FOOD MUSEUM LTD,"71,427.85",CIL Funded REFCUS,Grants,20 Jan 2023,2223/10,SME,N,
0000365213,TILE HILL INTERIM & EXECUTIVE LTD,"5,850.00",Financial Servs,Agency Staff,06 Jan 2023,2223/10,SME,Y,50%
0000365214,TILE HILL INTERIM & EXECUTIVE LTD,"5,460.00",Financial Servs,Agency Staff,06 Jan 2023,2223/10,SME,Y,50%
0000365256,TILE HILL INTERIM & EXECUTIVE LTD,"3,120.00",Financial Servs,Agency Staff,14 Dec 2022,2223/10,SME,Y,50%
0000365257,TILE HILL INTERIM & EXECUTIVE LTD,"3,120.00",Financial Servs,Agency Staff,07 Dec 2022,2223/10,SME,Y,50%
0000365456,TILE HILL INTERIM & EXECUTIVE LTD,"8,250.00",Organisational Devt,Agency Staff,06 Jan 2023,2223/10,SME,Y,48%
0000365457,TILE HILL INTERIM & EXECUTIVE LTD,"10,500.00",Organisational Devt,Agency Staff,07 Dec 2022,2223/10,SME,Y,48%
0000365043,PRIVATE LANDLORD,900.00,Guaranteed Rent Scheme,Rent Payable,03 Jan 2023,2223/10,ST,N,
0000365265,PRIVATE LANDLORD,875.00,Guaranteed Rent Scheme,Rent Payable,09 Jan 2023,2223/10,ST,N,
0000365054,BENICIA PROPERTIES LTD,650.00,Guaranteed Rent Scheme,Rent Payable,03 Jan 2023,2223/10,SME,N,
0000365253,BENICIA PROPERTIES LTD,575.00,Guaranteed Rent Scheme,Rent Payable,09 Jan 2023,2223/10,SME,N,
0000365610,PRIVATE LANDLORD,800.00,Guaranteed Rent Scheme,Rent Payable,24 Jan 2023,2223/10,ST,N,
0000423022,PRIVATE LANDLORD,"1,500.00",Guaranteed Rent Scheme,Misc Supplies & Services Costs,24 Jan 2023,2223/10,SME,N,
0000364898,NEWSQUEST MEDIA GROUP,358.79,Jnt Waste Contract,Advertising&mkting (non-staff),19 Dec 2022,2223/10,LGE,Y,50%
0000365038,NEWSQUEST MEDIA GROUP,358.79,Jnt Waste Contract,Advertising&mkting (non-staff),28 Dec 2022,2223/10,LGE,Y,50%
0000365251,NEWSQUEST MEDIA GROUP,505.23,Devt Management - Apps,Advertising&mkting (non-staff),05 Jan 2023,2223/10,LGE,N,
0000365361,NEWSQUEST MEDIA GROUP,716.90,Devt Management - Apps,Advertising&mkting (non-staff),10 Jan 2023,2223/10,LGE,N,
0000365413,NEWSQUEST MEDIA GROUP,636.56,Devt Management - Apps,Advertising&mkting (non-staff),12 Jan 2023,2223/10,LGE,N,
0000365560,NEWSQUEST MEDIA GROUP,499.96,Devt Management - Apps,Advertising&mkting (non-staff),19 Jan 2023,2223/10,LGE,N,
0000365686,NEWSQUEST MEDIA GROUP,253.39,Cost of Democracy,Advertising&mkting (non-staff),25 Jan 2023,2223/10,LGE,Y,50%
0000365727,NEWSQUEST MEDIA GROUP,715.35,Devt Management - Apps,Advertising&mkting (non-staff),26 Jan 2023,2223/10,LGE,N,
0000365296,FMG CONSULTING LTD,"3,750.00",SHELF Project,Prof & Consultancy Fees,31 Dec 2022,2223/10,SME,N,
0000365411,FMG CONSULTING LTD,"3,750.00",SHELF Project,Prof & Consultancy Fees,30 Nov 2022,2223/10,SME,N,
0000365538,BELL DECORATING GROUP LTD,"14,306.59",Planned Maint - Ext Painting,Major Contracts,17 Jan 2023,2223/10,LGE,N,
0000365262,PRIVATE LANDLORD,800.00,Guaranteed Rent Scheme,Rent Payable,09 Jan 2023,2223/10,ST,N,
0000365690,VALENCIA COMMUNITIES FUND,"2,105.00",Community Fund Projects-Grants,Grants,25 Jan 2023,2223/10,SME,N,
0000365690,VALENCIA COMMUNITIES FUND,"1,525.00",Communities,Grants,25 Jan 2023,2223/10,SME,N,
0000365053,STEALTH REMOVALS LTD,391.50,Homeless Prevention Fund,Removal Expenses,15 Dec 2022,2223/10,SME,N,
0000365542,STEALTH REMOVALS LTD,276.00,Homeless Prevention Fund,Removal Expenses,12 Dec 2022,2223/10,SME,N,
0000365272,ALAN CONISBEE & ASSOCIATES LTD,"3,250.00",SHELF Project,Prof & Consultancy Fees,30 Dec 2022,2223/10,SME,N,
0000365591,SCH SUPPLIES LTD,885.00,Open Spaces,"Equipment, Tools & Materials",20 Jan 2023,2223/10,SME,N,
0000365691,SCH SUPPLIES LTD,"1,750.00",Street & Major Road Cleansing,"Equipment, Tools & Materials",24 Jan 2023,2223/10,SME,N,
0000365321,TOPAZ HEALTH TRAINING,512.00,Food & Safety (General),Prof & Consultancy Fees,10 Jan 2023,2223/10,ST,N,
0000365391,PROPERTYMARK LTD,300.00,MSM Housing Solutions,Misc Supplies & Services Costs,21 Nov 2022,2223/10,SME,N,
0000365392,PROPERTYMARK LTD,300.00,MSM Housing Solutions,Misc Supplies & Services Costs,21 Nov 2022,2223/10,SME,N,
0000365393,PROPERTYMARK LTD,300.00,MSM Housing Solutions,Misc Supplies & Services Costs,21 Nov 2022,2223/10,SME,N,
0000365006,CREATIVE VEHICLE WRAPPING LIMITED,"2,495.00",Rplcmt Ref Freighters-Jnt Schm,Plant & Vehicle - Purchase,23 Dec 2022,2223/10,SME,N,
0000365383,KO-AN ARTS CIC,"2,379.00",Grants & Contrbns,Contributions & Donations,12 Jan 2023,2223/10,SME,N,
0000365540,KMC TRANSPORT PLANNING LTD,"1,500.00",SHELF Project,Prof & Consultancy Fees,18 Jan 2023,2223/10,SME,N,
0000365609,THOMPSONS ESTATE OFFICES LTD,670.00,Guaranteed Rent Scheme,Rent Payable,24 Jan 2023,2223/10,SME,N,
0000365127,B A BOYLE & SON LTD,"6,000.00",Renovation/Home Repair Grants,Grants,04 Jan 2023,2223/10,SME,N,
0000365123,MENDLESHAM EDUCATIONAL FOUNDATION,600.00,CCB Warm Spaces,"Equipment, Tools & Materials",04 Jan 2023,2223/10,SME,N,
0000365752,COMMUNITIES TOGETHER EAST ANGLIA,"2,800.00",Wellbeing CCG Funding,Contributions & Donations,30 Dec 2022,2223/10,SME,N,
0000365322,URBAN DESIGN LONDON,500.00,Devt Management - Apps,Subscriptions,16 Dec 2022,2223/10,SME,Y,45%
0000422981,HIGH COURT ENFORCEMENT GROUP LTD,"2,014.35",Building Services,BMBS Repairs Work,06 Jan 2023,2223/10,LGE,N,
0000365627,SCARBOROUGH BOROUGH COUNCIL,"2,075.00",Electoral Registration,Stationery,24 Jan 2023,2223/10,LGE,N,
0000365339,"STAR PLUMBING, HEATING & RENEWABLES LTD","4,997.31",Renovation/Home Repair Grants,Grants,11 Jan 2023,2223/10,SME,N,
0000365341,MALTA PROPERTIES LTD,"1,750.00",Devt Management - Appeals,Prof & Consultancy Fees,09 Jan 2023,2223/10,SME,N,
0000365384,HENSTOWE LTD,"3,300.00",Mand Disabled Facilities Grant,Grants,12 Jan 2023,2223/10,SME,N,
0000365409,PRIVATE LANDLORD,895.00,Guaranteed Rent Scheme,Rents (voids),13 Jan 2023,2223/10,ST,N,
0000423019,PRIVATE LANDLORD,353.09,Guaranteed Rent Scheme,Rent Payable,20 Jan 2023,2223/10,ST,N,
0000423019,PRIVATE LANDLORD,"1,500.00",Guaranteed Rent Scheme,Misc Supplies & Services Costs,20 Jan 2023,2223/10,ST,N,
0000365624,ELMSWELL POORS LAND CHARITY,500.00,Grants & Contrbns,Contributions & Donations,23 Jan 2023,2223/10,SME,N,
0000423023,SEFE ENERGY LIMITED,182.60,Creeting Rd Depot,Gas,17 Jan 2023,2223/10,LGE,Y,50%
0000423023,SEFE ENERGY LIMITED,28.88,Headquarters General,Gas,17 Jan 2023,2223/10,LGE,N,
0000423023,SEFE ENERGY LIMITED,244.23,HRA Strategic Property,Gas,17 Jan 2023,2223/10,LGE,N,
0000423023,SEFE ENERGY LIMITED,"19,220.39",Leisure Contract,Gas,17 Jan 2023,2223/10,LGE,N,
0000423023,SEFE ENERGY LIMITED,13.54,Open Spaces,Gas,17 Jan 2023,2223/10,LGE,N,
0000423023,SEFE ENERGY LIMITED,15.89,Pure Gym & Adjacent Building,Gas,17 Jan 2023,2223/10,LGE,N,
0000423023,SEFE ENERGY LIMITED,"4,389.80",Sheltered Accommodation,Gas,17 Jan 2023,2223/10,LGE,N,
0000423023,SEFE ENERGY LIMITED,753.12,Temporary Accommodation,Gas,17 Jan 2023,2223/10,LGE,N,
0000423023,SEFE ENERGY LIMITED,457.73,Tenancy Services,Gas,17 Jan 2023,2223/10,LGE,N,
0000365715,WINDRUSH ELECTRICAL,"1,843.20",Renovation/Home Repair Grants,Grants,26 Jan 2023,2223/10,SME,N,
0000365182,AARON SERVICES LTD,"-6,564.24",Planned Maint - Heating,Property Servicing,27 Jun 2022,2223/10,SME,N,
0000365206,MATERIAL CHANGE COMPOSTING LTD,-366.63,Open Spaces,Waste Disposal,31 Dec 2022,2223/10,LGE,N,
0000000273,SUDBURY TOWN COUNCIL,"-19,594.04",Comm Devt Grants,Grants,19 Jan 2023,2223/10,SME,N,
0000001003,ANGLIA COMMERCIAL FLOORING LTD,-940.95,Voids Maintenance,Repairs,25 Jan 2023,2223/10,SME,N,
0000001002,SSE,7.38,Current Assets,LLOYDS GENERAL PAYMENTS,13 Jan 2023,2223/10,LGE,N,
0000423016,SSE,-7.03,Voids Maintenance,Electricity,30 Dec 2022,2223/10,LGE,N,
0000423034,AARON SERVICES LTD,708.80,Voids Maintenance,Repairs,03 Feb 2023,2223/11,SME,N,
0000423034,AARON SERVICES LTD,"17,700.54",Planned Maint - Heating,Property Servicing,03 Feb 2023,2223/11,SME,N,
0000423036,AARON SERVICES LTD,814.24,Voids Maintenance,Repairs,16 Feb 2023,2223/11,SME,N,
0000365633,ANGLIAN WATER,306.94,Water Sampling,Sampling & Analysis,23 Jan 2023,2223/11,LGE,N,
0000365981,ANGLIAN WATER,460.02,Tenancy Services,Water Rates - Metered,02 Feb 2023,2223/11,LGE,N,
0000366346,ARLINGCLOSE LTD,"11,625.00",Treasury Management,Prof & Consultancy Fees,01 Dec 2022,2223/11,SME,N,
0000366285,BINDER LTD,391.74,Sewage Treatment Works,Contracted Services,15 Feb 2023,2223/11,SME,N,
0000366038,BOWER FULLER,"3,259.72",Sheltered Accommodation,Repairs,31 Jan 2023,2223/11,SME,N,
0000366039,BOWER FULLER,"4,206.00",Tenancy Services,Fire Prevention,31 Jan 2023,2223/11,SME,N,
0000366060,BUTTON & TURNER LTD,304.08,Street & Major Road Cleansing,Plant & Vehicle - Other costs,12 Jan 2023,2223/11,SME,N,
0000366067,BUTTON & TURNER LTD,305.50,Street & Major Road Cleansing,Plant & Vehicle - Other costs,16 Jan 2023,2223/11,SME,N,
0000365980,AQUASAMPLERS,782.00,Water Sampling,Sampling & Analysis,31 Dec 2022,2223/11,SME,N,
0000365936,CEDARS HOTEL LTD,"20,440.00",Homelessness Private Sector,B&B Costs,03 Feb 2023,2223/11,SME,Y,50%
0000366073,CHAPPLE SIGNS LTD,359.91,Open Spaces,Plant & Vehicle - Other costs,08 Feb 2023,2223/11,SME,N,
0000366339,CHEQUERS HOTEL LTD,"1,260.00",Homelessness Private Sector,B&B Costs,02 Jan 2023,2223/11,SME,N,
0000366340,CHEQUERS HOTEL LTD,"1,120.00",Homelessness Private Sector,B&B Costs,02 Jan 2023,2223/11,SME,N,
0000366341,CHEQUERS HOTEL LTD,440.00,Homelessness Private Sector,B&B Costs,02 Jan 2023,2223/11,SME,N,
0000365091,CLARKE FENCING LTD,"8,841.12","Fences, Gates and Walls",Repairs,03 Jan 2023,2223/11,SME,N,
0000365713,CLARKE FENCING LTD,515.84,Open Spaces,"Equipment, Tools & Materials",26 Jan 2023,2223/11,SME,N,
0000365810,CLARKE FENCING LTD,610.00,Open Spaces,"Equipment, Tools & Materials",31 Jan 2023,2223/11,SME,N,
0000366330,CLARKE FENCING LTD,290.83,Open Spaces,"Equipment, Tools & Materials",16 Feb 2023,2223/11,SME,N,
0000366377,CLARKE FENCING LTD,293.51,Open Spaces,"Equipment, Tools & Materials",21 Feb 2023,2223/11,SME,N,
0000366480,CLARKE FENCING LTD,413.58,Open Spaces,"Equipment, Tools & Materials",22 Feb 2023,2223/11,SME,N,
0000365626,D W ADAMS LTD,368.40,Disabled Facilities (Revenue),Repairs,24 Jan 2023,2223/11,SME,N,
0000365671,D W ADAMS LTD,618.00,Disabled Facilities (Revenue),BMBS Repairs Work,25 Jan 2023,2223/11,SME,N,
0000365763,D W ADAMS LTD,"4,914.00",Council House Adaptions,Improvements,30 Jan 2023,2223/11,SME,N,
0000365813,D W ADAMS LTD,"5,198.00",Council House Adaptions,Improvements,31 Jan 2023,2223/11,SME,N,
0000365934,D W ADAMS LTD,"4,924.00",Council House Adaptions,Improvements,03 Feb 2023,2223/11,SME,N,
0000366404,D W ADAMS LTD,"3,412.00",Kitchens/Bathrooms,Repairs,22 Feb 2023,2223/11,SME,N,
0000366397,DOLPHIN STAIRLIFTS (EAST ANGLIA) LTD,"2,522.00",Mand Disabled Facilities Grant,Grants,22 Feb 2023,2223/11,SME,N,
0000365720,EAST ANGLIA CLEANING SERVICES LTD,451.47,Open Spaces,General Cleaning,26 Jan 2023,2223/11,SME,N,
0000365778,EAST OF ENGLAND LGA,"1,690.00",Organisational Devt,Misc Supplies & Services Costs,27 Jan 2023,2223/11,SME,Y,50%
0000366287,CIVICA ELECTION SERVICES,595.51,Electoral Registration,Contracted Services,10 Feb 2023,2223/11,LGE,N,
0000366030,ENGLISH SECURITY,275.12,Sheltered Accommodation,Fire Prevention,06 Feb 2023,2223/11,SME,N,
0000366272,ENGLISH SECURITY,330.00,Sheltered Accommodation,Fire Prevention,16 Feb 2023,2223/11,SME,N,
0000366292,ENGLISH SECURITY,312.98,Sheltered Accommodation,Fire Prevention,16 Feb 2023,2223/11,SME,N,
0000366012,FELGAINS CARE CENTRE,"2,079.00",Mand Disabled Facilities Grant,Grants,07 Feb 2023,2223/11,SME,N,
0000365711,FELLBRIDGE BUILDING SERVICES,"1,035.38",Council House Adaptions,Improvements,26 Jan 2023,2223/11,SME,N,
0000365771,FELLBRIDGE BUILDING SERVICES,"4,881.08",Building Services,Repairs,05 Dec 2022,2223/11,SME,N,
0000365772,FELLBRIDGE BUILDING SERVICES,288.00,Building Services,Repairs,30 Jan 2023,2223/11,SME,N,
0000365774,FELLBRIDGE BUILDING SERVICES,669.17,Building Services,Repairs,30 Jan 2023,2223/11,SME,N,
0000365905,FELLBRIDGE BUILDING SERVICES,"17,946.35",Voids Maintenance,Repairs,02 Feb 2023,2223/11,SME,N,
0000365968,FELLBRIDGE BUILDING SERVICES,"6,453.57",Voids Maintenance,Repairs,06 Feb 2023,2223/11,SME,N,
0000365973,FELLBRIDGE BUILDING SERVICES,490.88,Building Services,Repairs,06 Feb 2023,2223/11,SME,N,
0000366103,FELLBRIDGE BUILDING SERVICES,"16,480.62",Voids Maintenance,Repairs,09 Feb 2023,2223/11,SME,N,
0000366115,FELLBRIDGE BUILDING SERVICES,"18,953.49",Voids Maintenance,Repairs,09 Feb 2023,2223/11,SME,N,
0000366190,FELLBRIDGE BUILDING SERVICES,"11,788.20",Voids Maintenance,Repairs,13 Feb 2023,2223/11,SME,N,
0000366192,FELLBRIDGE BUILDING SERVICES,"12,349.13",Voids Maintenance,Repairs,13 Feb 2023,2223/11,SME,N,
0000366533,GB ADAPTIONS LTD,"7,158.00",Mand Disabled Facilities Grant,Grants,28 Feb 2023,2223/11,SME,N,
0000365966,GHB ROOFING,"9,270.00",Roofing,Improvements,31 Jan 2023,2223/11,SME,N,
0000365967,GHB ROOFING,"1,170.00",Roofing,Repairs,31 Jan 2023,2223/11,SME,N,
0000365974,GHB ROOFING,"1,370.00",Roofing,Repairs,31 Jan 2023,2223/11,SME,N,
0000366148,GHB ROOFING,"1,190.00",Building Services,Repairs,31 Jan 2023,2223/11,SME,N,
0000366099,KEN GRIME & SON LTD,702.21,Rewiring,Repairs,09 Feb 2023,2223/11,SME,N,
0000365814,KEYWAYS THE LOCKSMITHS LTD,525.00,Temporary Accommodation,Misc Premises Costs,31 Jan 2023,2223/11,SME,N,
0000366120,KEYWAYS THE LOCKSMITHS LTD,700.00,New Bld/acquisition,BMBS Repairs Work,10 Feb 2023,2223/11,SME,Y,50%
0000365672,LJ GAMMER (STOWMARKET) LTD,352.60,Building Services,Plant & Vehicle - Other costs,25 Jan 2023,2223/11,SME,Y,50%
0000366053,MATERIAL CHANGE COMPOSTING LTD,299.97,Open Spaces,Waste Disposal,31 Jan 2023,2223/11,LGE,N,
0000365841,MB TREES (EAST ANGLIA) LTD,880.00,Tenancy Services,Tree felling/maintenance,01 Feb 2023,2223/11,SME,N,
0000365842,MB TREES (EAST ANGLIA) LTD,880.00,Amenity Areas,Tree felling/maintenance,01 Feb 2023,2223/11,SME,N,
0000366275,MB TREES (EAST ANGLIA) LTD,"1,600.00",Tenancy Services,Tree felling/maintenance,16 Feb 2023,2223/11,SME,N,
0000366441,MB TREES (EAST ANGLIA) LTD,"1,760.00",Amenity Areas,Tree felling/maintenance,23 Feb 2023,2223/11,SME,N,
0000366097,NEEDHAM MARKET TOWN COUNCIL,"2,250.00",Grants & Contrbns,Contributions & Donations,08 Feb 2023,2223/11,SME,N,
0000366157,PRO-FLAT SPECIALIST SERVICES LTD,962.00,Roofing,Repairs,09 Feb 2023,2223/11,SME,N,
0000366159,PRO-FLAT SPECIALIST SERVICES LTD,"1,860.00",Building Services,Repairs,09 Feb 2023,2223/11,SME,N,
0000366160,PRO-FLAT SPECIALIST SERVICES LTD,"1,604.00","Garages, Forecourts & Stores",Repairs,09 Feb 2023,2223/11,SME,N,
0000366288,PRO-FLAT SPECIALIST SERVICES LTD,"6,823.00",Building Services,Repairs,16 Feb 2023,2223/11,SME,N,
0000366289,PRO-FLAT SPECIALIST SERVICES LTD,"2,728.00",Building Services,Repairs,16 Feb 2023,2223/11,SME,N,
0000365700,REID PLUMBING & HEATING CONTRACTORS LTD,"21,816.54",Central Heating,Major Contracts,26 Jan 2023,2223/11,SME,N,
0000365783,REID PLUMBING & HEATING CONTRACTORS LTD,"10,023.72",Central Heating,Major Contracts,30 Jan 2023,2223/11,SME,N,
0000365899,REID PLUMBING & HEATING CONTRACTORS LTD,"26,281.62",Central Heating,Major Contracts,02 Feb 2023,2223/11,SME,N,
0000366014,REID PLUMBING & HEATING CONTRACTORS LTD,"32,666.43",Central Heating,Major Contracts,07 Feb 2023,2223/11,SME,N,
0000365817,SACKERS LTD,"2,357.79",Building Services,Waste Disposal,31 Jan 2023,2223/11,SME,Y,50%
0000365818,SACKERS LTD,"1,470.11",Building Services,Waste Disposal,31 Jan 2023,2223/11,SME,Y,50%
0000366454,SACKERS LTD,269.45,Building Services,Waste Disposal,28 Feb 2023,2223/11,SME,Y,50%
0000366457,SACKERS LTD,"2,439.40",Building Services,Waste Disposal,28 Feb 2023,2223/11,SME,Y,50%
0000366451,SANDY LANE NURSERY,510.00,Amenity Areas,Tree felling/maintenance,10 Jan 2023,2223/11,SME,N,
0000365948,SEAGER HOME SOLUTIONS,783.19,Kitchens/Bathrooms,Repairs,03 Feb 2023,2223/11,SME,N,
0000366007,SEAGER HOME SOLUTIONS,"6,842.00",Council House Adaptions,Improvements,06 Feb 2023,2223/11,SME,N,
0000366223,SOLUTIONS ON SECURITY SERVICES,471.88,Creeting Rd Depot,Misc Premises Costs,14 Feb 2023,2223/11,SME,Y,50%
0000365722,SSI SCHAEFER LTD,"16,318.00",Bins,Bins,26 Jan 2023,2223/11,SME,Y,50%
0000365773,SSI SCHAEFER LTD,"17,977.50",Bins,Bins,30 Jan 2023,2223/11,SME,N,
0000366282,STOWMARKET SKIPS LTD TA SUNSKIPS,311.00,Homeless Prevention Fund,Misc Supplies & Services Costs,16 Feb 2023,2223/11,SME,N,
0000366016,SUFFOLK TREE SERVICES LTD,850.00,Public Tree Programme,Tree felling/maintenance,07 Feb 2023,2223/11,SME,N,
0000366421,THOMSON REUTERS,"2,310.00",Devt Management - Apps,Books & Periodicals,01 Dec 2022,2223/11,LGE,Y,50%
0000366422,THOMSON REUTERS,"2,625.00",Devt Management - Apps,Books & Periodicals,01 Nov 2022,2223/11,LGE,Y,50%
0000365693,TANKCHANGE LTD,"1,345.00",Central Heating,Improvements,24 Jan 2023,2223/11,SME,N,
0000365695,THERMATECH,"1,050.00",Sheltered Accommodation,Fire Prevention,23 Jan 2023,2223/11,SME,N,
0000365379,TRUCKEAST LTD,"1,391.69",Open Spaces,Plant & Vehicle - Other costs,30 Dec 2022,2223/11,LGE,N,
0000366154,VODAFONE CORPORATE LTD,"1,590.68",ICT,Telephone Costs,21 Jan 2023,2223/11,LGE,N,
0000365732,WINDIMAN LTD,270.00,Building Services,Repairs,26 Jan 2023,2223/11,SME,N,
0000365733,WINDIMAN LTD,780.00,Window & Door Rplcmts,BMBS Repairs Work,26 Jan 2023,2223/11,SME,N,
0000365734,WINDIMAN LTD,640.00,Window & Door Rplcmts,Repairs,26 Jan 2023,2223/11,SME,N,
0000365735,WINDIMAN LTD,330.00,Building Services,Repairs,26 Jan 2023,2223/11,SME,N,
0000365736,WINDIMAN LTD,"1,520.00",Window & Door Rplcmts,Repairs,26 Jan 2023,2223/11,SME,N,
0000365998,WINDIMAN LTD,"3,450.00",Window & Door Rplcmts,Improvements,31 Jan 2023,2223/11,SME,N,
0000365999,WINDIMAN LTD,"1,900.00",Window & Door Rplcmts,Repairs,31 Jan 2023,2223/11,SME,N,
0000366000,WINDIMAN LTD,"1,480.00",Window & Door Rplcmts,Improvements,31 Jan 2023,2223/11,SME,N,
0000366047,WINDIMAN LTD,"5,520.00",Building Services,Repairs,07 Feb 2023,2223/11,SME,N,
0000366048,WINDIMAN LTD,"1,200.00",Window & Door Rplcmts,Improvements,07 Feb 2023,2223/11,SME,N,
0000366049,WINDIMAN LTD,627.23,Major Imps,Repairs,07 Feb 2023,2223/11,SME,N,
0000366050,WINDIMAN LTD,780.00,Major Imps,Improvements,07 Feb 2023,2223/11,SME,N,
0000364940,WORKWEAR (EAST ANGLIA) LTD,323.43,Street & Major Road Cleansing,Protective clothing,01 Dec 2022,2223/11,SME,N,
0000365880,WORKWEAR (EAST ANGLIA) LTD,221.47,Open Spaces,Protective clothing,31 Jan 2023,2223/11,SME,N,
0000365880,WORKWEAR (EAST ANGLIA) LTD,221.47,Street & Major Road Cleansing,Protective clothing,31 Jan 2023,2223/11,SME,N,
0000365889,WORKWEAR (EAST ANGLIA) LTD,841.05,Building Services,Protective clothing,30 Jan 2023,2223/11,SME,Y,50%
0000365890,WORKWEAR (EAST ANGLIA) LTD,291.12,Building Services,Protective clothing,19 Jan 2023,2223/11,SME,Y,50%
0000365896,WORKWEAR (EAST ANGLIA) LTD,357.97,Building Services,Protective clothing,10 Jan 2023,2223/11,SME,Y,50%
0000366117,WORKWEAR (EAST ANGLIA) LTD,150.77,Open Spaces,Protective clothing,09 Feb 2023,2223/11,SME,Y,50%
0000366117,WORKWEAR (EAST ANGLIA) LTD,150.76,Street & Major Road Cleansing,Protective clothing,09 Feb 2023,2223/11,SME,N,
0000366069,COMMAND PEST CONTROL LTD,825.00,Building Services,Repairs,08 Feb 2023,2223/11,SME,N,
0000366070,COMMAND PEST CONTROL LTD,825.00,Building Services,Repairs,08 Feb 2023,2223/11,SME,N,
0000366072,COMMAND PEST CONTROL LTD,825.00,Building Services,Repairs,08 Feb 2023,2223/11,SME,N,
0000366156,SPORTS & LEISURE MANAGEMENT LTD,"20,833.33",Leisure Contract,Contributions to other Bodies,10 Feb 2023,2223/11,LGE,N,
0000365965,EVERYONE ACTIVE STOWMARKET,"11,025.00",Community Wellbeing,Contributions & Donations,20 Jan 2023,2223/11,SME,N,
0000365885,IPSWICH BOROUGH COUNCIL,"275,157.50",Shared Revenues Partnership,Major Contracts,01 Feb 2023,2223/11,LGE,N,
0000365502,SERCO LTD,"7,131.70",Open Spaces,Plant & Vehicle Fuel,16 Jan 2023,2223/11,LGE,Y,50%
0000365502,SERCO LTD,"7,131.70",Street & Major Road Cleansing,Plant & Vehicle Fuel,16 Jan 2023,2223/11,LGE,Y,50%
0000366200,SERCO LTD,"320,710.50",Domestic Waste,Refuse Contract,13 Feb 2023,2223/11,LGE,Y,48%
0000366200,SERCO LTD,"21,380.70",Trade Waste,Refuse Contract,13 Feb 2023,2223/11,LGE,Y,60%
0000366200,SERCO LTD,"85,522.80",Garden Waste,Refuse Contract,13 Feb 2023,2223/11,LGE,Y,47.5%
0000366201,SERCO LTD,"10,000.00",Jnt Waste Contract,Plant & Vehicle Fuel,13 Feb 2023,2223/11,LGE,Y,50%
0000366202,SERCO LTD,800.00,Domestic Waste,Refuse Contract,13 Feb 2023,2223/11,LGE,Y,20%
0000366203,SERCO LTD,"4,587.00",Domestic Waste,Refuse Contract,13 Feb 2023,2223/11,LGE,Y,50%
0000365932,TRAVIS PERKINS TRADING CO LTD,"43,658.80",Building Services,"Equipment, Tools & Materials",31 Dec 2022,2223/11,LGE,Y,66%
0000366273,TRAVIS PERKINS TRADING CO LTD,"66,527.02",Building Services,"Equipment, Tools & Materials",31 Jan 2023,2223/11,LGE,Y,60.5%
0000423035,GPC BARCLAYS,"10,006.68",Current Assets,Barclaycard Control,14 Feb 2023,2223/11,LGE,Y,14.5%
0000423027,ALLSTAR BUSINESS SOLUTIONS LTD,232.47,Housing Options,Plant & Vehicle Fuel,31 Jan 2023,2223/11,SME,Y,50%
0000423027,ALLSTAR BUSINESS SOLUTIONS LTD,"10,752.38",Building Services,Plant & Vehicle Fuel,31 Jan 2023,2223/11,SME,Y,50%
0000423031,COMPUTERSHARE ,890.00,Current Assets,ChildCare Vouchers-Control,30 Jan 2023,2223/11,LGE,N,
0000365798,ASHBOCKING PARISH COUNCIL,"1,000.00",Grants & Contrbns,Contributions & Donations,31 Jan 2023,2223/11,SME,N,
0000365797,BARHAM PARISH COUNCIL,"2,000.00",Grants & Contrbns,Contributions & Donations,31 Jan 2023,2223/11,SME,N,
0000366252,BATTISFORD & DISTRICT CRICKET CLUB,"1,000.00",Grants & Contrbns,Contributions & Donations,15 Feb 2023,2223/11,SME,N,
0000365796,BATTISFORD PARISH COUNCIL,"1,323.15",Grants & Contrbns,Contributions & Donations,31 Jan 2023,2223/11,SME,N,
0000366279,BOTESDALE PARISH COUNCIL,"1,000.00",Grants & Contrbns,Contributions & Donations,16 Feb 2023,2223/11,SME,N,
0000366354,BROME & OAKLEY PARISH COUNCIL,"1,875.00",Grants & Contrbns,Contributions & Donations,20 Feb 2023,2223/11,SME,N,
0000366390,CODDENHAM PARISH COUNCIL,262.77,Grants & Contrbns,Contributions & Donations,21 Feb 2023,2223/11,SME,N,
0000365969,DEBENHAM PARISH COUNCIL,"1,375.00",MSM Sustainable Travel,"Equipment, Tools & Materials",10 Dec 2022,2223/11,SME,N,
0000366399,EARL STONHAM PARISH COUNCIL,"1,081.00",Grants & Contrbns,Contributions & Donations,22 Feb 2023,2223/11,SME,N,
0000365979,GOSBECK PARISH COUNCIL,306.00,Grants & Contrbns,Contributions & Donations,06 Feb 2023,2223/11,SME,N,
0000366379,HENLEY PARISH COUNCIL,"1,440.00",Grants & Contrbns,Contributions & Donations,21 Feb 2023,2223/11,SME,N,
0000366487,HESSETT PARISH COUNCIL,"1,000.00",Grants & Contrbns,Contributions & Donations,24 Feb 2023,2223/11,SME,N,
0000366281,MELLIS MEMORIAL HALL MANAGEMENT COMMITTE,"2,115.60",Grants & Contrbns,Contributions & Donations,16 Feb 2023,2223/11,SME,N,
0000366109,MENDLESHAM PARISH COUNCIL,"13,700.00",Grants & Contrbns,Contributions & Donations,09 Feb 2023,2223/11,SME,N,
0000366191,MICKFIELD PARISH COUNCIL,"1,690.00",Grants & Contrbns,Contributions & Donations,13 Feb 2023,2223/11,SME,N,
0000365541,MID SUFFOLK VOLUNTARY ORGANISATIONS FORU,"1,060.00",Community Wellbeing,Contributions & Donations,19 Jan 2023,2223/11,SME,N,
0000365544,MID SUFFOLK VOLUNTARY ORGANISATIONS FORU,600.00,Community Wellbeing,Contributions & Donations,19 Jan 2023,2223/11,SME,N,
0000365950,NORTON PARISH COUNCIL,"1,370.00",Grants & Contrbns,Contributions & Donations,03 Feb 2023,2223/11,SME,N,
0000365951,NORTON PARISH COUNCIL,"1,370.00",Grants & Contrbns,Contributions & Donations,03 Feb 2023,2223/11,SME,N,
0000365952,NORTON PARISH COUNCIL,630.00,Grants & Contrbns,Contributions & Donations,03 Feb 2023,2223/11,SME,N,
0000366295,OFFTON & WILLISHAM VILLAGE HALL,750.00,Devt Management - Appeals,Room Hire,16 Feb 2023,2223/11,SME,N,
0000365829,RINGSHALL PARISH COUNCIL,"20,566.35",CIL Funded REFCUS,Grants,01 Feb 2023,2223/11,SME,N,
0000366310,STONHAM PARVA PARISH COUNCIL,"1,800.00",Grants & Contrbns,Contributions & Donations,17 Feb 2023,2223/11,SME,N,
0000366095,STREET FORGE WORKSHOPS,587.00,Grants & Contrbns,Contributions & Donations,08 Feb 2023,2223/11,SME,N,
0000365881,THURSTON PARISH COUNCIL,470.00,Grants & Contrbns,Contributions & Donations,02 Feb 2023,2223/11,SME,N,
0000366092,WALSHAM LE WILLOWS MEMORIAL VILLAGE HALL,500.00,Grants & Contrbns,Contributions & Donations,08 Feb 2023,2223/11,SME,N,
0000366349,WALSHAM LE WILLOWS SPORTS CLUB,"7,728.75",Community Fund Projects-Grants,Grants,20 Feb 2023,2223/11,SME,N,
0000366091,WATTISFIELD PARISH COUNCIL,500.00,Grants & Contrbns,Contributions & Donations,08 Feb 2023,2223/11,SME,N,
0000366309,WILBY PARISH COUNCIL,"1,828.52",Grants & Contrbns,Contributions & Donations,17 Feb 2023,2223/11,SME,N,
0000365825,SUFFOLK COUNTY COUNCIL,"1,000.00",Policy & Strategy (H & W),Contributions & Donations,30 Jan 2023,2223/11,LGE,Y,50%
0000365826,SUFFOLK COUNTY COUNCIL,690.00,Open Spaces,"Equipment, Tools & Materials",31 Jan 2023,2223/11,LGE,N,
0000365892,SUFFOLK COUNTY COUNCIL,804.91,Jnt Waste Contract,Contracted Services,01 Feb 2023,2223/11,LGE,Y,50%
0000365894,SUFFOLK COUNTY COUNCIL,698.00,Organisational Devt,Recruitment,01 Feb 2023,2223/11,LGE,Y,50%
0000365929,SUFFOLK COUNTY COUNCIL,886.50,Organisational Devt,Recruitment,02 Feb 2023,2223/11,LGE,Y,50%
0000366264,SUFFOLK COUNTY COUNCIL,"1,425.00",Pre App Charging,Prof & Consultancy Fees,14 Feb 2023,2223/11,LGE,N,
0000366265,SUFFOLK COUNTY COUNCIL,"8,498.62",Garden Waste,Garden Waste Disposal,14 Feb 2023,2223/11,LGE,N,
0000366266,SUFFOLK COUNTY COUNCIL,"8,000.00",MSM Sustainable Travel,"Equipment, Tools & Materials",14 Feb 2023,2223/11,LGE,N,
0000366371,SUFFOLK COUNTY COUNCIL,"7,000.00",Devt Management - Apps,Subscriptions,20 Feb 2023,2223/11,LGE,Y,50%
0000366406,SUFFOLK COUNTY COUNCIL,"55,456.42",Trade Waste,Trade Waste Disposal,22 Feb 2023,2223/11,LGE,N,
0000366438,SUFFOLK COUNTY COUNCIL,"4,000.00",MSM Sustainable Travel,"Equipment, Tools & Materials",22 Feb 2023,2223/11,LGE,N,
0000366489,TELEFONICA UK LIMITED - O2,"1,625.04",ICT,Telephone Costs,27 Feb 2023,2223/11,LGE,Y,50%
0000365958,A. R. KENT & SONS (T/A KENT SKIPS),710.00,Voids Maintenance,Repairs,31 Jan 2023,2223/11,SME,N,
0000365939,LEX AUTOLEASE,348.97,Building Services,Lease Cars - Payment,29 Jan 2023,2223/11,SME,Y,50%
0000365940,LEX AUTOLEASE,276.83,Building Services,Lease Cars - Payment,29 Jan 2023,2223/11,SME,Y,50%
0000366365,LEX AUTOLEASE,310.10,Building Services,Lease Cars - Payment,30 Jan 2023,2223/11,SME,Y,50%
0000366466,LEX AUTOLEASE,320.52,Building Services,Lease Cars - Payment,07 Feb 2023,2223/11,SME,Y,50%
0000366467,LEX AUTOLEASE,327.22,Building Services,Lease Cars - Payment,07 Feb 2023,2223/11,SME,Y,50%
0000366468,LEX AUTOLEASE,311.29,Building Services,Lease Cars - Payment,08 Feb 2023,2223/11,SME,Y,50%
0000366469,LEX AUTOLEASE,315.39,Building Services,Lease Cars - Payment,12 Feb 2023,2223/11,SME,Y,50%
0000366470,LEX AUTOLEASE,303.08,Building Services,Lease Cars - Payment,12 Feb 2023,2223/11,SME,Y,50%
0000366471,LEX AUTOLEASE,265.48,Building Services,Lease Cars - Payment,12 Feb 2023,2223/11,SME,Y,50%
0000366472,LEX AUTOLEASE,325.05,Building Services,Lease Cars - Payment,12 Feb 2023,2223/11,SME,Y,50%
0000366473,LEX AUTOLEASE,337.78,Building Services,Lease Cars - Payment,12 Feb 2023,2223/11,SME,Y,50%
0000366474,LEX AUTOLEASE,263.72,Building Services,Lease Cars - Payment,12 Feb 2023,2223/11,SME,Y,50%
0000365427,CIVICA UK LIMITED,813.39,ICT,Desktop Software,09 Nov 2022,2223/11,LGE,N,
0000365731,PREMIER BODYWORKS,278.57,Jnt Waste Contract,Contracted Services,26 Jan 2023,2223/11,SME,Y,50%
0000366294,PREMIER BODYWORKS,392.86,Open Spaces,Plant & Vehicle - Other costs,15 Feb 2023,2223/11,SME,N,
0000365912,MID SUFFOLK CITIZENS ADVICE BUREAU,"23,875.00",Grants & Contrbns,Grants,02 Feb 2023,2223/11,SME,N,
0000365576,CLARKES OF MELTON LTD,375.00,Street & Major Road Cleansing,"Equipment, Tools & Materials",20 Jan 2023,2223/11,SME,N,
0000365911,ERNEST DOE & SONS LTD,303.63,Open Spaces,"Equipment, Tools & Materials",27 Jan 2023,2223/11,LGE,N,
0000366274,ERNEST DOE & SONS LTD,633.70,Open Spaces,"Equipment, Tools & Materials",12 Jan 2023,2223/11,LGE,N,
0000366370,ACUITY RESEARCH & PRACTICE LTD,681.65,Software/ICT Projects/Surveys,Improvements,08 Feb 2023,2223/11,SME,Y,50%
0000366430,ACUITY RESEARCH & PRACTICE LTD,653.90,Software/ICT Projects/Surveys,Improvements,22 Feb 2023,2223/11,SME,Y,50%
0000365432,WHYBROW PROPERTY SOLUTIONS LTD,"10,514.22",Voids Maintenance,Repairs,13 Jan 2023,2223/11,SME,N,
0000365585,WHYBROW PROPERTY SOLUTIONS LTD,440.00,Building Services,Repairs,20 Jan 2023,2223/11,SME,N,
0000365599,WHYBROW PROPERTY SOLUTIONS LTD,"6,624.36",Council House Adaptions,Improvements,23 Jan 2023,2223/11,SME,N,
0000365782,WHYBROW PROPERTY SOLUTIONS LTD,"5,213.69",Voids Maintenance,Repairs,30 Jan 2023,2223/11,SME,N,
0000365953,WHYBROW PROPERTY SOLUTIONS LTD,"1,600.00",Voids Maintenance,Repairs,03 Feb 2023,2223/11,SME,N,
0000366119,WHYBROW PROPERTY SOLUTIONS LTD,"5,943.76",Council House Adaptions,Improvements,09 Feb 2023,2223/11,SME,N,
0000366164,WHYBROW PROPERTY SOLUTIONS LTD,"9,984.51",Voids Maintenance,Repairs,10 Feb 2023,2223/11,SME,N,
0000365644,L A C CLEANING CONTRACTORS LIMITED,366.16,Temporary Accommodation,General Cleaning,23 Jan 2023,2223/11,SME,N,
0000365645,L A C CLEANING CONTRACTORS LIMITED,824.41,Temporary Accommodation,General Cleaning,23 Jan 2023,2223/11,SME,N,
0000365927,L A C CLEANING CONTRACTORS LIMITED,"1,545.50",Voids Maintenance,Repairs,03 Feb 2023,2223/11,SME,N,
0000366005,L A C CLEANING CONTRACTORS LIMITED,375.50,RoughSleepersInterventionYr3,General Cleaning,07 Feb 2023,2223/11,SME,N,
0000366332,L A C CLEANING CONTRACTORS LIMITED,552.50,Voids Maintenance,Repairs,17 Feb 2023,2223/11,SME,N,
0000366425,L A C CLEANING CONTRACTORS LIMITED,824.41,Temporary Accommodation,General Cleaning,22 Feb 2023,2223/11,SME,N,
0000366442,L A C CLEANING CONTRACTORS LIMITED,"1,097.50",Voids Maintenance,Repairs,23 Feb 2023,2223/11,SME,N,
0000365902,ARMSTRONG YORK ASBESTOS ENVIRONMENTAL,"15,266.40",Asbestos Survey & Reinspection,Prof & Consultancy Fees,31 Jan 2023,2223/11,SME,N,
0000365507,SUFFOLK CHAMBER OF COMMERCE,875.00,Management Team,Subscriptions,01 Feb 2023,2223/11,SME,N,
0000366101,OLD NEWTON VILLAGE HALL,"13,519.72",CIL Funded REFCUS,Grants,09 Feb 2023,2223/11,SME,N,
0000366357,OLD NEWTON VILLAGE HALL,"3,645.01",Community Fund Projects-Grants,Grants,20 Feb 2023,2223/11,SME,N,
0000365781,TAYLOR COMMERCIALS LTD,299.46,Open Spaces,Plant & Vehicle - Other costs,30 Jan 2023,2223/11,SME,N,
0000366353,HOXNE PLAYING FIELD FUND,"4,537.72",Communities,Grants,20 Feb 2023,2223/11,SME,N,
0000366380,HOXNE PLAYING FIELD FUND,"1,224.28",S106 Open Spaces Expenditure,Grants,21 Feb 2023,2223/11,SME,N,
0000365839,ROSSI LONG CONSULTING LTD,460.00,Cross Street Tech Hub,Prof & Consultancy Fees,31 Jan 2023,2223/11,SME,N,
0000366122,OXBURY CHARTERED SURVEYORS,"1,800.00","The Broadway, Badwell Ash",Prof & Consultancy Fees,30 Jan 2023,2223/11,SME,N,
0000365972,OPUS PEOPLE SOLUTIONS LTD,197.78,Health & Safety,Agency Staff,02 Feb 2023,2223/11,SME,N,
0000365972,OPUS PEOPLE SOLUTIONS LTD,626.71,Homeless Prevention Fund,Agency Staff,02 Feb 2023,2223/11,SME,N,
0000365972,OPUS PEOPLE SOLUTIONS LTD,516.36,Dev Mgmt - Applications,Agency Staff,02 Feb 2023,2223/11,SME,N,
0000366187,OPUS PEOPLE SOLUTIONS LTD,197.78,Health & Safety,Agency Staff,09 Feb 2023,2223/11,SME,N,
0000366187,OPUS PEOPLE SOLUTIONS LTD,107.88,Homeless Prevention Fund,Agency Staff,09 Feb 2023,2223/11,SME,N,
0000366187,OPUS PEOPLE SOLUTIONS LTD,68.28,Dev Mgmt - Applications,Agency Staff,09 Feb 2023,2223/11,SME,N,
0000366491,OPUS PEOPLE SOLUTIONS LTD,197.78,Health & Safety,Agency Staff,23 Feb 2023,2223/11,SME,N,
0000366491,OPUS PEOPLE SOLUTIONS LTD,136.56,Dev Mgmt - Applications,Agency Staff,23 Feb 2023,2223/11,SME,N,
0000365808,ECOSYSTEMS TREE & GROUNDS CARE,800.00,Amenity Areas,Tree felling/maintenance,31 Jan 2023,2223/11,SME,N,
0000365809,ECOSYSTEMS TREE & GROUNDS CARE,535.00,Tenancy Services,Tree felling/maintenance,31 Jan 2023,2223/11,SME,N,
0000366239,CORNERSTONE BARRISTERS,"1,200.00",Devt Management - Apps,Legal ex - Crt challenge relat,14 Feb 2023,2223/11,SME,N,
0000366146,VERTAS GROUP LTD,"1,485.00",Assets & Development,Repairs,31 Jan 2023,2223/11,SME,N,
0000366381,4PRINCIPLES CONSTRUCTION LTD,"7,499.88",Mand Disabled Facilities Grant,Grants,21 Feb 2023,2223/11,SME,N,
0000366383,4PRINCIPLES CONSTRUCTION LTD,"5,347.70",Mand Disabled Facilities Grant,Grants,21 Feb 2023,2223/11,SME,N,
0000366389,4PRINCIPLES CONSTRUCTION LTD,"1,981.46",Mand Disabled Facilities Grant,Grants,21 Feb 2023,2223/11,SME,N,
0000366398,4PRINCIPLES CONSTRUCTION LTD,"4,978.00",Mand Disabled Facilities Grant,Grants,22 Feb 2023,2223/11,SME,N,
0000365924,GALLAGHER CAR & VAN RENTALS LTD,"1,316.00",Domestic Waste,Refuse Contract,03 Feb 2023,2223/11,LGE,N,
0000366052,GALLAGHER CAR & VAN RENTALS LTD,"1,232.00",Domestic Waste,Refuse Contract,08 Feb 2023,2223/11,LGE,N,
0000366218,GALLAGHER CAR & VAN RENTALS LTD,588.00,Domestic Waste,Refuse Contract,14 Feb 2023,2223/11,LGE,N,
0000365665,GASWAY SERVICES LTD,"9,195.00",Central Heating,Improvements,03 Oct 2022,2223/11,SME,N,
0000365666,GASWAY SERVICES LTD,"8,965.00",Central Heating,Improvements,22 Nov 2022,2223/11,SME,N,
0000366189,YOUNG PROGRAMME EVENTS LTD,"1,400.00",Organisational Devt,Corporate Training,13 Feb 2023,2223/11,SME,Y,50%
0000366388,OPINION RESEARCH SERVICES LTD,"10,568.75",Customer Servs,Contracted Services,19 Oct 2022,2223/11,SME,Y,50%
0000366065,FORESOLUTIONS LTD,276.08,Open Spaces,Plant & Vehicle - Other costs,08 Feb 2023,2223/11,SME,N,
0000366090,BADWELL ASH PLAYING FIELD & RECREATION G,"1,000.00",Grants & Contrbns,Contributions & Donations,08 Feb 2023,2223/11,SME,N,
0000365760,TOSTOCK VILLAGE HALL,"1,700.00",Grants & Contrbns,Contributions & Donations,27 Jan 2023,2223/11,SME,N,
0000365761,TOSTOCK VILLAGE HALL,700.00,Grants & Contrbns,Contributions & Donations,27 Jan 2023,2223/11,SME,N,
0000366013,WOOLPIT INSTITUTE,870.00,Grants & Contrbns,Contributions & Donations,02 Feb 2023,2223/11,SME,N,
0000366443,STOWUPLAND PRE SCHOOL & THE MIGHTY OAKS,624.36,Grants & Contrbns,Contributions & Donations,23 Feb 2023,2223/11,SME,N,
0000366347,BACTON VILLAGE HALL,"1,806.40",Community Fund Projects-Grants,Grants,20 Feb 2023,2223/11,SME,N,
0000366094,LORD THURLOW HALL,"1,000.00",Grants & Contrbns,Contributions & Donations,08 Feb 2023,2223/11,SME,N,
0000366356,STUSTON PARISH MEETING,"3,760.00",Grants & Contrbns,Contributions & Donations,20 Feb 2023,2223/11,SME,N,
0000366237,LOFTY HEIGHTS LTD,"1,132.00",Tenancy Services,Grounds & Site Maintenance,15 Feb 2023,2223/11,SME,N,
0000366004,RICHARD UTTING ASSOCIATES LLP,"2,124.74",Stowmarket Middle School,Prof & Consultancy Fees,06 Feb 2023,2223/11,SME,N,
0000366450,SOUTH NORFOLK COUNCIL,300.00,Organisational Devt,Corporate Training,11 Jan 2023,2223/11,LGE,Y,50%
0000365537,MANSION HOUSE PUBLISHING LTD,316.50,Independent Living Service,Prof & Consultancy Fees,17 Jan 2023,2223/11,SME,N,
0000365537,MANSION HOUSE PUBLISHING LTD,316.50,Housing Standards,Prof & Consultancy Fees,17 Jan 2023,2223/11,SME,Y,100%
0000366229,MANSION HOUSE PUBLISHING LTD,"3,609.00",Independent Living Service,Prof & Consultancy Fees,10 Feb 2023,2223/11,SME,Y,50%
0000365848,THE STOWMARKET GLASS COMPANY LTD,512.80,Building Services,Repairs,19 Jan 2023,2223/11,SME,N,
0000365849,THE STOWMARKET GLASS COMPANY LTD,533.20,Building Services,Repairs,19 Jan 2023,2223/11,SME,N,
0000365850,THE STOWMARKET GLASS COMPANY LTD,594.34,Building Services,Repairs,19 Jan 2023,2223/11,SME,N,
0000365852,THE STOWMARKET GLASS COMPANY LTD,304.20,Building Services,Repairs,25 Jan 2023,2223/11,SME,N,
0000365856,THE STOWMARKET GLASS COMPANY LTD,372.60,Window & Door Rplcmts,Repairs,06 Jan 2023,2223/11,SME,N,
0000366221,ASPECT CONTRACTS LTD,"5,203.00",Asbestos,Improvements,13 Feb 2023,2223/11,LGE,N,
0000365831,THE OYSTER PARTNERSHIP LTD,"1,036.00",Building Services,Agency Staff,01 Feb 2023,2223/11,SME,Y,50%
0000365832,THE OYSTER PARTNERSHIP LTD,"2,045.10",Building Servs Tech Staff,Agency Staff,01 Feb 2023,2223/11,SME,Y,50%
0000365833,THE OYSTER PARTNERSHIP LTD,"2,656.25",Building Servs Tech Staff,Agency Staff,01 Feb 2023,2223/11,SME,Y,50%
0000365834,THE OYSTER PARTNERSHIP LTD,"3,150.00",HRA Strategic Property,Agency Staff,01 Feb 2023,2223/11,SME,Y,50%
0000365835,THE OYSTER PARTNERSHIP LTD,"2,900.00",Financial Servs,Agency Staff,01 Feb 2023,2223/11,SME,Y,50%
0000365836,THE OYSTER PARTNERSHIP LTD,"2,456.30",Building Servs Tech Staff,Agency Staff,01 Feb 2023,2223/11,SME,Y,50%
0000365837,THE OYSTER PARTNERSHIP LTD,923.25,Building Services,Agency Staff,01 Feb 2023,2223/11,SME,Y,50%
0000366074,THE OYSTER PARTNERSHIP LTD,"2,025.75",Building Servs Tech Staff,Agency Staff,08 Feb 2023,2223/11,SME,Y,50%
0000366075,THE OYSTER PARTNERSHIP LTD,"1,008.00",Building Services,Agency Staff,08 Feb 2023,2223/11,SME,Y,50%
0000366076,THE OYSTER PARTNERSHIP LTD,"2,900.00",Financial Servs,Agency Staff,08 Feb 2023,2223/11,SME,Y,50%
0000366077,THE OYSTER PARTNERSHIP LTD,"2,423.00",Building Servs Tech Staff,Agency Staff,08 Feb 2023,2223/11,SME,Y,50%
0000366078,THE OYSTER PARTNERSHIP LTD,"2,656.25",Building Servs Tech Staff,Agency Staff,08 Feb 2023,2223/11,SME,Y,50%
0000366079,THE OYSTER PARTNERSHIP LTD,931.37,Building Services,Agency Staff,08 Feb 2023,2223/11,SME,Y,50%
0000366080,THE OYSTER PARTNERSHIP LTD,"3,150.00",HRA Strategic Property,Agency Staff,08 Feb 2023,2223/11,SME,Y,50%
0000366256,THE OYSTER PARTNERSHIP LTD,"2,656.25",Building Servs Tech Staff,Agency Staff,15 Feb 2023,2223/11,SME,Y,50%
0000366257,THE OYSTER PARTNERSHIP LTD,"2,429.30",Building Servs Tech Staff,Agency Staff,15 Feb 2023,2223/11,SME,Y,50%
0000366258,THE OYSTER PARTNERSHIP LTD,"3,150.00",HRA Strategic Property,Agency Staff,15 Feb 2023,2223/11,SME,Y,50%
0000366259,THE OYSTER PARTNERSHIP LTD,"1,694.75",Building Servs Tech Staff,Agency Staff,15 Feb 2023,2223/11,SME,Y,50%
0000366260,THE OYSTER PARTNERSHIP LTD,420.00,Building Services,Agency Staff,15 Feb 2023,2223/11,SME,Y,50%
0000366261,THE OYSTER PARTNERSHIP LTD,"1,107.90",Building Services,Agency Staff,15 Feb 2023,2223/11,SME,Y,50%
0000366411,THE OYSTER PARTNERSHIP LTD,"1,095.59",Building Services,Agency Staff,22 Feb 2023,2223/11,SME,Y,50%
0000366412,THE OYSTER PARTNERSHIP LTD,"2,418.05",Building Servs Tech Staff,Agency Staff,22 Feb 2023,2223/11,SME,Y,50%
0000366413,THE OYSTER PARTNERSHIP LTD,"2,656.25",Building Servs Tech Staff,Agency Staff,22 Feb 2023,2223/11,SME,Y,50%
0000366414,THE OYSTER PARTNERSHIP LTD,"2,032.05",Building Servs Tech Staff,Agency Staff,22 Feb 2023,2223/11,SME,Y,50%
0000366415,THE OYSTER PARTNERSHIP LTD,560.00,Building Services,Agency Staff,22 Feb 2023,2223/11,SME,Y,50%
0000366416,THE OYSTER PARTNERSHIP LTD,"3,650.00",HRA Strategic Property,Agency Staff,22 Feb 2023,2223/11,SME,Y,50%
0000423033,RIX PETROLEUM (EAST ANGLIA) LTD,"9,157.39",Open Spaces,Plant & Vehicle Fuel,02 Feb 2023,2223/11,SME,N,
0000423033,RIX PETROLEUM (EAST ANGLIA) LTD,35.00,Tenancy Services,Heating Oil,02 Feb 2023,2223/11,SME,N,
0000366328,KNOWLES ASSOCIATES TFM LTD,405.50,Building Services,Plant & Vehicle - Other costs,17 Feb 2023,2223/11,SME,Y,50%
0000365864,VIVID RESOURCING,700.00,Building Servs Tech Staff,Agency Staff,25 Jan 2023,2223/11,SME,Y,50%
0000365913,VIVID RESOURCING,"1,750.00",Building Servs Tech Staff,Agency Staff,01 Feb 2023,2223/11,SME,Y,50%
0000366106,VIVID RESOURCING,"1,798.60",Building Servs Tech Staff,Agency Staff,08 Feb 2023,2223/11,SME,Y,50%
0000366333,VIVID RESOURCING,"1,844.50",Building Servs Tech Staff,Agency Staff,15 Feb 2023,2223/11,SME,Y,50%
0000366410,VIVID RESOURCING,"1,801.30",Building Servs Tech Staff,Agency Staff,22 Feb 2023,2223/11,SME,Y,50%
0000365838,NORTHUMBRIAN WATER LTD,33.46,Cedars Park,Legionella Testing,01 Feb 2023,2223/11,LGE,N,
0000365838,NORTHUMBRIAN WATER LTD,33.46,Creeting Rd Depot,Legionella Testing,01 Feb 2023,2223/11,LGE,Y,50%
0000365838,NORTHUMBRIAN WATER LTD,33.48,Open Spaces,Legionella Testing,01 Feb 2023,2223/11,LGE,N,
0000365838,NORTHUMBRIAN WATER LTD,507.82,Sheltered Accommodation,Legionella Testing,01 Feb 2023,2223/11,LGE,N,
0000365838,NORTHUMBRIAN WATER LTD,39.53,Tacon Close Eye TDP,Legionella Testing,01 Feb 2023,2223/11,LGE,N,
0000365838,NORTHUMBRIAN WATER LTD,39.53,Temporary Accommodation,Legionella Testing,01 Feb 2023,2223/11,LGE,N,
0000365838,NORTHUMBRIAN WATER LTD,629.52,Tenancy Services,Legionella Testing,01 Feb 2023,2223/11,LGE,N,
0000365838,NORTHUMBRIAN WATER LTD,72.99,Wingfield Barns,Legionella Testing,01 Feb 2023,2223/11,LGE,N,
0000365955,UNIVERSITY OF CAMBRIDGE FACULTY OF,"7,878.00",Organisational Devt,Post-Entry Training,31 Jan 2023,2223/11,SME,Y,50%
0000366325,GIPPING OCCUPATIONAL HEALTH LTD,270.00,Health & Safety,Contracted Services,17 Feb 2023,2223/11,SME,N,
0000366394,REDGRAVE COMMUNITY SOCIETY LTD,"7,190.00",Grants & Contrbns,Contributions & Donations,21 Feb 2023,2223/11,SME,N,
0000366054,RESIDENTIALLY CHARTERED SURVEYORS,"1,125.00","Bickers Hill, Laxfield",Prof & Consultancy Fees,31 Jan 2023,2223/11,SME,N,
0000366198,RESIDENTIALLY CHARTERED SURVEYORS,"4,500.00",Tenancy Services,Prof & Consultancy Fees,13 Feb 2023,2223/11,SME,N,
0000366222,TOP FLOORS (EAST ANGLIA) LTD,"1,292.10",Other Temp Accommodation,"Equipment, Tools & Materials",08 Feb 2023,2223/11,SME,N,
0000365802,SILCOCK DAWSON & PARTNERS LTD,"10,000.00",SHELF Project,Prof & Consultancy Fees,31 Jan 2023,2223/11,SME,N,
0000366393,GREENFUTURE SOLUTIONS LTD,"9,645.70",Mand Disabled Facilities Grant,Grants,21 Feb 2023,2223/11,SME,N,
0000366009,CREDITSAFE BUSINESS SOLUTIONS LTD,550.00,Commissioning & Procurement,Subscriptions,24 Oct 2022,2223/11,SME,Y,50%
0000366118,SHORTS PROPERTY PEOPLE,"1,028.12",Household Support Grant,Misc Supplies & Services Costs,09 Feb 2023,2223/11,SME,N,
0000365804,HAMSON BARRON SMITH LTD,"6,960.72",Strategic Investment Fund,Prof & Consultancy Fees,31 Jan 2023,2223/11,LGE,N,
0000365805,HAMSON BARRON SMITH LTD,"1,550.00",BRRP-MarketTownVision&Invest,Prof & Consultancy Fees,31 Jan 2023,2223/11,LGE,N,
0000365766,A C LEIGH (NORWICH) LTD,395.56,Building Services,"Equipment, Tools & Materials",25 Jan 2023,2223/11,SME,N,
0000365770,A C LEIGH (NORWICH) LTD,360.35,Building Services,"Equipment, Tools & Materials",26 Jan 2023,2223/11,SME,N,
0000366125,A C LEIGH (NORWICH) LTD,308.44,Building Services,"Equipment, Tools & Materials",08 Feb 2023,2223/11,SME,N,
0000366134,A C LEIGH (NORWICH) LTD,806.20,Building Services,"Equipment, Tools & Materials",09 Feb 2023,2223/11,SME,N,
0000366196,A C LEIGH (NORWICH) LTD,806.20,Building Services,"Equipment, Tools & Materials",10 Feb 2023,2223/11,SME,N,
0000365785,SUFFOLK POWER EQUIPMENT,"1,150.00",Open Spaces,Plant & Vehicle - Other costs,31 Jan 2023,2223/11,ST,N,
0000366186,SUFFOLK POWER EQUIPMENT,341.79,Open Spaces,Plant & Vehicle - Other costs,09 Feb 2023,2223/11,ST,N,
0000365959,3 POINT PROPERTY MANAGEMENT LTD,675.00,Guaranteed Rent Scheme,Rent Payable,06 Feb 2023,2223/11,SME,N,
0000365977,3 POINT PROPERTY MANAGEMENT LTD,895.00,Guaranteed Rent Scheme,Rent Payable,06 Feb 2023,2223/11,SME,N,
0000365978,3 POINT PROPERTY MANAGEMENT LTD,825.00,Guaranteed Rent Scheme,Rent Payable,06 Feb 2023,2223/11,SME,N,
0000365990,3 POINT PROPERTY MANAGEMENT LTD,595.00,Guaranteed Rent Scheme,Rent Payable,06 Feb 2023,2223/11,SME,N,
0000366147,OAKPARK SECURITY SYSTEMS LTD,"1,395.00",Temporary Accommodation,Misc Premises Costs,31 Jan 2023,2223/11,LGE,N,
0000365904,FLAGSHIP HOUSING GROUP LTD-RENT ACCOUNT,"1,100.00",Homeless Prevention Fund,Misc Supplies & Services Costs,02 Feb 2023,2223/11,LGE,N,
0000366436,FLAGSHIP HOUSING GROUP LTD-RENT ACCOUNT,526.50,Homeless Prevention Fund,Misc Supplies & Services Costs,23 Feb 2023,2223/11,LGE,N,
0000366297,SUFFOLK ENTERTAINMENTS AT TANGENT,"2,200.00",Devt Management - Appeals,Misc Supplies & Services Costs,18 Feb 2023,2223/11,SME,N,
0000366391,DG ACCESSIBLE DESIGNS,"1,157.48",Mand Disabled Facilities Grant,Grants,21 Feb 2023,2223/11,SME,N,
0000366032,ILIFFE MEDIA PUBLISHING LTD,255.00,MSM Housing Solutions,Misc Supplies & Services Costs,24 Jan 2021,2223/11,LGE,N,
0000366033,ILIFFE MEDIA PUBLISHING LTD,255.00,MSM Housing Solutions,Misc Supplies & Services Costs,21 Feb 2021,2223/11,LGE,N,
0000365935,HUGHES TRADE,518.80,Other Temp Accommodation,Furniture,03 Feb 2023,2223/11,LGE,N,
0000366137,HUGHES TRADE,366.35,Other Temp Accommodation,Furniture,10 Feb 2023,2223/11,LGE,N,
0000366138,HUGHES TRADE,277.31,Homeless Prevention Fund,Misc Supplies & Services Costs,06 Feb 2023,2223/11,LGE,N,
0000366139,HUGHES TRADE,282.78,RoughSleepersInterventionYr3,Furniture,10 Feb 2023,2223/11,LGE,N,
0000366317,HUGHES TRADE,270.66,Other Temp Accommodation,Furniture,17 Feb 2023,2223/11,LGE,N,
0000365612,APTL ENTERPRISES LTD,"1,440.00",PV Panels,Contracted Services,22 Dec 2022,2223/11,SME,N,
0000365613,APTL ENTERPRISES LTD,"4,965.00",PV Panels,Contracted Services,22 Jan 2023,2223/11,SME,N,
0000366262,BATTISFORD VILLAGE HALL MGT COMMITTEE,621.85,Grants & Contrbns,Contributions & Donations,15 Feb 2023,2223/11,SME,N,
0000365872,WASHCO LTD,467.00,Sheltered Accommodation,"Equipment, Tools & Materials",01 Feb 2023,2223/11,SME,N,
0000366319,PEOPLE FOCUSED TRAINING & SOLUTIONS LTD,"2,299.00",Organisational Devt,Corporate Training,17 Feb 2023,2223/11,ST,Y,50%
0000365496,ANGLIA COMMERCIAL FLOORING LTD,960.30,Building Services,Repairs,12 Jan 2023,2223/11,SME,N,
0000365602,ANGLIA COMMERCIAL FLOORING LTD,258.46,Kitchens/Bathrooms,Repairs,23 Jan 2023,2223/11,SME,N,
0000365840,ANGLIA COMMERCIAL FLOORING LTD,781.64,Voids Maintenance,Repairs,01 Feb 2023,2223/11,SME,N,
0000365915,ANGLIA COMMERCIAL FLOORING LTD,601.26,Voids Maintenance,Repairs,02 Feb 2023,2223/11,SME,N,
0000365916,ANGLIA COMMERCIAL FLOORING LTD,270.57,Voids Maintenance,Repairs,02 Feb 2023,2223/11,SME,N,
0000365917,ANGLIA COMMERCIAL FLOORING LTD,759.31,Voids Maintenance,Repairs,02 Feb 2023,2223/11,SME,N,
0000365918,ANGLIA COMMERCIAL FLOORING LTD,853.31,Voids Maintenance,Repairs,02 Feb 2023,2223/11,SME,N,
0000365919,ANGLIA COMMERCIAL FLOORING LTD,791.76,Voids Maintenance,Repairs,02 Feb 2023,2223/11,SME,N,
0000365920,ANGLIA COMMERCIAL FLOORING LTD,"1,044.81",Voids Maintenance,Repairs,02 Feb 2023,2223/11,SME,N,
0000365921,ANGLIA COMMERCIAL FLOORING LTD,643.49,Voids Maintenance,Repairs,02 Feb 2023,2223/11,SME,N,
0000365922,ANGLIA COMMERCIAL FLOORING LTD,547.75,Voids Maintenance,Repairs,02 Feb 2023,2223/11,SME,N,
0000365983,ANGLIA COMMERCIAL FLOORING LTD,721.51,Building Services,Repairs,06 Feb 2023,2223/11,SME,N,
0000365984,ANGLIA COMMERCIAL FLOORING LTD,432.91,Building Services,Repairs,06 Feb 2023,2223/11,SME,N,
0000365985,ANGLIA COMMERCIAL FLOORING LTD,590.89,Building Services,Repairs,06 Feb 2023,2223/11,SME,N,
0000365986,ANGLIA COMMERCIAL FLOORING LTD,491.65,Building Services,Repairs,06 Feb 2023,2223/11,SME,N,
0000365987,ANGLIA COMMERCIAL FLOORING LTD,491.65,Building Services,Repairs,06 Feb 2023,2223/11,SME,N,
0000365989,ANGLIA COMMERCIAL FLOORING LTD,252.53,Kitchens/Bathrooms,Repairs,06 Feb 2023,2223/11,SME,N,
0000366193,CABBAGES & KINGS,742.00,Devt Management - Apps,Contracted Services,10 Feb 2023,2223/11,SME,N,
0000423038,ANGLIAN WATER BUS (NAT) LTD T/A WAVE,"3,347.81",Creeting Rd Depot,Water Rates - Metered,12 Feb 2023,2223/11,LGE,Y,50%
0000423038,ANGLIAN WATER BUS (NAT) LTD T/A WAVE,442.27,Headquarters General,Water Rates - Metered,12 Feb 2023,2223/11,LGE,N,
0000423038,ANGLIAN WATER BUS (NAT) LTD T/A WAVE,32.26,HRA Strategic Property,Water Rates - Metered,12 Feb 2023,2223/11,LGE,N,
0000423038,ANGLIAN WATER BUS (NAT) LTD T/A WAVE,130.22,Open Spaces,Water Rates - Metered,12 Feb 2023,2223/11,LGE,N,
0000423038,ANGLIAN WATER BUS (NAT) LTD T/A WAVE,998.44,Public Conveniences,Water Rates - Metered,12 Feb 2023,2223/11,LGE,N,
0000423038,ANGLIAN WATER BUS (NAT) LTD T/A WAVE,1.04,Recycling Centre,Water Rates - Metered,12 Feb 2023,2223/11,LGE,N,
0000423038,ANGLIAN WATER BUS (NAT) LTD T/A WAVE,4.21,Sewage Treatment Works,Water Rates - Metered,12 Feb 2023,2223/11,LGE,N,
0000423038,ANGLIAN WATER BUS (NAT) LTD T/A WAVE,"2,010.19",Sheltered Accommodation,Water Rates - Metered,12 Feb 2023,2223/11,LGE,N,
0000423038,ANGLIAN WATER BUS (NAT) LTD T/A WAVE,14.04,Tacon Close Eye TDP,Water Rates - Metered,12 Feb 2023,2223/11,LGE,N,
0000423038,ANGLIAN WATER BUS (NAT) LTD T/A WAVE,60.15,Temporary Accommodation,Water Rates - Metered,12 Feb 2023,2223/11,LGE,N,
0000423038,ANGLIAN WATER BUS (NAT) LTD T/A WAVE,13.93,Tenancy Services,Water Rates - Metered,12 Feb 2023,2223/11,LGE,N,
0000423038,ANGLIAN WATER BUS (NAT) LTD T/A WAVE,21.28,Wingfield Barns,Water Rates - Metered,12 Feb 2023,2223/11,LGE,N,
0000366112,ALBION COMPUTERS PLC,601.65,Devt Management - Apps,Computer Equpt Purchases,02 Feb 2023,2223/11,SME,Y,45%
0000366113,ALBION COMPUTERS PLC,"8,163.00",Devt Management - Apps,Computer Equpt Purchases,26 Jan 2023,2223/11,SME,Y,55%
0000366028,STUDLEY CAPITAL LIMITED,"1,425.00",MSM Skills & Innovation Centre,Prof & Consultancy Fees,07 Feb 2023,2223/11,ST,N,
0000366029,STUDLEY CAPITAL LIMITED,475.00,MSM Feasibility & Match Fundin,Prof & Consultancy Fees,07 Feb 2023,2223/11,ST,N,
0000365830,GREENACRE RECRUITMENT LTD,"2,075.00",Building Services,Agency Staff,01 Feb 2023,2223/11,SME,Y,50%
0000366135,GREENACRE RECRUITMENT LTD,"2,075.00",Building Services,Agency Staff,09 Feb 2023,2223/11,SME,Y,50%
0000366280,GREENACRE RECRUITMENT LTD,"2,075.00",Building Services,Agency Staff,16 Feb 2023,2223/11,SME,Y,50%
0000366408,GREENACRE RECRUITMENT LTD,"2,075.00",Building Services,Agency Staff,22 Feb 2023,2223/11,SME,Y,50%
0000365897,FRESSINGFIELD SANCROFT HALL,405.00,Policy & Strategy (H & W),Contributions & Donations,05 Dec 2022,2223/11,SME,N,
0000365823,MID SUFFOLK GROWTH LTD,"1,515.00","Cedars Park C & D, Stowmarket",Prof & Consultancy Fees,31 Jan 2023,2223/11,SME,N,
0000366089,THE CODDENHAM CENTRE,"5,363.88",Communities,Grants,08 Feb 2023,2223/11,SME,N,
0000366055,DEMOCRACY COUNTS LTD,"10,000.00",Electoral Registration,Returning Officer Fees,31 Jan 2023,2223/11,SME,N,
0000365793,WATERLOGIC,880.80,Creeting Rd Depot,Contracted Services,15 Dec 2022,2223/11,LGE,Y,50%
0000366003,PENTACO CONSTRUCTION LTD,"270,630.00",Stowmarket Middle School,Major Contracts,31 Jan 2023,2223/11,SME,N,
0000366096,HAUGHLEY PLAYING FIELD BOWLS CLUB,992.00,Grants & Contrbns,Contributions & Donations,08 Feb 2023,2223/11,SME,N,
0000366140,ACORN MOBILITY SERVICES LTD,"3,495.00",Mand Disabled Facilities Grant,Grants,08 Feb 2023,2223/11,LGE,N,
0000365643,HEADWAY UK LTD,735.13,Sheltered Accommodation,Fire Prevention,24 Jan 2023,2223/11,SME,N,
0000366308,LIMELEASE LTD,435.00,Guaranteed Rent Scheme,Rent Payable,20 Feb 2023,2223/11,SME,N,
0000366312,DEBENHAM SHED,"1,500.00",Grants & Contrbns,Contributions & Donations,20 Feb 2023,2223/11,SME,N,
0000365397,BUCHER MUNICIPAL LTD,509.71,Street & Major Road Cleansing,Plant & Vehicle - Other costs,06 Jan 2023,2223/11,LGE,N,
0000366127,BUCHER MUNICIPAL LTD,509.71,Street & Major Road Cleansing,"Equipment, Tools & Materials",07 Feb 2023,2223/11,LGE,N,
0000366184,GIPPING CONSTRUCTION LTD,"10,228.79",Regen Fund - HQ Sites,Prof & Consultancy Fees,09 Feb 2023,2223/11,SME,N,
0000366184,GIPPING CONSTRUCTION LTD,"133,913.21",Needham Market Middle School,Prof & Consultancy Fees,09 Feb 2023,2223/11,SME,N,
0000366322,CAPITA BUSINESS SERVICES LTD (PAY360),"1,095.00",Civil Parking Enforcement,Contracted Services,17 Feb 2023,2223/11,LGE,Y,50%
0000366302,PRIVATE LANDLORD,786.50,Guaranteed Rent Scheme,Rent Payable,20 Feb 2023,2223/11,ST,N,
0000365996,PAUL WRIGHT & CO,775.00,Guaranteed Rent Scheme,Rent Payable,06 Feb 2023,2223/11,SME,N,
0000366167,PRIVATE LANDLORD,786.50,Guaranteed Rent Scheme,Rent Payable,13 Feb 2023,2223/11,ST,N,
0000365753,COUNTRYSTYLE RECYCLING LTD,"3,525.00",Trade Waste,Trade Waste Disposal,26 Oct 2022,2223/11,SME,Y,50%
0000365754,COUNTRYSTYLE RECYCLING LTD,750.00,Trade Waste,Trade Waste Disposal,26 Oct 2022,2223/11,SME,Y,50%
0000365901,COUNTRYSTYLE RECYCLING LTD,"5,606.01",Bring Sites,Contracted Services,31 Jan 2023,2223/11,SME,N,
0000365866,DGL QUALITY MANAGEMENT LTD,"1,092.00",Stowmarket Middle School,Prof & Consultancy Fees,31 Jan 2023,2223/11,SME,N,
0000366385,DGL QUALITY MANAGEMENT LTD,409.80,Needham Market Middle School,Prof & Consultancy Fees,31 Jan 2023,2223/11,SME,N,
0000365682,CHRISTCHURCH NEEDHAM MARKET,"1,200.00",Grants & Contrbns,Contributions & Donations,25 Jan 2023,2223/11,SME,N,
0000365683,NEEDHAM MARKET COMMUNITY CHINWAG,"1,000.00",Grants & Contrbns,Contributions & Donations,25 Jan 2023,2223/11,SME,N,
0000365534,ARAN INSULATION LTD,"2,669.82",Insulation Imps,Improvements,09 Jan 2023,2223/11,SME,N,
0000365604,ARAN INSULATION LTD,"1,710.00",Insulation Imps,Improvements,23 Jan 2023,2223/11,SME,N,
0000365637,ARAN INSULATION LTD,"2,998.57",Insulation Imps,Improvements,24 Jan 2023,2223/11,SME,N,
0000365962,ARAN INSULATION LTD,"1,406.00",Insulation Imps,Improvements,06 Feb 2023,2223/11,SME,N,
0000365963,ARAN INSULATION LTD,"4,367.75",Insulation Imps,Improvements,06 Feb 2023,2223/11,SME,N,
0000366056,ARAN INSULATION LTD,337.00,Insulation Imps,Improvements,31 Jan 2023,2223/11,SME,N,
0000423040,HM REVENUES & CUSTOMS (CIS TAX),522.95,Interest payable  (GF),External Interest Charges,21 Feb 2023,2223/11,LGE,N,
0000366435,THE STONE FOUNDATION,"3,434.01",Household Support Grant,Misc Supplies & Services Costs,23 Feb 2023,2223/11,SME,N,
0000365784,IAN BOOTH CONSULTANT ENGINEER LTD,960.00,Strategic Assets,Prof & Consultancy Fees,30 Jan 2023,2223/11,SME,N,
0000365806,IAN BOOTH CONSULTANT ENGINEER LTD,610.40,Roads and Paths,Improvements,31 Jan 2023,2223/11,SME,N,
0000365975,MARCHDELL LTD,715.00,Guaranteed Rent Scheme,Rent Payable,06 Feb 2023,2223/11,SME,N,
0000365759,PRIVATE LANDLORD,"1,300.00",Guaranteed Rent Scheme,Rent Payable,30 Jan 2023,2223/11,ST,N,
0000366493,PRIVATE LANDLORD,"1,300.00",Guaranteed Rent Scheme,Rent Payable,27 Feb 2023,2223/11,ST,N,
0000365681,IPSERV LTD,"1,081.85",Communications,Commercial Printing,25 Jan 2023,2223/11,SME,N,
0000366486,IPSERV LTD,533.50,Central Printing,Commercial Printing,15 Feb 2023,2223/11,SME,N,
0000366486,IPSERV LTD,842.08,Communications,Commercial Printing,15 Feb 2023,2223/11,SME,N,
0000366386,PRIVATE LANDLORD,669.00,Guaranteed Rent Scheme,Rent Payable,21 Feb 2023,2223/11,ST,N,
0000365801,JACKSON LIFT SERVICES LTD,277.00,Sheltered Accommodation,Repairs,31 Jan 2023,2223/11,LGE,N,
0000366278,OLD NEWTON BOWLS CLUB,500.00,Grants & Contrbns,Contributions & Donations,16 Feb 2023,2223/11,SME,N,
0000365947,PRIVATE LANDLORD,650.00,Guaranteed Rent Scheme,Rent Payable,06 Feb 2023,2223/11,ST,N,
0000365903,BUCKINGHAM FUTURES,"1,147.50",Covid-19 Test and Trace,Agency Staff,01 Feb 2023,2223/11,SME,Y,50%
0000366114,BUCKINGHAM FUTURES,"1,147.50",Covid-19 Test and Trace,Agency Staff,08 Feb 2023,2223/11,SME,Y,50%
0000366284,BUCKINGHAM FUTURES,"1,147.50",Covid-19 Test and Trace,Agency Staff,15 Feb 2023,2223/11,SME,Y,50%
0000366348,BACTON UNITED 89 FOOTBALL CLUB,"4,500.00",Community Fund Projects-Grants,Grants,20 Feb 2023,2223/11,SME,N,
0000365994,PRIVATE LANDLORD,555.00,Guaranteed Rent Scheme,Rent Payable,06 Feb 2023,2223/11,ST,N,
0000365995,SHJ HOMES LTD,525.00,Guaranteed Rent Scheme,Rent Payable,06 Feb 2023,2223/11,SME,N,
0000366307,SHJ HOMES LTD,550.00,Guaranteed Rent Scheme,Rent Payable,20 Feb 2023,2223/11,SME,N,
0000366428,HENLEY PRE SCHOOL CENTRE,"1,897.00",Grants & Contrbns,Contributions & Donations,23 Feb 2023,2223/11,SME,N,
0000366010,SHARPS ACOUSTICS LLP,"1,400.00",Devt Management - Appeals,Environmental  Consultancy,31 Jan 2023,2223/11,SME,N,
0000366093,WALSHAM LE WILLOWS DISTRICT WI,350.00,Grants & Contrbns,Contributions & Donations,08 Feb 2023,2223/11,SME,N,
0000366409,SANCTUARY HOUSING ASSOCIATION,"1,595.42",Tenancy Services,Other Service Charges,22 Feb 2023,2223/11,SME,N,
0000365997,DPL GROUP LTD,475.00,Leisure Contract,Repairs,06 Feb 2023,2223/11,SME,N,
0000365758,HAMILTON SMITH LETTINGS,500.00,Guaranteed Rent Scheme,Rent Payable,30 Jan 2023,2223/11,SME,N,
0000365991,HAMILTON SMITH LETTINGS,550.00,Guaranteed Rent Scheme,Rent Payable,06 Feb 2023,2223/11,SME,N,
0000366152,HAMILTON SMITH LETTINGS,775.00,Guaranteed Rent Scheme,Rent Payable,13 Feb 2023,2223/11,SME,N,
0000366161,HAMILTON SMITH LETTINGS,590.00,Guaranteed Rent Scheme,Rent Payable,13 Feb 2023,2223/11,SME,N,
0000366303,HAMILTON SMITH LETTINGS,500.00,Guaranteed Rent Scheme,Rent Payable,20 Feb 2023,2223/11,SME,N,
0000423041,HAMILTON SMITH LETTINGS,"2,216.80",Guaranteed Rent Scheme,Rent Payable,23 Feb 2023,2223/11,SME,N,
0000366098,PAY 360 LIMITED,"6,006.49",Bank Chgs,Bank Charges,09 Feb 2023,2223/11,LGE,N,
0000366240,TILE HILL INTERIM & EXECUTIVE LTD,"7,020.00",Financial Servs,Agency Staff,08 Feb 2023,2223/11,SME,Y,50%
0000366241,TILE HILL INTERIM & EXECUTIVE LTD,"7,020.00",Financial Servs,Agency Staff,08 Feb 2023,2223/11,SME,Y,50%
0000366242,TILE HILL INTERIM & EXECUTIVE LTD,"13,125.00",Organisational Devt,Agency Staff,08 Feb 2023,2223/11,SME,Y,48%
0000365946,PRIVATE LANDLORD,900.00,Guaranteed Rent Scheme,Rent Payable,06 Feb 2023,2223/11,ST,N,
0000365976,PRIVATE LANDLORD,875.00,Guaranteed Rent Scheme,Rent Payable,06 Feb 2023,2223/11,ST,N,
0000365756,BENICIA PROPERTIES LTD,650.00,Guaranteed Rent Scheme,Rent Payable,30 Jan 2023,2223/11,SME,N,
0000366141,BENICIA PROPERTIES LTD,575.00,Guaranteed Rent Scheme,Rent Payable,13 Feb 2023,2223/11,SME,N,
0000366485,BENICIA PROPERTIES LTD,650.00,Guaranteed Rent Scheme,Rent Payable,27 Feb 2023,2223/11,SME,N,
0000366417,OVO ENERGY,311.99,HRA Strategic Property,Electricity,08 Feb 2023,2223/11,LGE,N,
0000365865,GRANTHAM INDUSTRIES LTD T/A GBM DEMOLITI,"71,233.77",Paddock House Eye,Prof & Consultancy Fees,12 Jan 2023,2223/11,SME,N,
0000366305,PRIVATE LANDLORD,800.00,Guaranteed Rent Scheme,Rent Payable,20 Feb 2023,2223/11,ST,N,
0000366378,DOT TO DOT TECHNICAL LTD,375.00,Community Safety-General,Training,21 Feb 2023,2223/11,SME,Y,50%
0000365954,ACE FIRE & SECURITY SYSTEMS LTD,"3,750.00",Public Sector Decarbonisation,Prof & Consultancy Fees,25 Jan 2023,2223/11,SME,N,
0000365992,AESTIMA LTD,600.00,Building Services,BMBS Repairs Work,06 Feb 2023,2223/11,SME,N,
0000365945,NEWSQUEST MEDIA GROUP,556.20,Devt Management - Apps,Advertising&mkting (non-staff),02 Feb 2023,2223/11,LGE,N,
0000366132,NEWSQUEST MEDIA GROUP,824.00,Devt Management - Apps,Advertising&mkting (non-staff),10 Feb 2023,2223/11,LGE,N,
0000366286,NEWSQUEST MEDIA GROUP,"1,120.64",Devt Management - Apps,Advertising&mkting (non-staff),16 Feb 2023,2223/11,LGE,N,
0000366484,NEWSQUEST MEDIA GROUP,"1,318.40",Devt Management - Apps,Advertising&mkting (non-staff),23 Feb 2023,2223/11,LGE,N,
0000366116,ANGLIAN WATER SERVICES LTD,412.00,SHELF Project,Prof & Consultancy Fees,09 Feb 2023,2223/11,LGE,N,
0000365941,FMG CONSULTING LTD,"3,750.00",SHELF Project,Prof & Consultancy Fees,31 Jan 2023,2223/11,SME,N,
0000366107,ACE (ANGLIA) LTD,525.00,Customer Servs,Misc Supplies & Services Costs,27 Oct 2022,2223/11,SME,Y,50%
0000365844,CREATIVE TOURIST LTD,"11,352.00",Tourism General,Prof & Consultancy Fees,31 Jan 2023,2223/11,SME,Y,50%
0000366204,BELL DECORATING GROUP LTD,"10,369.84",Planned Maint - Ext Painting,Major Contracts,13 Feb 2023,2223/11,LGE,N,
0000365694,J COOK CARPENTRY LTD,760.00,Temporary Accommodation,Fire Prevention,25 Jan 2023,2223/11,SME,N,
0000366041,ORBIT HOUSING ASSOCIATION,"2,270.73",Household Support Grant,Misc Supplies & Services Costs,07 Feb 2023,2223/11,LGE,N,
0000366153,PRIVATE LANDLORD,800.00,Guaranteed Rent Scheme,Rent Payable,13 Feb 2023,2223/11,ST,N,
0000365895,COUNTERCULTURE PARTNERSHIP LLP,"5,850.00",Town Centres,Prof & Consultancy Fees,22 Jan 2023,2223/11,SME,N,
0000366459,STEALTH REMOVALS LTD,276.00,Homeless Prevention Fund,Removal Expenses,30 Jan 2023,2223/11,SME,N,
0000365886,ALAN CONISBEE & ASSOCIATES LTD,"5,687.50",SHELF Project,Prof & Consultancy Fees,31 Jan 2023,2223/11,SME,N,
0000366008,GCS COMPLIANCE LTD,"1,302.38",Building Services,Prof & Consultancy Fees,31 Jan 2023,2223/11,SME,N,
0000366429,R G MAINTENANCE SERVICES LTD,"1,600.00",Neighbourhood Services,Neighbourhood Improvement Proj,23 Feb 2023,2223/11,SME,N,
0000365827,BLOOM PROCUREMENT SERVICES LTD,"117,715.50",SHELF Project,Prof & Consultancy Fees,19 Jan 2023,2223/11,SME,N,
0000365828,BLOOM PROCUREMENT SERVICES LTD,"61,866.00",SHELF Project,Prof & Consultancy Fees,26 Jan 2023,2223/11,SME,N,
0000366382,SBA SUSTAINABILITY LIMITED,"2,750.00",SHELF Project,Prof & Consultancy Fees,31 Dec 2022,2223/11,SME,N,
0000366304,THOMPSONS ESTATE OFFICES LTD,670.00,Guaranteed Rent Scheme,Rent Payable,20 Feb 2023,2223/11,SME,N,
0000366088,APROPOS TRAINING LIMITED,340.00,Health & Safety,Training,08 Feb 2023,2223/11,SME,N,
0000366211,COMMUNITIES TOGETHER EAST ANGLIA,"3,368.64",Wellbeing CCG Funding,"Equipment, Tools & Materials",14 Feb 2023,2223/11,SME,N,
0000366419,LAPWING SUFFOLK LTD,"12,600.00",Shared Prosperity Fund,Contributions & Donations,22 Feb 2023,2223/11,SME,N,
0000366168,PRIVATE LANDLORD,895.00,Guaranteed Rent Scheme,Rent Payable,13 Feb 2023,2223/11,ST,N,
0000365757,BENCHMARK UK LTD,"2,880.00",MSM Town Centre Vision,"Equipment, Tools & Materials",30 Jan 2023,2223/11,SME,N,
0000365698,ALZ STORE UK LTD,"1,609.87",Community Wellbeing,Contributions & Donations,26 Jan 2023,2223/11,SME,N,
0000423039,SEFE ENERGY LIMITED,267.64,Creeting Rd Depot,Gas,16 Feb 2023,2223/11,LGE,Y,50%
0000423039,SEFE ENERGY LIMITED,28.88,Headquarters General,Gas,16 Feb 2023,2223/11,LGE,N,
0000423039,SEFE ENERGY LIMITED,235.59,HRA Strategic Property,Gas,16 Feb 2023,2223/11,LGE,N,
0000423039,SEFE ENERGY LIMITED,"18,082.47",Leisure Contract,Gas,16 Feb 2023,2223/11,LGE,N,
0000423039,SEFE ENERGY LIMITED,13.54,Open Spaces,Gas,16 Feb 2023,2223/11,LGE,N,
0000423039,SEFE ENERGY LIMITED,"7,645.23",Sheltered Accommodation,Gas,16 Feb 2023,2223/11,LGE,N,
0000423039,SEFE ENERGY LIMITED,950.35,Temporary Accommodation,Gas,16 Feb 2023,2223/11,LGE,N,
0000423039,SEFE ENERGY LIMITED,685.62,Tenancy Services,Gas,16 Feb 2023,2223/11,LGE,N,
0000365680,NEEDHAM MARKET COMMUNITY FIRST RESPONDER,"3,000.00",Grants & Contrbns,Contributions & Donations,25 Jan 2023,2223/11,SME,N,
0000365799,OUR SPECIAL FRIENDS,"20,000.00",Communities,Contributions & Donations,27 Jan 2023,2223/11,SME,N,
0000366255,PUNCH BOWL INN CIC LTD,"1,000.00",Grants & Contrbns,Contributions & Donations,15 Feb 2023,2223/11,SME,N,
0000366315,FENN WRIGHT LLP (COLCHESTER),"1,521.00",Pure Gym & Adjacent Building,Prof & Consultancy Fees,30 Jan 2023,2223/11,SME,N,
0000366199,GROW COOK EAT CIC,"1,000.00",Grants & Contrbns,Contributions & Donations,13 Feb 2023,2223/11,SME,N,
0000366423,STOWMARKET MINIBUS & COACH HIRE LTD,380.00,Devt Management - Appeals,Misc Supplies & Services Costs,07 Feb 2023,2223/11,SME,N,
0000366427,STOWMARKET MINIBUS & COACH HIRE LTD,380.00,Devt Management - Appeals,Misc Supplies & Services Costs,16 Feb 2023,2223/11,SME,N,
0000366277,SOMERSHAM & DISTRICT COMMUNITY ASSOCIATI,"2,500.00",Grants & Contrbns,Contributions & Donations,16 Feb 2023,2223/11,SME,N,
0000366323,PRIVATE LANDLORD,"1,350.00",Homeless Prevention Fund,Misc Supplies & Services Costs,17 Feb 2023,2223/11,ST,N,
0000366313,BOLT ELECTRICAL SERVICES,"7,278.00",Renovation/Home Repair Grants,Grants,17 Feb 2023,2223/11,ST,N,
0000366311,1ST REDGRAVE & BOTESDALE BROWNIES,"1,000.00",Grants & Contrbns,Contributions & Donations,17 Feb 2023,2223/11,SME,N,
0000366336,HAUGHLEY AMATEUR THEATRICAL SOCIETY,500.00,Grants & Contrbns,Contributions & Donations,20 Feb 2023,2223/11,SME,N,
0000366405,STOWUPLAND UNITED REFORM CHURCH,554.00,Grants & Contrbns,Contributions & Donations,22 Feb 2023,2223/11,SME,N,
0000366424,LEMONTRADE GROUP LTD,"1,052.84",Renovation/Home Repair Grants,Grants,23 Feb 2023,2223/11,SME,N,
0000366496,THE TILIAN PARTNERSHIP,"18,487.50",CIL Funded REFCUS,Grants,15 Feb 2023,2223/11,SME,N,
0000000274,STOWMARKET SKIPS LTD TA SUNSKIPS,-311.00,Homeless Prevention Fund,Misc Supplies & Services Costs,16 Feb 2023,2223/11,SME,N,
0000001006,WINDIMAN LTD,-780.00,Window & Door Rplcmts,BMBS Repairs Work,13 Feb 2023,2223/11,SME,N,
0000001010,OXBURY CHARTERED SURVEYORS,"-2,550.00","Framlingham Road, Laxfield",Prof & Consultancy Fees,15 Feb 2023,2223/11,SME,N,
0000366376,GIPPING OCCUPATIONAL HEALTH LTD,-45.00,Health & Safety,Contracted Services,17 Feb 2023,2223/11,SME,N,
0000000275,HAMILTON SMITH LETTINGS,-500.00,Guaranteed Rent Scheme,Rent Payable,22 Feb 2023,2223/11,SME,N,
0000366519,AARON SERVICES LTD,"30,823.60",Planned Maint - Heating,Property Servicing,24 Feb 2023,2223/12,SME,N,
0000366650,AARON SERVICES LTD,"29,189.01",Planned Maint - Heating,Property Servicing,25 Jan 2023,2223/12,SME,N,
0000423044,AARON SERVICES LTD,"3,486.58",Planned Maint - Heating,Property Servicing,24 Feb 2023,2223/12,SME,N,
0000423051,AARON SERVICES LTD,"3,762.48",Planned Maint - Heating,Property Servicing,20 Feb 2023,2223/12,SME,N,
0000423051,AARON SERVICES LTD,97.94,Voids Maintenance,Repairs,20 Feb 2023,2223/12,SME,N,
0000423052,AARON SERVICES LTD,"21,321.37",Planned Maint - Heating,Property Servicing,03 Mar 2023,2223/12,SME,Y,1%
0000423052,AARON SERVICES LTD,"3,632.18",Voids Maintenance,Repairs,03 Mar 2023,2223/12,SME,N,
0000423053,AARON SERVICES LTD,"2,179.55",Voids Maintenance,Repairs,14 Mar 2023,2223/12,SME,N,
0000423053,AARON SERVICES LTD,"1,444.13",Planned Maint - Heating,Property Servicing,14 Mar 2023,2223/12,SME,N,
0000423088,AARON SERVICES LTD,"1,419.12",Voids Maintenance,Repairs,21 Mar 2023,2223/12,SME,N,
0000423088,AARON SERVICES LTD,"33,578.02",Planned Maint - Heating,Property Servicing,21 Mar 2023,2223/12,SME,N,
0000366511,AE WHITE SURFACING,"9,613.00",Council House Adaptions,Improvements,27 Feb 2023,2223/12,SME,N,
0000366984,AE WHITE SURFACING,"17,267.00",Public Realm TransitionProject,"Equipment, Tools & Materials",13 Mar 2023,2223/12,SME,N,
0000366499,ANGLIAN WATER,820.88,Sheltered Accommodation,Water Rates - Metered,21 Feb 2023,2223/12,LGE,N,
0000366658,ANGLIAN WATER,749.43,Sheltered Accommodation,Water Rates - Metered,27 Feb 2023,2223/12,LGE,N,
0000366855,ANGLIAN WATER,387.90,Tenancy Services,Water Rates - Metered,01 Mar 2023,2223/12,LGE,N,
0000367174,ANGLIAN WATER,754.18,Sheltered Accommodation,Water Rates - Metered,14 Mar 2023,2223/12,LGE,N,
0000366601,AQUAJET CLEANING EQUIPMENT LTD,510.00,Creeting Rd Depot,"Equipment, Tools & Materials",23 Feb 2023,2223/12,SME,Y,50%
0000366559,BEN BURGESS GARDEN EQUIPMENT,"1,500.00",Open Spaces,Plant & Vehicle - Other costs,27 Feb 2023,2223/12,SME,N,
0000367374,BEN BURGESS GARDEN EQUIPMENT,"2,400.00",Vehicle and Plant Renewals,Plant & Vehicle - Purchase,28 Mar 2023,2223/12,SME,N,
0000367391,BEN BURGESS GARDEN EQUIPMENT,"1,500.00",Open Spaces,"Equipment, Tools & Materials",28 Mar 2023,2223/12,SME,N,
0000366818,BINDER LTD,438.51,Sewage Treatment Works,Contracted Services,07 Mar 2023,2223/12,SME,N,
0000366775,BOWER FULLER,270.70,Sheltered Accommodation,Fire Prevention,28 Feb 2023,2223/12,SME,N,
0000366776,BOWER FULLER,774.74,Tenancy Services,Repairs,28 Feb 2023,2223/12,SME,N,
0000366777,BOWER FULLER,463.71,Tenancy Services,Repairs,28 Feb 2023,2223/12,SME,N,
0000366778,BOWER FULLER,733.37,Sheltered Accommodation,Repairs,28 Feb 2023,2223/12,SME,N,
0000366779,BOWER FULLER,389.73,Tenancy Services,Repairs,28 Feb 2023,2223/12,SME,N,
0000366783,BOWER FULLER,382.24,Tenancy Services,Repairs,28 Feb 2023,2223/12,SME,N,
0000366785,BOWER FULLER,593.39,Creeting Rd Depot,Grounds & Site Maintenance,28 Feb 2023,2223/12,SME,Y,50%
0000366786,BOWER FULLER,507.00,Sheltered Accommodation,Fire Prevention,28 Feb 2023,2223/12,SME,N,
0000367194,BOWER FULLER,"22,423.33",Planned Maint - Heating,Property Servicing,21 Mar 2023,2223/12,SME,N,
0000366877,BSI,633.00,Bldg Regs Chargeable Serv,Prof & Consultancy Fees,01 Mar 2023,2223/12,LGE,N,
0000366873,BUTTON & TURNER LTD,739.60,Open Spaces,Plant & Vehicle - Other costs,01 Feb 2023,2223/12,SME,N,
0000366874,BUTTON & TURNER LTD,319.81,Open Spaces,Plant & Vehicle - Other costs,22 Feb 2023,2223/12,SME,N,
0000367010,AQUASAMPLERS,525.00,Water Sampling,Sampling & Analysis,31 Dec 2022,2223/12,SME,N,
0000366835,CEDARS HOTEL LTD,"37,210.00",Homelessness Private Sector,B&B Costs,08 Mar 2023,2223/12,SME,Y,50%
0000367239,CEDARS HOTEL LTD,"2,860.00",Homelessness Private Sector,B&B Costs,22 Mar 2023,2223/12,SME,Y,50%
0000367004,CHAPPLE SIGNS LTD,483.14,Open Spaces,"Equipment, Tools & Materials",14 Mar 2023,2223/12,SME,N,
0000366841,CHARTERED INSTITUTE OF HOUSING,368.00,Management Team,Professional Subs (Staff),17 Jan 2023,2223/12,LGE,Y,50%
0000365970,CHIPSIDE LTD,"1,068.00",C Parks General,Contracted Services,31 Jan 2023,2223/12,SME,N,
0000366862,CHIPSIDE LTD,971.25,C Parks General,Contracted Services,28 Feb 2023,2223/12,SME,N,
0000366825,CLARKE FENCING LTD,"1,024.15",Renovation/Home Repair Grants,Grants,08 Mar 2023,2223/12,SME,N,
0000367187,CLARKE FENCING LTD,795.00,Open Spaces,"Equipment, Tools & Materials",15 Mar 2023,2223/12,SME,N,
0000367193,CLARKE FENCING LTD,"1,471.08",Open Spaces,"Equipment, Tools & Materials",15 Mar 2023,2223/12,SME,N,
0000366321,D W ADAMS LTD,"5,754.00",Council House Adaptions,Improvements,17 Feb 2023,2223/12,SME,N,
0000366572,D W ADAMS LTD,368.40,Disabled Facilities (Revenue),Repairs,01 Mar 2023,2223/12,SME,N,
0000366929,D W ADAMS LTD,"7,258.00",Council House Adaptions,Improvements,10 Mar 2023,2223/12,SME,N,
0000367530,DISTRICT COUNCILS' NETWORK,360.00,Organisational Devt,Training,01 Mar 2023,2223/12,LGE,Y,50%
0000366522,EAST ANGLIA CLEANING SERVICES LTD,"1,489.71",Jnt Waste Contract,General Cleaning,27 Feb 2023,2223/12,SME,Y,50%
0000366547,EAST ANGLIA CLEANING SERVICES LTD,451.47,Open Spaces,General Cleaning,27 Feb 2023,2223/12,SME,N,
0000367339,EAST ANGLIA CLEANING SERVICES LTD,"1,489.71",Jnt Waste Contract,General Cleaning,27 Mar 2023,2223/12,SME,Y,50%
0000367340,EAST ANGLIA CLEANING SERVICES LTD,451.47,Open Spaces,General Cleaning,27 Mar 2023,2223/12,SME,N,
0000366634,CIVICA ELECTION SERVICES,256.01,Electoral Registration,Contracted Services,16 Feb 2023,2223/12,LGE,N,
0000366767,CIVICA ELECTION SERVICES,"3,561.30",Electoral Registration,Returning Officer Fees,23 Jan 2023,2223/12,LGE,N,
0000366768,CIVICA ELECTION SERVICES,"1,873.90",Electoral Registration,Returning Officer Fees,19 Jan 2023,2223/12,LGE,N,
0000366770,CIVICA ELECTION SERVICES,"1,568.47",Electoral Registration,Returning Officer Fees,19 Jan 2023,2223/12,LGE,N,
0000366338,ENGLISH SECURITY,589.46,Sheltered Accommodation,Fire Prevention,20 Feb 2023,2223/12,SME,N,
0000366867,ENGLISH SECURITY,267.07,Sheltered Accommodation,Fire Prevention,09 Mar 2023,2223/12,SME,N,
0000367055,ENVIROVENT LTD,779.90,Insulation Imps,Repairs,10 Mar 2023,2223/12,SME,N,
0000367167,FELGAINS CARE CENTRE,"6,744.00",Council House Adaptions,Improvements,20 Mar 2023,2223/12,SME,N,
0000366517,FELLBRIDGE BUILDING SERVICES,"1,126.09",Building Services,Repairs,27 Feb 2023,2223/12,SME,N,
0000366640,FELLBRIDGE BUILDING SERVICES,497.76,Building Services,Repairs,02 Mar 2023,2223/12,SME,N,
0000366720,FELLBRIDGE BUILDING SERVICES,"5,699.91",Kitchens/Bathrooms,Repairs,03 Mar 2023,2223/12,SME,N,
0000366721,FELLBRIDGE BUILDING SERVICES,"1,939.73",Major Imps,Repairs,03 Mar 2023,2223/12,SME,N,
0000366724,FELLBRIDGE BUILDING SERVICES,333.48,Building Services,Repairs,03 Mar 2023,2223/12,SME,N,
0000366760,FELLBRIDGE BUILDING SERVICES,366.24,Building Services,Repairs,06 Mar 2023,2223/12,SME,N,
0000366925,FELLBRIDGE BUILDING SERVICES,"1,669.28",Building Services,Repairs,10 Mar 2023,2223/12,SME,N,
0000366926,FELLBRIDGE BUILDING SERVICES,"3,254.76",Building Services,Repairs,10 Mar 2023,2223/12,SME,N,
0000367136,FELLBRIDGE BUILDING SERVICES,310.24,Building Services,Repairs,20 Mar 2023,2223/12,SME,N,
0000367185,FELLBRIDGE BUILDING SERVICES,666.35,Building Services,Repairs,20 Mar 2023,2223/12,SME,N,
0000367264,FELLBRIDGE BUILDING SERVICES,761.12,Building Services,Repairs,23 Mar 2023,2223/12,SME,N,
0000367266,FELLBRIDGE BUILDING SERVICES,"11,089.68",Voids Maintenance,Repairs,23 Mar 2023,2223/12,SME,N,
0000367267,FELLBRIDGE BUILDING SERVICES,"8,380.95",Voids Maintenance,Repairs,23 Mar 2023,2223/12,SME,N,
0000367453,FELLBRIDGE BUILDING SERVICES,535.20,Building Services,Repairs,30 Mar 2023,2223/12,SME,N,
0000367454,FELLBRIDGE BUILDING SERVICES,"2,908.09",Insulation Imps,Repairs,30 Mar 2023,2223/12,SME,N,
0000367464,FELLBRIDGE BUILDING SERVICES,"3,422.36",Building Services,Repairs,30 Mar 2023,2223/12,SME,N,
0000366540,FORE-MOST GARAGE DOORS LTD,70.00,"Garages, Forecourts & Stores",Repairs,28 Feb 2023,2223/12,SME,N,
0000366540,FORE-MOST GARAGE DOORS LTD,717.60,"Garages, Forecourts & Stores",BMBS Repairs Work,28 Feb 2023,2223/12,SME,Y,100%
0000366540,FORE-MOST GARAGE DOORS LTD,105.00,Building Services,Repairs,28 Feb 2023,2223/12,SME,N,
0000367366,G & G SIGNS,370.45,Street Naming & Numbering,Signs,23 Mar 2023,2223/12,SME,N,
0000366751,GB ADAPTIONS LTD,"5,949.00",Mand Disabled Facilities Grant,Grants,07 Mar 2023,2223/12,SME,N,
0000365960,G4S CASH SOLUTIONS LTD,845.44,C Parks General,Audit Fees,31 Jan 2023,2223/12,LGE,N,
0000366740,G4S CASH SOLUTIONS LTD,"1,149.27",C Parks General,Audit Fees,28 Feb 2023,2223/12,LGE,N,
0000366772,GHB ROOFING,"1,240.00",Roofing,Repairs,28 Feb 2023,2223/12,SME,N,
0000366773,GHB ROOFING,720.00,Roofing,BMBS Repairs Work,28 Feb 2023,2223/12,SME,N,
0000366774,GHB ROOFING,520.00,Building Services,Repairs,28 Feb 2023,2223/12,SME,N,
0000366562,GLASDON UK LTD,253.72,Street & Major Road Cleansing,"Equipment, Tools & Materials",28 Feb 2023,2223/12,LGE,N,
0000366884,HAVEBURY HOUSING PARTNERSHIP,"1,061.70",Tenancy Services,Other Service Charges,20 Feb 2023,2223/12,SME,N,
0000366831,HAYES DIGGINS BUILDERS,560.00,Leisure Contract,Repairs,08 Mar 2023,2223/12,SME,N,
0000367014,HQN LTD,860.00,Tenancy Services,Subscriptions,14 Mar 2023,2223/12,SME,Y,50%
0000366530,HUDSON MEDIA PARTNERSHIP LTD,"2,395.00",MSM Housing Solutions,Advertising&mkting (non-staff),28 Feb 2023,2223/12,SME,Y,50%
0000366842,HUDSON MEDIA PARTNERSHIP LTD,280.00,MSM Housing Solutions,Advertising&mkting (non-staff),08 Mar 2023,2223/12,SME,Y,50%
0000367025,HUDSON MEDIA PARTNERSHIP LTD,870.00,Neighbourhood Services,Misc Supplies & Services Costs,14 Mar 2023,2223/12,SME,Y,50%
0000366883,JMP SERVICES LTD,350.00,Street & Major Road Cleansing,Contracted Services,09 Mar 2023,2223/12,SME,N,
0000366453,JOHN PEEL CENTRE FOR CREATIVE ARTS,"1,000.00",Grants & Contrbns,Contributions & Donations,23 Feb 2023,2223/12,SME,N,
0000366908,JOHN PEEL CENTRE FOR CREATIVE ARTS,"20,000.00",Communities,Grants,10 Mar 2023,2223/12,SME,N,
0000367526,JOHN PEEL CENTRE FOR CREATIVE ARTS,"1,592.99",Grants & Contrbns,Contributions & Donations,31 Mar 2023,2223/12,SME,N,
0000367527,JOHN PEEL CENTRE FOR CREATIVE ARTS,"1,000.00",Grants & Contrbns,Contributions & Donations,31 Mar 2023,2223/12,SME,N,
0000366524,KENDA-CLEAN,70.00,Creeting Rd Depot,Window Cleaning,27 Feb 2023,2223/12,SME,Y,50%
0000366524,KENDA-CLEAN,"2,930.00",Sheltered Accommodation,Window Cleaning,27 Feb 2023,2223/12,SME,N,
0000366524,KENDA-CLEAN,35.00,Tenancy Services,Window Cleaning,27 Feb 2023,2223/12,SME,N,
0000366833,KEYWAYS THE LOCKSMITHS LTD,300.00,Sheltered Accommodation,Repairs,08 Mar 2023,2223/12,SME,N,
0000367069,KEYWAYS THE LOCKSMITHS LTD,300.00,Sheltered Accommodation,Repairs,17 Mar 2023,2223/12,SME,N,
0000367058,LABC,"3,331.30",Bldg Regs Chargeable Serv,Subscriptions,06 Mar 2023,2223/12,SME,Y,45%
0000366736,M & H CIVIL ENGINEERING LTD,868.85,Voids Maintenance,Repairs,03 Mar 2023,2223/12,SME,N,
0000367459,M & H CIVIL ENGINEERING LTD,853.63,Building Services,Repairs,30 Mar 2023,2223/12,SME,N,
0000367445,MALJON TIMBER PRESERVATION LTD,"2,785.00",Insulation Imps,Repairs,27 Mar 2023,2223/12,SME,N,
0000366595,MATERIAL CHANGE COMPOSTING LTD,594.11,Open Spaces,Waste Disposal,28 Feb 2023,2223/12,LGE,N,
0000367061,MB TREES (EAST ANGLIA) LTD,"7,840.00",Public Tree Programme,Tree felling/maintenance,16 Mar 2023,2223/12,SME,N,
0000367253,MB TREES (EAST ANGLIA) LTD,"1,900.00",Public Tree Programme,Tree felling/maintenance,22 Mar 2023,2223/12,SME,N,
0000366355,MERCURY BUILDING SERVICES LTD,416.00,Cedars Park,Repairs,20 Feb 2023,2223/12,SME,N,
0000366316,MIXBROW LTD,"3,671.00",Council House Adaptions,Improvements,07 Feb 2023,2223/12,SME,N,
0000366320,MIXBROW LTD,"4,475.00",Council House Adaptions,Improvements,13 Feb 2023,2223/12,SME,N,
0000366532,MIXBROW LTD,"8,485.12",Council House Adaptions,Improvements,28 Feb 2023,2223/12,SME,N,
0000366888,MIXBROW LTD,"1,220.00",Council House Adaptions,Improvements,08 Mar 2023,2223/12,SME,N,
0000366899,MIXBROW LTD,"6,696.44",Council House Adaptions,Improvements,09 Mar 2023,2223/12,SME,N,
0000367435,MIXBROW LTD,"3,949.00",Council House Adaptions,Improvements,29 Mar 2023,2223/12,SME,N,
0000367224,MONTHIND CLEAN LTD,"5,866.40",Tenancy Services,Contracted Services,22 Mar 2023,2223/12,LGE,N,
0000366730,NEEDHAM MARKET AERIALS LTD,279.00,Sheltered Accommodation,Repairs,05 Mar 2023,2223/12,SME,N,
0000423070,NEEDHAM MARKET TOWN COUNCIL,"2,717.00",Street & Major Road Cleansing,Contributions to other Bodies,16 Mar 2023,2223/12,SME,N,
0000367344,NORFOLK COUNTY COUNCIL,"9,469.44",Strategic Housing,Subscriptions,24 Mar 2023,2223/12,LGE,N,
0000365636,PLASUFIX LTD,"13,476.29",Roofing,Major Contracts,13 Jan 2023,2223/12,SME,N,
0000366928,PRO-FLAT SPECIALIST SERVICES LTD,"2,755.00",Roofing,Repairs,28 Feb 2023,2223/12,SME,N,
0000367226,PRO-FLAT SPECIALIST SERVICES LTD,"2,875.00",Building Services,Repairs,22 Mar 2023,2223/12,SME,N,
0000367260,PRO-FLAT SPECIALIST SERVICES LTD,"2,389.00",Roofing,Repairs,22 Mar 2023,2223/12,SME,N,
0000367401,PRO-FLAT SPECIALIST SERVICES LTD,"3,953.00",Roofing,Repairs,28 Mar 2023,2223/12,SME,N,
0000367452,PRO-FLAT SPECIALIST SERVICES LTD,540.00,Building Services,Repairs,30 Mar 2023,2223/12,SME,N,
0000366249,REID PLUMBING & HEATING CONTRACTORS LTD,"15,988.87",Central Heating,Major Contracts,15 Feb 2023,2223/12,SME,N,
0000366250,REID PLUMBING & HEATING CONTRACTORS LTD,"3,189.44",Central Heating,Major Contracts,15 Feb 2023,2223/12,SME,N,
0000366401,REID PLUMBING & HEATING CONTRACTORS LTD,"26,242.33",Central Heating,Major Contracts,22 Feb 2023,2223/12,SME,N,
0000366523,REID PLUMBING & HEATING CONTRACTORS LTD,"20,763.85",Central Heating,Major Contracts,27 Feb 2023,2223/12,SME,N,
0000366594,REID PLUMBING & HEATING CONTRACTORS LTD,"5,439.46",Central Heating,Major Contracts,01 Mar 2023,2223/12,SME,N,
0000366642,REID PLUMBING & HEATING CONTRACTORS LTD,375.40,Building Services,Repairs,02 Mar 2023,2223/12,SME,N,
0000366864,REID PLUMBING & HEATING CONTRACTORS LTD,"31,584.23",Central Heating,Major Contracts,09 Mar 2023,2223/12,SME,N,
0000366985,REID PLUMBING & HEATING CONTRACTORS LTD,"30,047.21",Central Heating,Major Contracts,13 Mar 2023,2223/12,SME,N,
0000367027,REID PLUMBING & HEATING CONTRACTORS LTD,"17,609.98",Central Heating,Major Contracts,15 Mar 2023,2223/12,SME,N,
0000367170,REID PLUMBING & HEATING CONTRACTORS LTD,"19,633.60",Central Heating,Major Contracts,20 Mar 2023,2223/12,SME,N,
0000367191,REID PLUMBING & HEATING CONTRACTORS LTD,"10,584.18",Central Heating,Major Contracts,21 Mar 2023,2223/12,SME,N,
0000366557,SACKERS LTD,560.93,Building Services,Waste Disposal,28 Feb 2023,2223/12,SME,Y,50%
0000366508,SANDY LANE NURSERY,586.00,Open Spaces,Horticultural Purchases,10 Jan 2023,2223/12,SME,N,
0000366812,SANDY LANE NURSERY,286.10,Open Spaces,Tree felling/maintenance,20 Jan 2023,2223/12,SME,N,
0000366927,SANDY LANE NURSERY,"1,820.00",Transformation Fund,Misc Supplies & Services Costs,22 Feb 2023,2223/12,SME,Y,50%
0000366549,SEAGER HOME SOLUTIONS,"45,968.53",Kitchens/Bathrooms,Major Contracts,10 Feb 2023,2223/12,SME,N,
0000366797,SEAGER HOME SOLUTIONS,"50,323.28",Kitchens/Bathrooms,Major Contracts,07 Mar 2023,2223/12,SME,N,
0000366509,SHAW & SONS LTD,"2,238.07",General Elections,Stationery,23 Feb 2023,2223/12,SME,N,
0000366512,SOLACE GROUP LTD,295.00,Management Team,Conference Expenses,25 Jan 2023,2223/12,SME,Y,50%
0000367460,SOLACE GROUP LTD,390.00,Management Team,Training,16 Mar 2023,2223/12,SME,Y,50%
0000366688,SSI SCHAEFER LTD,710.00,Bins,Bins,03 Mar 2023,2223/12,SME,Y,50%
0000366909,SUDBURY OFFICE SUPPLIES,359.42,Central Stationery & equip,Stationery,07 Mar 2023,2223/12,SME,Y,50%
0000367349,SUFFOLK LIBRARIES IPS LTD IPSWICH,"3,160.00",Customer Servs,Contracted Services,27 Mar 2023,2223/12,LGE,N,
0000366851,SUFFOLK TREE SERVICES LTD,"8,575.00",Creeting Rd Depot,Grounds & Site Maintenance,06 Mar 2023,2223/12,SME,N,
0000366852,SUFFOLK TREE SERVICES LTD,"3,143.25",Creeting Rd Depot,Grounds & Site Maintenance,06 Mar 2023,2223/12,SME,N,
0000367013,SUREFIX,890.00,Window & Door Rplcmts,Repairs,06 Mar 2023,2223/12,SME,N,
0000366727,TANKCHANGE LTD,375.00,Central Heating,Improvements,03 Mar 2023,2223/12,SME,N,
0000366728,TANKCHANGE LTD,375.00,Central Heating,Improvements,03 Mar 2023,2223/12,SME,N,
0000366728,TANKCHANGE LTD,375.00,Central Heating,Improvements,03 Mar 2023,2223/12,SME,N,
0000366729,TANKCHANGE LTD,"2,490.00",Central Heating,Repairs,03 Mar 2023,2223/12,SME,N,
0000367093,TDT ENTERPRISES LTD,267.00,Community Safety-CCTV,"Equipment, Tools & Materials",17 Mar 2023,2223/12,SME,N,
0000366715,THE PLAY INSPECTION COMPANY LTD,"1,090.00",Open Spaces,Training,03 Mar 2023,2223/12,SME,N,
0000366360,THERMATECH,"6,550.00",Sheltered Accommodation,Fire Prevention,16 Feb 2023,2223/12,SME,N,
0000366717,THERMATECH,175.00,Other HRA Temp Accommodation,Fire Prevention,28 Feb 2023,2223/12,SME,N,
0000366717,THERMATECH,"1,550.00",Sheltered Accommodation,Fire Prevention,28 Feb 2023,2223/12,SME,N,
0000366717,THERMATECH,"3,625.00",Tenancy Services,Fire Prevention,28 Feb 2023,2223/12,SME,N,
0000366935,THERMATECH,900.00,Tenancy Services,Fire Prevention,10 Mar 2023,2223/12,SME,N,
0000366935,THERMATECH,"11,700.00",Sheltered Accommodation,Fire Prevention,10 Mar 2023,2223/12,SME,N,
0000367350,THERMATECH,"1,950.00",Fire Risk Assessment (Flats),Prof & Consultancy Fees,27 Mar 2023,2223/12,SME,N,
0000366860,THOMPSON COOPER LTD,"1,325.83",Open Spaces,"Equipment, Tools & Materials",09 Mar 2023,2223/12,SME,N,
0000367130,THOMPSON COOPER LTD,"1,373.00",Open Spaces,"Equipment, Tools & Materials",20 Mar 2023,2223/12,SME,N,
0000366725,TRUCKEAST LTD,330.00,Open Spaces,Plant & Vehicle - Other costs,03 Mar 2023,2223/12,LGE,N,
0000367029,TRUCKEAST LTD,600.70,Open Spaces,Plant & Vehicle - Other costs,15 Mar 2023,2223/12,LGE,N,
0000367357,TRUCKEAST LTD,"1,426.38",Open Spaces,Plant & Vehicle - Other costs,27 Mar 2023,2223/12,LGE,N,
0000366531,WEST END REHOMING,405.78,Dog Control,Collection Charges,01 Mar 2023,2223/12,SME,N,
0000366539,WINDIMAN LTD,470.00,Window & Door Rplcmts,Repairs,26 Jan 2023,2223/12,SME,N,
0000366692,WINDIMAN LTD,780.00,Window & Door Rplcmts,Repairs,28 Feb 2023,2223/12,SME,N,
0000366693,WINDIMAN LTD,"1,490.00",Window & Door Rplcmts,Improvements,28 Feb 2023,2223/12,SME,N,
0000366694,WINDIMAN LTD,"1,825.00",Window & Door Rplcmts,Repairs,28 Feb 2023,2223/12,SME,N,
0000366695,WINDIMAN LTD,"5,400.00",Window & Door Rplcmts,Improvements,28 Feb 2023,2223/12,SME,N,
0000366901,WINDIMAN LTD,"5,720.00",Window & Door Rplcmts,Repairs,09 Mar 2023,2223/12,SME,N,
0000367236,WINDIMAN LTD,"3,480.00",Window & Door Rplcmts,Repairs,22 Mar 2023,2223/12,SME,N,
0000367237,WINDIMAN LTD,920.00,Building Services,Repairs,22 Mar 2023,2223/12,SME,N,
0000367238,WINDIMAN LTD,860.00,Window & Door Rplcmts,Repairs,22 Mar 2023,2223/12,SME,N,
0000367240,WINDIMAN LTD,"1,180.00",Window & Door Rplcmts,Repairs,22 Mar 2023,2223/12,SME,N,
0000367502,WINDIMAN LTD,920.00,Window & Door Rplcmts,Repairs,30 Mar 2023,2223/12,SME,N,
0000367503,WINDIMAN LTD,780.00,Window & Door Rplcmts,Repairs,30 Mar 2023,2223/12,SME,N,
0000367504,WINDIMAN LTD,"4,832.00",Window & Door Rplcmts,Repairs,30 Mar 2023,2223/12,SME,N,
0000366464,WORKWEAR (EAST ANGLIA) LTD,"1,801.90",Open Spaces,Protective clothing,20 Feb 2023,2223/12,SME,N,
0000366636,WORKWEAR (EAST ANGLIA) LTD,"2,299.90",Building Services,Protective clothing,17 Feb 2023,2223/12,SME,Y,50%
0000367283,WORKWEAR (EAST ANGLIA) LTD,152.91,Open Spaces,Protective clothing,23 Mar 2023,2223/12,SME,N,
0000367283,WORKWEAR (EAST ANGLIA) LTD,152.91,Street & Major Road Cleansing,Protective clothing,23 Mar 2023,2223/12,SME,N,
0000366829,MITIE PROPERTY SERVICES (UK) LTD,"42,400.90",Planned Maint - Ext Painting,Major Contracts,03 Mar 2023,2223/12,SME,N,
0000367041,SPORTS & LEISURE MANAGEMENT LTD,"20,833.33",Leisure Contract,Contributions to other Bodies,16 Mar 2023,2223/12,LGE,N,
0000366683,ESSEX COUNTY COUNCIL,"10,742.00",Devt Management - Apps,Ecology Consultancy,02 Mar 2023,2223/12,LGE,N,
0000367062,ESSEX COUNTY COUNCIL,"5,274.00",Devt Management - Apps,Landscape Consultancy,16 Mar 2023,2223/12,LGE,N,
0000367064,ESSEX COUNTY COUNCIL,"1,132.00",Pre App Charging,Landscape Consultancy,16 Mar 2023,2223/12,LGE,N,
0000367065,ESSEX COUNTY COUNCIL,"8,162.00",Devt Management - Appeals,Landscape Consultancy,16 Mar 2023,2223/12,LGE,N,
0000367258,ESSEX COUNTY COUNCIL,499.50,Devt Management - Apps,Heritage Consultancy ,22 Mar 2023,2223/12,LGE,N,
0000367280,ESSEX COUNTY COUNCIL,"6,038.00",Devt Management - Apps,Landscape Consultancy,23 Mar 2023,2223/12,LGE,N,
0000367281,ESSEX COUNTY COUNCIL,"1,032.00",Pre App Charging,Landscape Consultancy,23 Mar 2023,2223/12,LGE,N,
0000367317,ESSEX COUNTY COUNCIL,"3,330.00",Devt Management - Apps,Training,24 Mar 2023,2223/12,LGE,Y,45%
0000367364,ESSEX COUNTY COUNCIL,"11,824.00",Devt Management - Apps,Ecology Consultancy,27 Mar 2023,2223/12,LGE,N,
0000367392,ESSEX COUNTY COUNCIL,784.65,Pre App Charging,Ecology Consultancy,28 Mar 2023,2223/12,LGE,N,
0000367549,IDOX SOFTWARE LTD,"3,050.00",Community Safety-General,Contributions & Donations,30 Mar 2023,2223/12,SME,Y,50%
0000366853,CIPFA BUSINESS LTD,"4,055.00",Financial Servs,Books & Periodicals,06 Mar 2023,2223/12,LGE,Y,50%
0000367262,IPSWICH BOROUGH COUNCIL,445.00,Shared Revenues Partnership,Contributions to other Bodies,22 Mar 2023,2223/12,LGE,N,
0000366210,SERCO LTD,"9,487.00",Open Spaces,Plant & Vehicle Fuel,13 Feb 2023,2223/12,LGE,Y,50%
0000366210,SERCO LTD,"9,487.00",Street & Major Road Cleansing,Plant & Vehicle Fuel,13 Feb 2023,2223/12,LGE,Y,50%
0000366709,SERCO LTD,"4,587.00",Domestic Waste,Refuse Contract,02 Mar 2023,2223/12,LGE,Y,50%
0000366710,SERCO LTD,600.00,Domestic Waste,Refuse Contract,02 Mar 2023,2223/12,LGE,Y,3%
0000366711,SERCO LTD,"10,000.00",Jnt Waste Contract,Plant & Vehicle Fuel,02 Mar 2023,2223/12,LGE,Y,50%
0000366712,SERCO LTD,"320,710.50",Domestic Waste,Refuse Contract,02 Mar 2023,2223/12,LGE,Y,48%
0000366712,SERCO LTD,"21,380.70",Trade Waste,Refuse Contract,02 Mar 2023,2223/12,LGE,Y,60%
0000366712,SERCO LTD,"85,522.80",Garden Waste,Refuse Contract,02 Mar 2023,2223/12,LGE,Y,47.5%
0000366885,SERCO LTD,"5,575.00",Open Spaces,Plant & Vehicle Fuel,02 Mar 2023,2223/12,LGE,Y,50%
0000366885,SERCO LTD,"5,575.00",Street & Major Road Cleansing,Plant & Vehicle Fuel,02 Mar 2023,2223/12,LGE,Y,50%
0000367506,TRAVIS PERKINS TRADING CO LTD,"1,273.55",Building Services,Protective clothing,29 Mar 2023,2223/12,LGE,N,
0000423049,EDF ENERGY,72.83,"11 Market Place, Stowmarket",Electricity,15 Feb 2023,2223/12,LGE,N,
0000423049,EDF ENERGY,800.28,C Parks General,Electricity,15 Feb 2023,2223/12,LGE,N,
0000423049,EDF ENERGY,165.69,Climate Change and Sustainabil,Electricity,15 Feb 2023,2223/12,LGE,N,
0000423049,EDF ENERGY,"1,592.60",Creeting Rd Depot,Electricity,15 Feb 2023,2223/12,LGE,Y,50%
0000423049,EDF ENERGY,715.44,Headquarters General,Electricity,15 Feb 2023,2223/12,LGE,N,
0000423049,EDF ENERGY,"34,283.34",Leisure Contract,Electricity,15 Feb 2023,2223/12,LGE,N,
0000423049,EDF ENERGY,246.03,Needham Market Middle School,Electricity,15 Feb 2023,2223/12,LGE,N,
0000423049,EDF ENERGY,445.51,Open Spaces,Electricity,15 Feb 2023,2223/12,LGE,N,
0000423049,EDF ENERGY,"1,197.05",Other HRA Temp Accommodation,Electricity,15 Feb 2023,2223/12,LGE,N,
0000423049,EDF ENERGY,182.72,Public Conveniences,Electricity,15 Feb 2023,2223/12,LGE,N,
0000423049,EDF ENERGY,916.28,Pure Gym & Adjacent Building,Electricity,15 Feb 2023,2223/12,LGE,N,
0000423049,EDF ENERGY,144.90,Recycling Centre,Electricity,15 Feb 2023,2223/12,LGE,N,
0000423049,EDF ENERGY,"1,393.68",Sewage Treatment Works,Electricity,15 Feb 2023,2223/12,LGE,N,
0000423049,EDF ENERGY,"3,020.07",Sheltered Accommodation,Electricity,15 Feb 2023,2223/12,LGE,N,
0000423049,EDF ENERGY,478.87,Tacon Close Eye TDP,Electricity,15 Feb 2023,2223/12,LGE,N,
0000423049,EDF ENERGY,"1,775.16",Temporary Accommodation,Electricity,15 Feb 2023,2223/12,LGE,N,
0000423049,EDF ENERGY,"5,338.92",Tenancy Services,Electricity,15 Feb 2023,2223/12,LGE,N,
0000423049,EDF ENERGY,"1,480.64",Wingfield Barns,Electricity,15 Feb 2023,2223/12,LGE,N,
0000423082,EDF ENERGY,730.96,C Parks General,Electricity,15 Mar 2023,2223/12,LGE,N,
0000423082,EDF ENERGY,920.54,Creeting Rd Depot,Electricity,15 Mar 2023,2223/12,LGE,Y,50%
0000423082,EDF ENERGY,640.72,Headquarters General,Electricity,15 Mar 2023,2223/12,LGE,N,
0000423082,EDF ENERGY,"31,755.17",Leisure Contract,Electricity,15 Mar 2023,2223/12,LGE,N,
0000423082,EDF ENERGY,161.06,Needham Market Middle School,Electricity,15 Mar 2023,2223/12,LGE,N,
0000423082,EDF ENERGY,"1,052.67",Open Spaces,Electricity,15 Mar 2023,2223/12,LGE,N,
0000423082,EDF ENERGY,"1,498.37",Other HRA Temp Accommodation,Electricity,15 Mar 2023,2223/12,LGE,N,
0000423082,EDF ENERGY,92.15,Public Conveniences,Electricity,15 Mar 2023,2223/12,LGE,N,
0000423082,EDF ENERGY,95.29,Pure Gym & Adjacent Building,Electricity,15 Mar 2023,2223/12,LGE,N,
0000423082,EDF ENERGY,28.78,Recycling Centre,Electricity,15 Mar 2023,2223/12,LGE,N,
0000423082,EDF ENERGY,784.40,Sewage Treatment Works,Electricity,15 Mar 2023,2223/12,LGE,N,
0000423082,EDF ENERGY,"25,254.04",Sheltered Accommodation,Electricity,15 Mar 2023,2223/12,LGE,N,
0000423082,EDF ENERGY,375.20,Tacon Close Eye TDP,Electricity,15 Mar 2023,2223/12,LGE,N,
0000423082,EDF ENERGY,830.25,Temporary Accommodation,Electricity,15 Mar 2023,2223/12,LGE,N,
0000423082,EDF ENERGY,"3,059.14",Tenancy Services,Electricity,15 Mar 2023,2223/12,LGE,N,
0000423082,EDF ENERGY,"3,302.33",Wingfield Barns,Electricity,15 Mar 2023,2223/12,LGE,N,
0000423085,GPC BARCLAYS,"14,371.23",Current Assets,Barclaycard Control,14 Mar 2023,2223/12,LGE,Y,16%
0000423047,ALLSTAR BUSINESS SOLUTIONS LTD,193.03,Housing Options,Plant & Vehicle Fuel,28 Feb 2023,2223/12,SME,Y,50%
0000423047,ALLSTAR BUSINESS SOLUTIONS LTD,"9,865.73",Building Services,Plant & Vehicle Fuel,28 Feb 2023,2223/12,SME,Y,50%
0000423048,COMPUTERSHARE ,890.00,Current Assets,ChildCare Vouchers-Control,27 Feb 2023,2223/12,LGE,N,
0000423169,COMPUTERSHARE ,890.00,Current Assets,ChildCare Vouchers-Control,27 Mar 2023,2223/12,LGE,N,
0000423097,1ST WETHERDEN & HAUGHLEY SCOUTS,459.83,Bring Sites,Contributions & Donations,29 Mar 2023,2223/12,SME,N,
0000366750,BARHAM PARISH COUNCIL,"3,693.71",Grants & Contrbns,Contributions & Donations,07 Mar 2023,2223/12,SME,N,
0000366766,BARHAM PARISH COUNCIL,"3,377.75",CIL Funded REFCUS,Grants,07 Mar 2023,2223/12,SME,N,
0000423055,BARHAM PARISH COUNCIL,617.50,Street & Major Road Cleansing,Contributions to other Bodies,16 Mar 2023,2223/12,SME,N,
0000423056,BARKING PARISH COUNCIL,370.50,Street & Major Road Cleansing,Contributions to other Bodies,16 Mar 2023,2223/12,SME,N,
0000367057,BATTISFORD & DISTRICT CRICKET CLUB,"12,884.88",Community Fund Projects-Grants,Grants,16 Mar 2023,2223/12,SME,N,
0000367370,BATTISFORD & DISTRICT CRICKET CLUB,"11,180.85",Community Fund Projects-Grants,Grants,28 Mar 2023,2223/12,SME,N,
0000367045,BOTESDALE PARISH COUNCIL,"5,678.50",CIL Funded REFCUS,Grants,16 Mar 2023,2223/12,SME,N,
0000367060,BOTESDALE PARISH COUNCIL,"6,741.34",CIL Funded REFCUS,Grants,16 Mar 2023,2223/12,SME,N,
0000367094,BOTESDALE PARISH COUNCIL,"1,661.65",Community Fund Projects-Grants,Grants,17 Mar 2023,2223/12,SME,N,
0000423057,BOTESDALE PARISH COUNCIL,370.50,Street & Major Road Cleansing,Contributions to other Bodies,16 Mar 2023,2223/12,SME,N,
0000423058,BRAMFORD PARISH COUNCIL,617.50,Street & Major Road Cleansing,Contributions to other Bodies,16 Mar 2023,2223/12,SME,N,
0000366746,BRAMFORD UNITED FOOTBALL CLUB,600.00,Grants & Contrbns,Contributions & Donations,01 Mar 2023,2223/12,SME,N,
0000423059,CLAYDON & WHITTON PARISH COUNCIL,"1,235.00",Street & Major Road Cleansing,Contributions to other Bodies,16 Mar 2023,2223/12,SME,N,
0000423060,DEBENHAM PARISH COUNCIL,"2,192.13",Street & Major Road Cleansing,Contributions to other Bodies,16 Mar 2023,2223/12,SME,N,
0000423112,DEBENHAM VILLAGE HALL & PLAYING FIELD TR,742.50,Bring Sites,Contributions & Donations,29 Mar 2023,2223/12,SME,N,
0000423114,DRINKSTONE WAR MEMORIAL INSTITUTE,311.08,Bring Sites,Contributions & Donations,29 Mar 2023,2223/12,SME,N,
0000366565,EARL STONHAM PARISH COUNCIL,"1,097.17",Grants & Contrbns,Contributions & Donations,01 Mar 2023,2223/12,SME,N,
0000423115,EARL STONHAM PARISH COUNCIL,332.35,Bring Sites,Contributions & Donations,29 Mar 2023,2223/12,SME,N,
0000423117,ELMSWELL PARISH COUNCIL,843.46,Bring Sites,Contributions & Donations,29 Mar 2023,2223/12,SME,N,
0000423061,EYE TOWN COUNCIL,"2,470.00",Street & Major Road Cleansing,Contributions to other Bodies,16 Mar 2023,2223/12,SME,N,
0000423118,FRAMSDEN PARISH COUNCIL,485.60,Bring Sites,Contributions & Donations,29 Mar 2023,2223/12,SME,N,
0000366734,FRESSINGFIELD PARISH COUNCIL,"1,685.00",Grants & Contrbns,Contributions & Donations,06 Mar 2023,2223/12,SME,N,
0000423062,FRESSINGFIELD PARISH COUNCIL,555.75,Street & Major Road Cleansing,Contributions to other Bodies,16 Mar 2023,2223/12,SME,N,
0000367005,FRESSINGFIELD PLAYING FIELD MANAGEMENT,"20,000.00",CCB Warm Spaces,"Equipment, Tools & Materials",14 Mar 2023,2223/12,SME,N,
0000366521,GEDDING PARISH MEETING,380.50,Grants & Contrbns,Contributions & Donations,27 Feb 2023,2223/12,SME,N,
0000423063,GREAT BLAKENHAM PARISH COUNCIL,"1,235.00",Street & Major Road Cleansing,Contributions to other Bodies,16 Mar 2023,2223/12,SME,N,
0000366704,GREAT FINBOROUGH PARISH COUNCIL,"1,667.00",Grants & Contrbns,Contributions & Donations,03 Mar 2023,2223/12,SME,N,
0000366707,GREAT FINBOROUGH PARISH COUNCIL,"1,000.00",Grants & Contrbns,Contributions & Donations,03 Mar 2023,2223/12,SME,N,
0000366702,HARLESTON PARISH MEETING,500.00,Grants & Contrbns,Contributions & Donations,03 Mar 2023,2223/12,SME,N,
0000423065,HAUGHLEY PARISH COUNCIL,617.50,Street & Major Road Cleansing,Contributions to other Bodies,16 Mar 2023,2223/12,SME,N,
0000423067,HOXNE PARISH COUNCIL,617.50,Street & Major Road Cleansing,Contributions to other Bodies,16 Mar 2023,2223/12,SME,N,
0000423124,HOXNE VILLAGE HALL,371.14,Bring Sites,Contributions & Donations,29 Mar 2023,2223/12,SME,N,
0000366645,KENTON PARISH MEETING,"2,250.00",Grants & Contrbns,Contributions & Donations,02 Mar 2023,2223/12,SME,N,
0000423069,MENDLESHAM PARISH COUNCIL,432.25,Street & Major Road Cleansing,Contributions to other Bodies,16 Mar 2023,2223/12,SME,N,
0000366981,MID SUFFOLK VOLUNTARY ORGANISATIONS FORU,500.00,Policy & Strategy (H & W),Contributions & Donations,13 Mar 2023,2223/12,SME,N,
0000367132,MID SUFFOLK VOLUNTARY ORGANISATIONS FORU,"1,000.00",Grants & Contrbns,Contributions & Donations,20 Mar 2023,2223/12,SME,N,
0000423071,NORTON PARISH COUNCIL,308.75,Street & Major Road Cleansing,Contributions to other Bodies,16 Mar 2023,2223/12,SME,N,
0000423129,NORTON PARISH COUNCIL,662.05,Bring Sites,Contributions & Donations,29 Mar 2023,2223/12,SME,N,
0000423135,RATTLESDEN PARISH COUNCIL,301.24,Bring Sites,Contributions & Donations,29 Mar 2023,2223/12,SME,N,
0000423073,RICKINGHALL INFERIOR AND RICKINGHALL SUP,494.00,Street & Major Road Cleansing,Contributions to other Bodies,16 Mar 2023,2223/12,SME,N,
0000423137,RICKINGHALL VILLAGE HALL,450.95,Bring Sites,Contributions & Donations,29 Mar 2023,2223/12,SME,N,
0000423146,STONHAM ASPAL PARISH COUNCIL,639.79,Bring Sites,Contributions & Donations,29 Mar 2023,2223/12,SME,N,
0000423075,STOWUPLAND PARISH COUNCIL,"1,235.00",Street & Major Road Cleansing,Contributions to other Bodies,16 Mar 2023,2223/12,SME,N,
0000423076,STRADBROKE PARISH COUNCIL,"1,049.75",Street & Major Road Cleansing,Contributions to other Bodies,16 Mar 2023,2223/12,SME,N,
0000423156,THORNHAMS PARISH HALL,351.63,Bring Sites,Contributions & Donations,29 Mar 2023,2223/12,SME,N,
0000423077,THURSTON PARISH COUNCIL,940.50,Street & Major Road Cleansing,Contributions to other Bodies,16 Mar 2023,2223/12,SME,N,
0000423158,THURSTON PARISH COUNCIL,458.62,Bring Sites,Contributions & Donations,29 Mar 2023,2223/12,SME,N,
0000423160,WALSHAM LE WILLOWS MEMORIAL VILLAGE HALL,613.49,Bring Sites,Contributions & Donations,29 Mar 2023,2223/12,SME,N,
0000423079,WETHERDEN PARISH COUNCIL,370.50,Street & Major Road Cleansing,Contributions to other Bodies,16 Mar 2023,2223/12,SME,N,
0000367044,WICKHAM SKEITH PARISH COUNCIL,300.00,Grants & Contrbns,Contributions & Donations,16 Mar 2023,2223/12,SME,N,
0000367021,WOOLPIT PARISH COUNCIL,"1,747.66",Grants & Contrbns,Contributions & Donations,15 Mar 2023,2223/12,SME,N,
0000423080,WOOLPIT PARISH COUNCIL,741.00,Street & Major Road Cleansing,Contributions to other Bodies,16 Mar 2023,2223/12,SME,N,
0000423165,WOOLPIT PARISH COUNCIL,481.44,Bring Sites,Contributions & Donations,29 Mar 2023,2223/12,SME,N,
0000423166,WORLINGWORTH COMMUNITY CENTRE COMMITTEE,287.17,Bring Sites,Contributions & Donations,29 Mar 2023,2223/12,SME,N,
0000423167,WORTHAM VILLAGE HALL,435.43,Bring Sites,Contributions & Donations,29 Mar 2023,2223/12,SME,N,
0000423168,YAXLEY PARISH COUNCIL,377.36,Bring Sites,Contributions & Donations,29 Mar 2023,2223/12,SME,N,
0000366102,SUFFOLK COUNTY COUNCIL,850.00,Land Chgs,Contracted Services,08 Feb 2023,2223/12,LGE,N,
0000366121,SUFFOLK COUNTY COUNCIL,"1,190.00",Organisational Devt,Recruitment,09 Feb 2023,2223/12,LGE,Y,50%
0000366263,SUFFOLK COUNTY COUNCIL,846.75,Organisational Devt,Recruitment,14 Feb 2023,2223/12,LGE,Y,50%
0000366514,SUFFOLK COUNTY COUNCIL,"2,390.00",Pre App Charging,Highways  Consultancy,27 Feb 2023,2223/12,LGE,N,
0000366905,SUFFOLK COUNTY COUNCIL,420.00,Pre App Charging,Prof & Consultancy Fees,19 Jul 2022,2223/12,LGE,N,
0000366907,SUFFOLK COUNTY COUNCIL,690.00,Pre App Charging,Highways  Consultancy,19 Jul 2022,2223/12,LGE,N,
0000367007,SUFFOLK COUNTY COUNCIL,"1,165.00",Land Chgs,Contracted Services,13 Mar 2023,2223/12,LGE,N,
0000367030,SUFFOLK COUNTY COUNCIL,"11,511.44",Domestic Waste,MRF Disposal,14 Mar 2023,2223/12,LGE,N,
0000367030,SUFFOLK COUNTY COUNCIL,"8,750.97",Garden Waste,Garden Waste Disposal,14 Mar 2023,2223/12,LGE,N,
0000367227,SUFFOLK COUNTY COUNCIL,"2,289.00",ICT,Computer Equpt Purchases,21 Mar 2023,2223/12,LGE,Y,50%
0000367285,SUFFOLK COUNTY COUNCIL,"1,443.00",RAMS,Misc Supplies & Services Costs,21 Mar 2023,2223/12,LGE,N,
0000367293,SUFFOLK COUNTY COUNCIL,280.55,Organisational Devt,Recruitment,23 Mar 2023,2223/12,LGE,Y,50%
0000367294,SUFFOLK COUNTY COUNCIL,"7,731.40",Domestic Waste,MRF Disposal,23 Mar 2023,2223/12,LGE,N,
0000367294,SUFFOLK COUNTY COUNCIL,"12,538.19",Garden Waste,Garden Waste Disposal,23 Mar 2023,2223/12,LGE,N,
0000367295,SUFFOLK COUNTY COUNCIL,428.00,ICT,Data Network costs,23 Mar 2023,2223/12,LGE,Y,50%
0000367343,SUFFOLK COUNTY COUNCIL,890.00,Devt Management - Apps,Prof & Consultancy Fees,24 Mar 2023,2223/12,LGE,Y,45%
0000367378,SUFFOLK COUNTY COUNCIL,900.00,Organisational Devt,Recruitment,27 Mar 2023,2223/12,LGE,Y,50%
0000367379,SUFFOLK COUNTY COUNCIL,"5,582.00",Open Spaces,"Equipment, Tools & Materials",27 Mar 2023,2223/12,LGE,N,
0000367419,SUFFOLK COUNTY COUNCIL,"5,280.00",Organisational Devt,Recruitment,29 Mar 2023,2223/12,LGE,Y,50%
0000367429,SUFFOLK COUNTY COUNCIL,"6,077.00",Organisational Devt,Recruitment,29 Mar 2023,2223/12,LGE,Y,50%
0000367430,SUFFOLK COUNTY COUNCIL,"6,409.00",Organisational Devt,Recruitment,29 Mar 2023,2223/12,LGE,Y,50%
0000367432,SUFFOLK COUNTY COUNCIL,"2,756.74",Tenancy Services,Electricity,28 Mar 2023,2223/12,LGE,N,
0000367451,SUFFOLK COUNTY COUNCIL,"5,680.00",Independent Living Service,Contracted Services,29 Mar 2023,2223/12,LGE,N,
0000367292,FENN WRIGHT LLP,450.00,HRA Strategic Property,Prof & Consultancy Fees,24 Mar 2023,2223/12,SME,N,
0000366967,ROYAL MAIL,825.00,Central Postal Serv,Postage,23 Jan 2023,2223/12,LGE,Y,50%
0000423148,STOWMARKET COMMUNITY SPORTS & SOCIAL CLU,794.95,Bring Sites,Contributions & Donations,29 Mar 2023,2223/12,SME,N,
0000367524,STOWMARKET TOWN COUNCIL,"1,000.00",Grants & Contrbns,Contributions & Donations,31 Mar 2023,2223/12,SME,N,
0000367318,TELEFONICA UK LIMITED - O2,"1,599.73",ICT,Telephone Costs,27 Mar 2023,2223/12,LGE,Y,50%
0000366635,SUFFOLK COUNTY COUNCIL,825.00,Ext Audit,Audit Fees,28 Feb 2023,2223/12,LGE,N,
0000367074,ZURICH MUNICIPAL,"50,965.60",Insurance Premiums,Vehicle/Lease Car Insurance,13 Mar 2023,2223/12,LGE,N,
0000367074,ZURICH MUNICIPAL,"7,471.96",Insurance Premiums,Employees Insurances,13 Mar 2023,2223/12,LGE,N,
0000367074,ZURICH MUNICIPAL,"3,292.95",Insurance Premiums,Premises Insurance,13 Mar 2023,2223/12,LGE,N,
0000367075,ZURICH MUNICIPAL,"123,857.74",Insurance Premiums,Employees Insurances,10 Mar 2023,2223/12,LGE,N,
0000367075,ZURICH MUNICIPAL,"117,784.25",Insurance Premiums,Premises Insurance,10 Mar 2023,2223/12,LGE,N,
0000367075,ZURICH MUNICIPAL,"9,326.12",Insurance Premiums,Miscellaneous Insurances,10 Mar 2023,2223/12,LGE,N,
0000367076,ZURICH MUNICIPAL,"5,590.45",Insurance Premiums,Premises Insurance,10 Mar 2023,2223/12,LGE,N,
0000367077,ZURICH MUNICIPAL,"6,783.86",Insurance Premiums,Miscellaneous Insurances,10 Mar 2023,2223/12,LGE,N,
0000367092,ZURICH MUNICIPAL,252.00,Community Wellbeing,Miscellaneous Insurances,15 Mar 2023,2223/12,LGE,N,
0000366921,LEX AUTOLEASE,424.45,Building Services,Lease Cars - Payment,16 Feb 2023,2223/12,SME,Y,50%
0000366922,LEX AUTOLEASE,380.23,Building Services,Lease Cars - Payment,16 Feb 2023,2223/12,SME,Y,50%
0000366923,LEX AUTOLEASE,620.97,Building Services,Lease Cars - Payment,16 Feb 2023,2223/12,SME,Y,50%
0000367078,LEX AUTOLEASE,348.97,Building Services,Lease Cars - Payment,28 Feb 2023,2223/12,SME,Y,50%
0000367079,LEX AUTOLEASE,276.83,Building Services,Lease Cars - Payment,28 Feb 2023,2223/12,SME,Y,50%
0000367080,LEX AUTOLEASE,310.10,Building Services,Lease Cars - Payment,28 Feb 2023,2223/12,SME,Y,50%
0000367081,LEX AUTOLEASE,320.52,Building Services,Lease Cars - Payment,07 Mar 2023,2223/12,SME,Y,50%
0000367082,LEX AUTOLEASE,327.22,Building Services,Lease Cars - Payment,07 Mar 2023,2223/12,SME,Y,50%
0000367083,LEX AUTOLEASE,311.29,Building Services,Lease Cars - Payment,08 Mar 2023,2223/12,SME,Y,50%
0000367084,LEX AUTOLEASE,315.39,Building Services,Lease Cars - Payment,12 Mar 2023,2223/12,SME,Y,50%
0000367085,LEX AUTOLEASE,303.08,Building Services,Lease Cars - Payment,12 Mar 2023,2223/12,SME,Y,50%
0000367086,LEX AUTOLEASE,265.48,Building Services,Lease Cars - Payment,12 Mar 2023,2223/12,SME,Y,50%
0000367087,LEX AUTOLEASE,325.05,Building Services,Lease Cars - Payment,12 Mar 2023,2223/12,SME,Y,50%
0000367088,LEX AUTOLEASE,337.78,Building Services,Lease Cars - Payment,12 Mar 2023,2223/12,SME,Y,50%
0000367089,LEX AUTOLEASE,263.72,Building Services,Lease Cars - Payment,12 Mar 2023,2223/12,SME,Y,50%
0000367304,LEX AUTOLEASE,424.45,Building Services,Lease Cars - Payment,16 Mar 2023,2223/12,SME,Y,50%
0000367305,LEX AUTOLEASE,380.23,Building Services,Lease Cars - Payment,16 Mar 2023,2223/12,SME,Y,50%
0000367306,LEX AUTOLEASE,620.97,Building Services,Lease Cars - Payment,16 Mar 2023,2223/12,SME,Y,50%
0000367510,LEX AUTOLEASE,988.25,Building Services,Lease Cars - Payment,05 Feb 2023,2223/12,SME,Y,50%
0000366500,ESSEX AND SUFFOLK WATER,851.08,Sheltered Accommodation,Water Rates - Metered,17 Feb 2023,2223/12,LGE,N,
0000366501,ESSEX AND SUFFOLK WATER,779.52,Sheltered Accommodation,Water Rates - Metered,17 Feb 2023,2223/12,LGE,N,
0000366856,ESSEX AND SUFFOLK WATER,714.56,Sheltered Accommodation,Water Rates - Metered,28 Feb 2023,2223/12,LGE,N,
0000367166,ESSEX AND SUFFOLK WATER,"1,772.96",Sheltered Accommodation,Water Rates - Metered,03 Feb 2023,2223/12,LGE,N,
0000367090,FRIENDS OF ST MARY'S GISLINGHAM,350.00,Grants & Contrbns,Contributions & Donations,17 Mar 2023,2223/12,SME,N,
0000366015,TEMPLE GROUP LTD,"12,894.25",Stowmarket Middle School,Prof & Consultancy Fees,07 Feb 2023,2223/12,SME,N,
0000367385,ACUITY RESEARCH & PRACTICE LTD,665.80,Software/ICT Projects/Surveys,Improvements,28 Mar 2023,2223/12,SME,Y,50%
0000367386,ACUITY RESEARCH & PRACTICE LTD,"4,790.00",Software/ICT Projects/Surveys,Improvements,28 Mar 2023,2223/12,SME,Y,50%
0000366448,WHYBROW PROPERTY SOLUTIONS LTD,"6,118.77",Council House Adaptions,Improvements,23 Feb 2023,2223/12,SME,N,
0000366937,WHYBROW PROPERTY SOLUTIONS LTD,"3,040.53",Council House Adaptions,Improvements,09 Mar 2023,2223/12,SME,N,
0000367024,WHYBROW PROPERTY SOLUTIONS LTD,"2,485.50",Council House Adaptions,Improvements,09 Mar 2023,2223/12,SME,N,
0000367109,WHYBROW PROPERTY SOLUTIONS LTD,"10,000.00",Voids Maintenance,Repairs,17 Mar 2023,2223/12,SME,N,
0000367111,WHYBROW PROPERTY SOLUTIONS LTD,"5,000.00",Voids Maintenance,Repairs,17 Mar 2023,2223/12,SME,N,
0000367316,WHYBROW PROPERTY SOLUTIONS LTD,"10,344.68",Voids Maintenance,Repairs,24 Mar 2023,2223/12,SME,N,
0000366426,L A C CLEANING CONTRACTORS LIMITED,366.16,Temporary Accommodation,General Cleaning,22 Feb 2023,2223/12,SME,N,
0000366769,L A C CLEANING CONTRACTORS LIMITED,395.50,Voids Maintenance,Repairs,07 Mar 2023,2223/12,SME,N,
0000366987,L A C CLEANING CONTRACTORS LIMITED,455.50,Voids Maintenance,Repairs,14 Mar 2023,2223/12,SME,N,
0000367100,L A C CLEANING CONTRACTORS LIMITED,590.50,Voids Maintenance,Repairs,17 Mar 2023,2223/12,SME,N,
0000367427,L A C CLEANING CONTRACTORS LIMITED,824.41,Temporary Accommodation,General Cleaning,27 Mar 2023,2223/12,SME,N,
0000367428,L A C CLEANING CONTRACTORS LIMITED,366.16,Temporary Accommodation,General Cleaning,27 Mar 2023,2223/12,SME,N,
0000367431,L A C CLEANING CONTRACTORS LIMITED,"2,710.50",Voids Maintenance,Repairs,29 Mar 2023,2223/12,SME,N,
0000367433,L A C CLEANING CONTRACTORS LIMITED,"1,375.50",Voids Maintenance,Repairs,29 Mar 2023,2223/12,SME,N,
0000367513,L A C CLEANING CONTRACTORS LIMITED,495.50,Voids Maintenance,Repairs,30 Mar 2023,2223/12,SME,N,
0000367173,ARMSTRONG YORK ASBESTOS ENVIRONMENTAL,"12,815.78",Asbestos Survey & Reinspection,Prof & Consultancy Fees,28 Feb 2023,2223/12,SME,N,
0000366283,TUDOR ENVIRONMENTAL,733.09,Open Spaces,"Equipment, Tools & Materials",01 Feb 2023,2223/12,SME,N,
0000366462,TUDOR ENVIRONMENTAL,517.30,Open Spaces,"Equipment, Tools & Materials",23 Feb 2023,2223/12,SME,Y,580%
0000367096,THE MIX STOWMARKET LTD,"1,836.00",Holiday Activity Fund,"Equipment, Tools & Materials",17 Mar 2023,2223/12,SME,N,
0000367097,THE MIX STOWMARKET LTD,"1,063.20",Holiday Activity Fund,"Equipment, Tools & Materials",17 Mar 2023,2223/12,SME,N,
0000367098,THE MIX STOWMARKET LTD,531.60,Holiday Activity Fund,"Equipment, Tools & Materials",17 Mar 2023,2223/12,SME,N,
0000367106,THE MIX STOWMARKET LTD,"1,350.00",Grants & Contrbns,Contributions & Donations,17 Mar 2023,2223/12,SME,N,
0000367259,BT DIRECT DEBIT,"10,083.99",ICT,Telephone Costs,21 Mar 2023,2223/12,LGE,N,
0000366861,COMMUNITY ACTION SUFFOLK,"2,100.00",Community Safety-General,Training,08 Feb 2023,2223/12,SME,Y,50%
0000367440,COMMUNITY ACTION SUFFOLK,"2,000.00",Strategic Housing,Prof & Consultancy Fees,30 Mar 2023,2223/12,SME,N,
0000366552,OLD NEWTON VILLAGE HALL,861.57,S106 Open Spaces Expenditure,Grants,28 Feb 2023,2223/12,SME,N,
0000366748,OLD NEWTON VILLAGE HALL,"4,930.80",Community Fund Projects-Grants,Grants,06 Mar 2023,2223/12,SME,N,
0000366948,OLD NEWTON VILLAGE HALL,"14,741.41",CIL Funded REFCUS,Grants,13 Mar 2023,2223/12,SME,N,
0000423132,OLD NEWTON VILLAGE HALL,356.10,Bring Sites,Contributions & Donations,29 Mar 2023,2223/12,SME,N,
0000367315,GRANICUS FIRMSTEP LIMITED,"19,205.97",ICT,Software Licnse (Line of Bus) ,24 Mar 2023,2223/12,SME,Y,50%
0000366087,CONCERTUS DESIGN & PROPERTY CONSULTANTS,"3,835.00",Endeavour House - HQ,Misc Premises Costs,30 Dec 2022,2223/12,SME,Y,50%
0000366762,TAYLOR COMMERCIALS LTD,"3,298.98",Street & Major Road Cleansing,Plant & Vehicle - Other costs,06 Mar 2023,2223/12,SME,N,
0000367018,WORLINGWORTH CRICKET CLUB,"3,626.94",Grants & Contrbns,Contributions & Donations,14 Mar 2023,2223/12,SME,N,
0000367215,OXBURY CHARTERED SURVEYORS,"1,530.00","Framlingham Road, Laxfield",Prof & Consultancy Fees,21 Mar 2023,2223/12,SME,N,
0000366434,DALROD (UK) LTD,294.00,Creeting Rd Depot,Grounds & Site Maintenance,23 Feb 2023,2223/12,SME,Y,50%
0000366445,DALROD (UK) LTD,294.00,Creeting Rd Depot,Grounds & Site Maintenance,23 Feb 2023,2223/12,SME,Y,50%
0000366737,OPUS PEOPLE SOLUTIONS LTD,197.78,Health & Safety,Agency Staff,02 Mar 2023,2223/12,SME,N,
0000366737,OPUS PEOPLE SOLUTIONS LTD,309.39,Homeless Prevention Fund,Agency Staff,02 Mar 2023,2223/12,SME,N,
0000366737,OPUS PEOPLE SOLUTIONS LTD,68.28,Dev Mgmt - Applications,Agency Staff,02 Mar 2023,2223/12,SME,N,
0000366946,OPUS PEOPLE SOLUTIONS LTD,197.77,Health & Safety,Agency Staff,09 Mar 2023,2223/12,SME,N,
0000366946,OPUS PEOPLE SOLUTIONS LTD,341.62,Homeless Prevention Fund,Agency Staff,09 Mar 2023,2223/12,SME,N,
0000366946,OPUS PEOPLE SOLUTIONS LTD,68.28,Dev Mgmt - Applications,Agency Staff,09 Mar 2023,2223/12,SME,N,
0000367135,OPUS PEOPLE SOLUTIONS LTD,338.61,Homeless Prevention Fund,Agency Staff,16 Mar 2023,2223/12,SME,N,
0000367135,OPUS PEOPLE SOLUTIONS LTD,68.28,Dev Mgmt - Applications,Agency Staff,16 Mar 2023,2223/12,SME,N,
0000367336,OPUS PEOPLE SOLUTIONS LTD,333.38,Homeless Prevention Fund,Agency Staff,23 Mar 2023,2223/12,SME,N,
0000367336,OPUS PEOPLE SOLUTIONS LTD,197.78,Health & Safety,Agency Staff,23 Mar 2023,2223/12,SME,N,
0000367545,OPUS PEOPLE SOLUTIONS LTD,345.36,Homeless Prevention Fund,Agency Staff,30 Mar 2023,2223/12,SME,N,
0000367545,OPUS PEOPLE SOLUTIONS LTD,197.78,Health & Safety,Agency Staff,30 Mar 2023,2223/12,SME,N,
0000367438,ECOSYSTEMS TREE & GROUNDS CARE,600.00,Amenity Areas,Tree felling/maintenance,29 Mar 2023,2223/12,SME,N,
0000367354,SHELTER TRAINING,460.00,Homelessness Private Sector,Training,01 Nov 2022,2223/12,LGE,Y,50%
0000366206,CORNERSTONE BARRISTERS,"25,925.90",Devt Management - Appeals,Legal Expenses,13 Feb 2023,2223/12,SME,N,
0000366756,VERTAS GROUP LTD,"1,485.00",Assets & Development,Repairs,28 Feb 2023,2223/12,SME,N,
0000366752,4PRINCIPLES CONSTRUCTION LTD,"6,037.93",Mand Disabled Facilities Grant,Grants,07 Mar 2023,2223/12,SME,N,
0000367131,4PRINCIPLES CONSTRUCTION LTD,"6,451.19",Mand Disabled Facilities Grant,Grants,20 Mar 2023,2223/12,SME,N,
0000367300,4PRINCIPLES CONSTRUCTION LTD,"4,975.55",Mand Disabled Facilities Grant,Grants,24 Mar 2023,2223/12,SME,N,
0000367345,BIRKETTS LLP,"2,036.00",Stowmarket Middle School,Legal Expenses,03 Mar 2023,2223/12,LGE,N,
0000367222,UK CONTAINER MAINTENANCE LTD,"2,304.00",Jnt Waste Contract,"Equipment, Tools & Materials",20 Mar 2023,2223/12,SME,N,
0000366687,GALLAGHER CAR & VAN RENTALS LTD,"1,316.00",Domestic Waste,Refuse Contract,03 Mar 2023,2223/12,LGE,N,
0000366828,GALLAGHER CAR & VAN RENTALS LTD,"1,232.00",Domestic Waste,Refuse Contract,08 Mar 2023,2223/12,LGE,N,
0000367008,GALLAGHER CAR & VAN RENTALS LTD,588.00,Domestic Waste,Refuse Contract,14 Mar 2023,2223/12,LGE,N,
0000366608,CIRRUS RESEARCH PLC,"1,061.00",Environmental Protection,Contracted Services,01 Mar 2023,2223/12,SME,Y,50%
0000366858,FORESOLUTIONS LTD,276.08,Open Spaces,Plant & Vehicle - Other costs,08 Mar 2023,2223/12,SME,N,
0000367371,FORESOLUTIONS LTD,450.00,Open Spaces,Plant & Vehicle - Other costs,27 Mar 2023,2223/12,SME,N,
0000366834,THE BLACKBOURNE & WESLEY MAN ASSOCIATION,268.00,Endeavour House - HQ,Room Hire,08 Mar 2023,2223/12,SME,Y,50%
0000366916,1ST FRESSINGFIELD SCOUT GROUP,"3,507.96",Community Fund Projects-Grants,Grants,10 Mar 2023,2223/12,SME,N,
0000366536,TOSTOCK VILLAGE HALL,645.48,Grants & Contrbns,Contributions & Donations,28 Feb 2023,2223/12,SME,N,
0000366538,TOSTOCK VILLAGE HALL,350.00,Grants & Contrbns,Contributions & Donations,28 Feb 2023,2223/12,SME,N,
0000367457,STREETMASTER (SOUTH WALES) LTD,"1,753.50",MSM Town Centre Vision,"Equipment, Tools & Materials",28 Mar 2023,2223/12,SME,N,
0000367108,CREETING ST PETER PCC,"1,500.00",Grants & Contrbns,Contributions & Donations,17 Mar 2023,2223/12,SME,N,
0000366513,THORNHAM MAGNA PAROCHIAL CHURCH COUNCIL,900.00,Grants & Contrbns,Contributions & Donations,27 Feb 2023,2223/12,SME,N,
0000366537,FAST TEST STOWMARKET LLP,300.00,Taxi & Private Hire Licensing,Contracted Services,28 Feb 2023,2223/12,SME,N,
0000367213,RICHARD UTTING ASSOCIATES LLP,"2,124.75",Stowmarket Middle School,Prof & Consultancy Fees,04 Mar 2023,2223/12,SME,N,
0000423050,HM COURTS & TRIBUNALS SERVICE,664.00,Building Services,Legal Expenses,01 Mar 2023,2223/12,LGE,N,
0000367373,UPSTIX VENTURES LLP,625.00,Household Support Grant,Misc Supplies & Services Costs,28 Mar 2023,2223/12,SME,N,
0000366641,PUBLIC SEWER SERVICES,"2,170.60",Building Services,Repairs,31 Dec 2022,2223/12,SME,N,
0000366993,PUBLIC SEWER SERVICES,859.58,Building Services,Repairs,28 Feb 2023,2223/12,SME,N,
0000367286,PUBLIC SEWER SERVICES,353.54,Voids Maintenance,Repairs,24 Mar 2023,2223/12,SME,N,
0000367287,PUBLIC SEWER SERVICES,827.18,Voids Maintenance,Repairs,24 Mar 2023,2223/12,SME,N,
0000367298,PUBLIC SEWER SERVICES,769.93,Building Services,Repairs,20 Mar 2023,2223/12,SME,N,
0000367243,CABINET OFFICE,"2,535.00",Management Team,Contracted Services,17 Mar 2023,2223/12,LGE,N,
0000366668,THE STOWMARKET GLASS COMPANY LTD,398.07,Building Services,Repairs,06 Feb 2023,2223/12,SME,N,
0000366675,THE STOWMARKET GLASS COMPANY LTD,342.30,Building Services,Repairs,15 Feb 2023,2223/12,SME,N,
0000367175,ASPECT CONTRACTS LTD,"6,280.00",Asbestos,Improvements,15 Mar 2023,2223/12,LGE,N,
0000366361,SUPERSTRUCTURES LTD,700.00,Insulation Imps,Repairs,20 Feb 2023,2223/12,SME,N,
0000366602,THE OYSTER PARTNERSHIP LTD,950.15,Building Servs Tech Staff,Agency Staff,01 Mar 2023,2223/12,SME,Y,50%
0000366603,THE OYSTER PARTNERSHIP LTD,"3,650.00",HRA Strategic Property,Agency Staff,01 Mar 2023,2223/12,SME,Y,50%
0000366604,THE OYSTER PARTNERSHIP LTD,"2,047.80",Building Servs Tech Staff,Agency Staff,01 Mar 2023,2223/12,SME,Y,50%
0000366605,THE OYSTER PARTNERSHIP LTD,"2,656.25",Building Servs Tech Staff,Agency Staff,01 Mar 2023,2223/12,SME,Y,50%
0000366606,THE OYSTER PARTNERSHIP LTD,"1,008.00",Building Services,Agency Staff,01 Mar 2023,2223/12,SME,Y,50%
0000366607,THE OYSTER PARTNERSHIP LTD,923.25,Building Services,Agency Staff,01 Mar 2023,2223/12,SME,Y,50%
0000366843,THE OYSTER PARTNERSHIP LTD,923.25,Building Services,Agency Staff,08 Mar 2023,2223/12,SME,Y,50%
0000366844,THE OYSTER PARTNERSHIP LTD,"2,436.05",Building Servs Tech Staff,Agency Staff,08 Mar 2023,2223/12,SME,Y,50%
0000366845,THE OYSTER PARTNERSHIP LTD,"3,650.00",HRA Strategic Property,Agency Staff,08 Mar 2023,2223/12,SME,Y,50%
0000366846,THE OYSTER PARTNERSHIP LTD,"1,991.15",Building Servs Tech Staff,Agency Staff,08 Mar 2023,2223/12,SME,Y,50%
0000366847,THE OYSTER PARTNERSHIP LTD,"1,036.00",Building Services,Agency Staff,08 Mar 2023,2223/12,SME,Y,50%
0000366848,THE OYSTER PARTNERSHIP LTD,"2,656.25",Building Servs Tech Staff,Agency Staff,08 Mar 2023,2223/12,SME,Y,50%
0000367031,THE OYSTER PARTNERSHIP LTD,"3,650.00",HRA Strategic Property,Agency Staff,15 Mar 2023,2223/12,SME,Y,50%
0000367032,THE OYSTER PARTNERSHIP LTD,"1,423.85",Building Servs Tech Staff,Agency Staff,15 Mar 2023,2223/12,SME,Y,50%
0000367033,THE OYSTER PARTNERSHIP LTD,"2,656.25",Building Servs Tech Staff,Agency Staff,15 Mar 2023,2223/12,SME,Y,50%
0000367034,THE OYSTER PARTNERSHIP LTD,"1,085.00",Building Services,Agency Staff,15 Mar 2023,2223/12,SME,Y,50%
0000367035,THE OYSTER PARTNERSHIP LTD,"2,423.45",Building Servs Tech Staff,Agency Staff,15 Mar 2023,2223/12,SME,Y,50%
0000367036,THE OYSTER PARTNERSHIP LTD,923.25,Building Services,Agency Staff,15 Mar 2023,2223/12,SME,Y,50%
0000367231,THE OYSTER PARTNERSHIP LTD,"2,042.00",Building Servs Tech Staff,Agency Staff,22 Mar 2023,2223/12,SME,Y,50%
0000367232,THE OYSTER PARTNERSHIP LTD,"2,656.25",Building Servs Tech Staff,Agency Staff,22 Mar 2023,2223/12,SME,Y,50%
0000367233,THE OYSTER PARTNERSHIP LTD,"2,436.50",Building Servs Tech Staff,Agency Staff,22 Mar 2023,2223/12,SME,Y,50%
0000367234,THE OYSTER PARTNERSHIP LTD,"3,650.00",HRA Strategic Property,Agency Staff,22 Mar 2023,2223/12,SME,Y,50%
0000367235,THE OYSTER PARTNERSHIP LTD,"1,120.00",Building Services,Agency Staff,22 Mar 2023,2223/12,SME,Y,50%
0000367420,THE OYSTER PARTNERSHIP LTD,"1,064.00",Building Services,Agency Staff,29 Mar 2023,2223/12,SME,Y,50%
0000367421,THE OYSTER PARTNERSHIP LTD,923.25,Building Services,Agency Staff,29 Mar 2023,2223/12,SME,Y,50%
0000367422,THE OYSTER PARTNERSHIP LTD,"2,656.25",Building Servs Tech Staff,Agency Staff,29 Mar 2023,2223/12,SME,Y,50%
0000367423,THE OYSTER PARTNERSHIP LTD,"3,650.00",HRA Strategic Property,Agency Staff,29 Mar 2023,2223/12,SME,Y,50%
0000367424,THE OYSTER PARTNERSHIP LTD,923.25,Building Services,Agency Staff,29 Mar 2023,2223/12,SME,Y,50%
0000367425,THE OYSTER PARTNERSHIP LTD,"2,459.45",Building Servs Tech Staff,Agency Staff,29 Mar 2023,2223/12,SME,Y,50%
0000367426,THE OYSTER PARTNERSHIP LTD,"2,001.95",Building Servs Tech Staff,Agency Staff,29 Mar 2023,2223/12,SME,Y,50%
0000423054,RIX PETROLEUM (EAST ANGLIA) LTD,"6,154.50",Open Spaces,Plant & Vehicle Fuel,03 Mar 2023,2223/12,SME,Y,50%
0000367546,KNOWLES ASSOCIATES TFM LTD,380.38,Building Services,Lease Cars - Payment,08 Feb 2023,2223/12,SME,Y,50%
0000366609,VIVID RESOURCING,"1,763.50",Building Servs Tech Staff,Agency Staff,01 Mar 2023,2223/12,SME,Y,50%
0000366854,VIVID RESOURCING,"1,862.50",Building Servs Tech Staff,Agency Staff,08 Mar 2023,2223/12,SME,Y,50%
0000367037,VIVID RESOURCING,"1,916.50",Building Servs Tech Staff,Agency Staff,15 Mar 2023,2223/12,SME,Y,50%
0000367230,VIVID RESOURCING,"1,868.80",Building Servs Tech Staff,Agency Staff,22 Mar 2023,2223/12,SME,Y,50%
0000367418,VIVID RESOURCING,"1,897.60",Building Servs Tech Staff,Agency Staff,29 Mar 2023,2223/12,SME,Y,50%
0000366463,NORTHUMBRIAN WATER LTD,33.70,Cedars Park,Legionella Testing,24 Feb 2023,2223/12,LGE,N,
0000366463,NORTHUMBRIAN WATER LTD,33.70,Creeting Rd Depot,Legionella Testing,24 Feb 2023,2223/12,LGE,N,
0000366463,NORTHUMBRIAN WATER LTD,33.59,Open Spaces,Legionella Testing,24 Feb 2023,2223/12,LGE,N,
0000366463,NORTHUMBRIAN WATER LTD,511.54,Sheltered Accommodation,Legionella Testing,24 Feb 2023,2223/12,LGE,N,
0000366463,NORTHUMBRIAN WATER LTD,39.82,Tacon Close Eye TDP,Legionella Testing,24 Feb 2023,2223/12,LGE,N,
0000366463,NORTHUMBRIAN WATER LTD,39.82,Temporary Accommodation,Legionella Testing,24 Feb 2023,2223/12,LGE,N,
0000366463,NORTHUMBRIAN WATER LTD,634.10,Tenancy Services,Legionella Testing,24 Feb 2023,2223/12,LGE,N,
0000366463,NORTHUMBRIAN WATER LTD,73.52,Wingfield Barns,Legionella Testing,24 Feb 2023,2223/12,LGE,N,
0000367413,NORTHUMBRIAN WATER LTD,33.42,Cedars Park,Legionella Testing,29 Mar 2023,2223/12,LGE,N,
0000367413,NORTHUMBRIAN WATER LTD,33.42,Creeting Rd Depot,Legionella Testing,29 Mar 2023,2223/12,LGE,N,
0000367413,NORTHUMBRIAN WATER LTD,33.42,Open Spaces,Legionella Testing,29 Mar 2023,2223/12,LGE,N,
0000367413,NORTHUMBRIAN WATER LTD,508.02,Sheltered Accommodation,Legionella Testing,29 Mar 2023,2223/12,LGE,N,
0000367413,NORTHUMBRIAN WATER LTD,39.55,Tacon Close Eye TDP,Legionella Testing,29 Mar 2023,2223/12,LGE,N,
0000367413,NORTHUMBRIAN WATER LTD,39.55,Temporary Accommodation,Legionella Testing,29 Mar 2023,2223/12,LGE,N,
0000367413,NORTHUMBRIAN WATER LTD,629.44,Tenancy Services,Legionella Testing,29 Mar 2023,2223/12,LGE,N,
0000367413,NORTHUMBRIAN WATER LTD,72.97,Wingfield Barns,Legionella Testing,29 Mar 2023,2223/12,LGE,N,
0000367009,GIPPING OCCUPATIONAL HEALTH LTD,460.00,Organisational Devt,Contracted Services,13 Mar 2023,2223/12,SME,Y,50%
0000367308,GIPPING OCCUPATIONAL HEALTH LTD,295.00,Organisational Devt,Contracted Services,24 Mar 2023,2223/12,SME,Y,50%
0000366614,PARK AVENUE RECRUITMENT LTD,"1,750.00",Devt Management - Apps,Prof & Consultancy Fees,28 Feb 2023,2223/12,SME,Y,45%
0000367456,PARK AVENUE RECRUITMENT LTD,"2,300.00",Devt Management - Apps,Prof & Consultancy Fees,30 Mar 2023,2223/12,SME,Y,45%
0000367277,JOHN FORD GROUP LTD,"5,421.00",Mand Disabled Facilities Grant,Grants,23 Mar 2023,2223/12,SME,N,
0000366477,RESIDENTIALLY CHARTERED SURVEYORS,"2,800.00",Mendlesham - New Build,Prof & Consultancy Fees,24 Feb 2023,2223/12,SME,N,
0000367337,RESIDENTIALLY CHARTERED SURVEYORS,350.00,Tenants Forum,Prof & Consultancy Fees,27 Mar 2023,2223/12,SME,N,
0000366510,TOP FLOORS (EAST ANGLIA) LTD,276.05,Other Temp Accommodation,"Equipment, Tools & Materials",23 Feb 2023,2223/12,SME,N,
0000366535,SILCOCK DAWSON & PARTNERS LTD,"10,700.00",SHELF Project,Prof & Consultancy Fees,28 Feb 2023,2223/12,SME,N,
0000366543,SILCOCK DAWSON & PARTNERS LTD,437.88,SHELF Project,Prof & Consultancy Fees,28 Feb 2023,2223/12,SME,N,
0000367114,PORTAL PLAN QUEST LTD,462.00,Devt Management - Apps,Planning Fees,17 Mar 2023,2223/12,SME,N,
0000366359,ABBEYCROFT LEISURE,"1,585.21",Holiday Activity Fund,"Equipment, Tools & Materials",15 Feb 2023,2223/12,LGE,N,
0000367209,ABBEYCROFT LEISURE,"3,772.83",Holiday Activity Fund,"Equipment, Tools & Materials",21 Mar 2023,2223/12,LGE,N,
0000367214,BELLWAY HOMES LIMITED (ESSEX DIVISION),"490,970.04",Loraine Way Bramford  S106,Purchase of Land & Buildings,09 Mar 2023,2223/12,LGE,N,
0000366545,HAMSON BARRON SMITH LTD,"6,000.00",Strategic Investment Fund,Prof & Consultancy Fees,28 Feb 2023,2223/12,LGE,N,
0000366546,HAMSON BARRON SMITH LTD,"1,000.00",Strategic Investment Fund,Prof & Consultancy Fees,28 Feb 2023,2223/12,LGE,N,
0000367169,HAMSON BARRON SMITH LTD,500.00,BRRP-MarketTownVision&Invest,Prof & Consultancy Fees,31 Dec 2022,2223/12,LGE,N,
0000366504,A C LEIGH (NORWICH) LTD,297.50,Building Services,"Equipment, Tools & Materials",21 Feb 2023,2223/12,SME,N,
0000366507,A C LEIGH (NORWICH) LTD,643.41,Building Services,"Equipment, Tools & Materials",24 Feb 2023,2223/12,SME,N,
0000366696,A C LEIGH (NORWICH) LTD,544.08,Building Services,"Equipment, Tools & Materials",27 Feb 2023,2223/12,SME,N,
0000366809,A C LEIGH (NORWICH) LTD,746.98,Building Services,"Equipment, Tools & Materials",03 Mar 2023,2223/12,SME,N,
0000366969,A C LEIGH (NORWICH) LTD,502.00,Building Services,"Equipment, Tools & Materials",06 Mar 2023,2223/12,SME,N,
0000367322,A C LEIGH (NORWICH) LTD,283.29,Building Services,"Equipment, Tools & Materials",20 Mar 2023,2223/12,SME,N,
0000367006,SUFFOLK POWER EQUIPMENT,"1,050.00",Open Spaces,"Equipment, Tools & Materials",14 Mar 2023,2223/12,ST,N,
0000367342,SUFFOLK POWER EQUIPMENT,"3,992.00",Open Spaces,"Equipment, Tools & Materials",20 Mar 2023,2223/12,ST,N,
0000366579,3 POINT PROPERTY MANAGEMENT LTD,595.00,Guaranteed Rent Scheme,Rent Payable,01 Mar 2023,2223/12,SME,N,
0000366581,3 POINT PROPERTY MANAGEMENT LTD,895.00,Guaranteed Rent Scheme,Rent Payable,01 Mar 2023,2223/12,SME,N,
0000366590,3 POINT PROPERTY MANAGEMENT LTD,675.00,Guaranteed Rent Scheme,Rent Payable,01 Mar 2023,2223/12,SME,N,
0000367368,COOKS BLIND AND SHUTTERS LTD,"1,008.85",Creeting Rd Depot,Repairs,20 Mar 2023,2223/12,SME,Y,50%
0000366757,OAKPARK SECURITY SYSTEMS LTD,"1,140.00",Temporary Accommodation,Misc Premises Costs,28 Feb 2023,2223/12,LGE,N,
0000366568,FLAGSHIP HOUSING GROUP LTD-RENT ACCOUNT,"2,303.07",Household Support Grant,Misc Supplies & Services Costs,01 Mar 2023,2223/12,LGE,N,
0000367341,EAST SUFFOLK COUNCIL,"4,919.00",Policy & Strategy (H & W),Contributions & Donations,27 Mar 2023,2223/12,LGE,Y,50%
0000367465,EAST SUFFOLK COUNCIL,"1,450.00",Management Team,Conference Expenses,30 Mar 2023,2223/12,LGE,Y,50%
0000366646,DG ACCESSIBLE DESIGNS,995.39,Mand Disabled Facilities Grant,Grants,15 Feb 2023,2223/12,SME,N,
0000366753,DG ACCESSIBLE DESIGNS,"3,739.78",Mand Disabled Facilities Grant,Grants,07 Mar 2023,2223/12,SME,N,
0000367462,HUGHES TRADE,297.66,Homeless Prevention Fund,Misc Supplies & Services Costs,30 Mar 2023,2223/12,LGE,N,
0000367462,HUGHES TRADE,20.00,Homeless Prevention Fund,Misc Supplies & Services Costs,30 Mar 2023,2223/12,LGE,N,
0000423098,2ND EYE RAINBOWS,773.79,Bring Sites,Contributions & Donations,29 Mar 2023,2223/12,SME,N,
0000366372,APTL ENTERPRISES LTD,"4,326.67",PV Panels,Contracted Services,31 Jan 2023,2223/12,SME,N,
0000366461,APTL ENTERPRISES LTD,"5,969.00",PV Panels,Contracted Services,21 Feb 2023,2223/12,SME,N,
0000366529,APTL ENTERPRISES LTD,"4,326.67",PV Panels,Contracted Services,28 Feb 2023,2223/12,SME,N,
0000366620,WASHCO LTD,467.00,Sheltered Accommodation,"Equipment, Tools & Materials",01 Mar 2023,2223/12,SME,N,
0000366351,ANGLIA COMMERCIAL FLOORING LTD,511.35,Building Services,Repairs,20 Feb 2023,2223/12,SME,N,
0000366352,ANGLIA COMMERCIAL FLOORING LTD,674.77,Building Services,Repairs,20 Feb 2023,2223/12,SME,N,
0000366651,ANGLIA COMMERCIAL FLOORING LTD,925.94,Voids Maintenance,Repairs,02 Mar 2023,2223/12,SME,N,
0000366652,ANGLIA COMMERCIAL FLOORING LTD,"1,022.14",Voids Maintenance,Repairs,02 Mar 2023,2223/12,SME,N,
0000366653,ANGLIA COMMERCIAL FLOORING LTD,471.96,Voids Maintenance,Repairs,06 Feb 2023,2223/12,SME,N,
0000366655,ANGLIA COMMERCIAL FLOORING LTD,781.64,Voids Maintenance,Repairs,02 Mar 2023,2223/12,SME,N,
0000366657,ANGLIA COMMERCIAL FLOORING LTD,797.45,Voids Maintenance,Repairs,02 Mar 2023,2223/12,SME,N,
0000366681,ANGLIA COMMERCIAL FLOORING LTD,516.27,Building Services,Repairs,02 Mar 2023,2223/12,SME,N,
0000366890,ANGLIA COMMERCIAL FLOORING LTD,436.69,Voids Maintenance,Repairs,02 Mar 2023,2223/12,SME,N,
0000366891,ANGLIA COMMERCIAL FLOORING LTD,588.56,Voids Maintenance,Repairs,02 Mar 2023,2223/12,SME,N,
0000366892,ANGLIA COMMERCIAL FLOORING LTD,576.78,Voids Maintenance,Repairs,20 Feb 2023,2223/12,SME,N,
0000366893,ANGLIA COMMERCIAL FLOORING LTD,"1,292.28",Voids Maintenance,Repairs,20 Feb 2023,2223/12,SME,N,
0000366894,ANGLIA COMMERCIAL FLOORING LTD,"1,106.32",Voids Maintenance,Repairs,09 Mar 2023,2223/12,SME,N,
0000366895,ANGLIA COMMERCIAL FLOORING LTD,785.75,Voids Maintenance,Repairs,06 Feb 2023,2223/12,SME,N,
0000366955,ANGLIA COMMERCIAL FLOORING LTD,580.12,Voids Maintenance,Repairs,09 Mar 2023,2223/12,SME,N,
0000366956,ANGLIA COMMERCIAL FLOORING LTD,811.70,Voids Maintenance,Repairs,09 Mar 2023,2223/12,SME,N,
0000366957,ANGLIA COMMERCIAL FLOORING LTD,838.21,Voids Maintenance,Repairs,09 Mar 2023,2223/12,SME,N,
0000366958,ANGLIA COMMERCIAL FLOORING LTD,764.02,Voids Maintenance,Repairs,09 Mar 2023,2223/12,SME,N,
0000366959,ANGLIA COMMERCIAL FLOORING LTD,432.91,Voids Maintenance,Repairs,09 Mar 2023,2223/12,SME,N,
0000366960,ANGLIA COMMERCIAL FLOORING LTD,"1,102.76",Voids Maintenance,Repairs,09 Mar 2023,2223/12,SME,N,
0000366961,ANGLIA COMMERCIAL FLOORING LTD,"1,332.90",Voids Maintenance,Repairs,17 Jan 2023,2223/12,SME,N,
0000367380,ANGLIA COMMERCIAL FLOORING LTD,"1,909.85",Building Services,Repairs,28 Mar 2023,2223/12,SME,N,
0000367382,ANGLIA COMMERCIAL FLOORING LTD,550.74,Building Services,Repairs,28 Mar 2023,2223/12,SME,N,
0000367383,ANGLIA COMMERCIAL FLOORING LTD,"2,260.76",Building Services,Repairs,28 Mar 2023,2223/12,SME,N,
0000367384,ANGLIA COMMERCIAL FLOORING LTD,312.66,Building Services,Repairs,28 Mar 2023,2223/12,SME,N,
0000366639,PENDULUM MEDIA LTD,"1,500.00",Organisational Devt,Training,03 Feb 2023,2223/12,SME,Y,50%
0000367434,DMD INSTALLATIONS LTD,"1,000.00",Insulation Imps,Improvements,21 Nov 2022,2223/12,SME,N,
0000423093,IMSERV EUROPE LTD,355.59,C Parks General,Electricity,15 Mar 2023,2223/12,LGE,N,
0000423171,IMSERV EUROPE LTD,309.00,C Parks General,Electricity,28 Mar 2023,2223/12,LGE,N,
0000366722,STUDLEY CAPITAL LIMITED,"1,425.00",MSM Skills & Innovation Centre,Prof & Consultancy Fees,03 Mar 2023,2223/12,ST,N,
0000366564,GREENACRE RECRUITMENT LTD,"1,660.00",Building Services,Agency Staff,11 Jan 2023,2223/12,SME,Y,50%
0000366600,GREENACRE RECRUITMENT LTD,"2,075.00",Building Services,Agency Staff,01 Mar 2023,2223/12,SME,Y,50%
0000366839,GREENACRE RECRUITMENT LTD,"2,075.00",Building Services,Agency Staff,08 Mar 2023,2223/12,SME,Y,50%
0000367038,GREENACRE RECRUITMENT LTD,"2,075.00",Building Services,Agency Staff,15 Mar 2023,2223/12,SME,Y,50%
0000367228,GREENACRE RECRUITMENT LTD,"2,075.00",Building Services,Agency Staff,22 Mar 2023,2223/12,SME,Y,50%
0000367402,GREENACRE RECRUITMENT LTD,"2,075.00",Building Services,Agency Staff,29 Mar 2023,2223/12,SME,Y,50%
0000366456,BAYLHAM VILLAGE HALL,407.00,Grants & Contrbns,Contributions & Donations,23 Feb 2023,2223/12,SME,N,
0000366449,BRAMFORD LORAINE VICTORY HALL,"3,660.94",Grants & Contrbns,Contributions & Donations,23 Feb 2023,2223/12,SME,N,
0000366555,MID SUFFOLK GROWTH LTD,"4,589.24",Loraine Way Bramford  S106,Prof & Consultancy Fees,28 Feb 2023,2223/12,SME,N,
0000366556,MID SUFFOLK GROWTH LTD,"2,287.50","Cedars Park C & D, Stowmarket",Prof & Consultancy Fees,28 Feb 2023,2223/12,SME,N,
0000367519,MID SUFFOLK GROWTH LTD,"2,218.87",Loraine Way Bramford  S106,Prof & Consultancy Fees,31 Mar 2023,2223/12,SME,N,
0000367520,MID SUFFOLK GROWTH LTD,"2,257.50","Cedars Park C & D, Stowmarket",Prof & Consultancy Fees,31 Mar 2023,2223/12,SME,N,
0000366516,DEMOCRACY COUNTS LTD,"3,350.00",Electoral Registration,Returning Officer Fees,22 Feb 2023,2223/12,SME,N,
0000366754,DEMOCRACY COUNTS LTD,320.00,Electoral Registration,Returning Officer Fees,27 Feb 2023,2223/12,SME,Y,50%
0000366597,PRIVATE LANDLORD,350.00,Rent Deposit Scheme,Misc Premises Costs,01 Mar 2023,2223/12,ST,N,
0000366599,CLAYDON & BARHAM RECREATION GROUNDS,600.00,Grants & Contrbns,Contributions & Donations,02 Mar 2023,2223/12,SME,N,
0000367395,OCN CONTRACTS,"4,770.00",Other Temp Accommodation,Furniture,21 Mar 2023,2223/12,SME,Y,50%
0000367396,OCN CONTRACTS,"4,094.00",Other Temp Accommodation,Furniture,21 Mar 2023,2223/12,SME,Y,50%
0000366821,PENTACO CONSTRUCTION LTD,"528,941.00",Stowmarket Middle School,Major Contracts,28 Feb 2023,2223/12,SME,N,
0000367095,HAUGHLEY PLAYING FIELD BOWLS CLUB,624.48,Grants & Contrbns,Grants,17 Mar 2023,2223/12,SME,N,
0000366906,ACORN MOBILITY SERVICES LTD,"4,790.00",Mand Disabled Facilities Grant,Grants,10 Mar 2023,2223/12,LGE,N,
0000367375,THE KINETIC SCIENCE FOUNDATION,"2,316.80",Holiday Activity Fund,"Equipment, Tools & Materials",27 Mar 2023,2223/12,SME,N,
0000366749,EYES OPEN CIC,"2,400.00",Grants & Contrbns,Contributions & Donations,07 Mar 2023,2223/12,SME,N,
0000367328,LIMELEASE LTD,435.00,Guaranteed Rent Scheme,Rent Payable,27 Mar 2023,2223/12,SME,N,
0000366553,NOVUS PROPERTY SOLUTIONS LTD,"27,000.00",Wingfield Barns,Annual Bldg Maint Contracts,28 Feb 2023,2223/12,LGE,N,
0000366747,NOVUS PROPERTY SOLUTIONS LTD,"25,650.00",Wingfield Barns,Annual Bldg Maint Contracts,06 Mar 2023,2223/12,LGE,N,
0000366628,SARAH FORSYTH,595.99,Animal Welfare Licensing,Prof & Consultancy Fees,19 Feb 2023,2223/12,SME,N,
0000366887,BUCHER MUNICIPAL LTD,509.71,Street & Major Road Cleansing,Plant & Vehicle - Other costs,02 Mar 2023,2223/12,LGE,N,
0000367212,GIPPING CONSTRUCTION LTD,"17,510.06",Regen Fund - HQ Sites,Prof & Consultancy Fees,13 Mar 2023,2223/12,SME,N,
0000367212,GIPPING CONSTRUCTION LTD,"229,237.99",Needham Market Middle School,Prof & Consultancy Fees,13 Mar 2023,2223/12,SME,N,
0000367104,PRIVATE LANDLORD,786.50,Guaranteed Rent Scheme,Rent Payable,20 Mar 2023,2223/12,ST,N,
0000366591,PAUL WRIGHT & CO,775.00,Guaranteed Rent Scheme,Rent Payable,01 Mar 2023,2223/12,SME,N,
0000423084,PAUL WRIGHT & CO,"1,867.79",Rent Deposit Scheme,Misc Premises Costs,15 Mar 2023,2223/12,SME,N,
0000423090,PAUL WRIGHT & CO,807.70,Guaranteed Rent Scheme,Rent Payable,20 Mar 2023,2223/12,SME,N,
0000423090,PAUL WRIGHT & CO,750.00,Guaranteed Rent Scheme,Misc Supplies & Services Costs,20 Mar 2023,2223/12,SME,N,
0000366739,AFFINITY HEALTH AT WORK LTD,"2,100.00",Organisational Devt,Corporate Training,06 Mar 2023,2223/12,SME,Y,50%
0000367525,RIVER GIPPING TRUST,"1,500.00",Grants & Contrbns,Contributions & Donations,31 Mar 2023,2223/12,SME,N,
0000367017,WHITESPACE CONSTRUCTION LTD,"19,893.10",Mand Disabled Facilities Grant,Grants,15 Mar 2023,2223/12,SME,N,
0000366771,SUFFOLK DOORS & WINDOWS LTD,"2,150.00",Window & Door Rplcmts,Repairs,07 Mar 2023,2223/12,SME,N,
0000366494,PRIVATE LANDLORD,"1,500.00",Guaranteed Rent Scheme,Misc Supplies & Services Costs,28 Feb 2023,2223/12,ST,N,
0000366942,PRIVATE LANDLORD,786.50,Guaranteed Rent Scheme,Rent Payable,13 Mar 2023,2223/12,ST,N,
0000366691,COUNTRYSTYLE RECYCLING LTD,"4,386.58",Bring Sites,Contracted Services,28 Feb 2023,2223/12,SME,N,
0000366880,COUNTRYSTYLE RECYCLING LTD,"4,604.98",Bring Sites,Contracted Services,30 Nov 2022,2223/12,SME,N,
0000366554,DGL QUALITY MANAGEMENT LTD,"1,092.00",Stowmarket Middle School,Prof & Consultancy Fees,28 Feb 2023,2223/12,SME,N,
0000366611,DGL QUALITY MANAGEMENT LTD,273.20,Needham Market Middle School,Prof & Consultancy Fees,28 Feb 2023,2223/12,SME,N,
0000366962,DGL QUALITY MANAGEMENT LTD,"1,729.60",Needham Market Middle School,Prof & Consultancy Fees,28 Feb 2023,2223/12,SME,N,
0000367531,DGL QUALITY MANAGEMENT LTD,"1,092.00",Stowmarket Middle School,Prof & Consultancy Fees,31 Mar 2023,2223/12,SME,N,
0000366705,ELMSWILD,500.00,Grants & Contrbns,Contributions & Donations,03 Mar 2023,2223/12,SME,N,
0000363307,ARAN INSULATION LTD,"5,381.48",Insulation Imps,Improvements,12 Oct 2022,2223/12,SME,N,
0000365961,ARAN INSULATION LTD,"2,730.62",Insulation Imps,Improvements,06 Feb 2023,2223/12,SME,N,
0000366268,ARAN INSULATION LTD,"3,547.89",Insulation Imps,Improvements,14 Feb 2023,2223/12,SME,N,
0000366362,ARAN INSULATION LTD,880.33,Insulation Imps,Improvements,21 Feb 2023,2223/12,SME,N,
0000366914,ARAN INSULATION LTD,"18,560.21",Insulation Imps,Repairs,17 Oct 2022,2223/12,SME,N,
0000367219,ARAN INSULATION LTD,400.00,Insulation Imps,Improvements,22 Mar 2023,2223/12,SME,N,
0000367220,ARAN INSULATION LTD,850.00,Insulation Imps,Improvements,22 Mar 2023,2223/12,SME,N,
0000367221,ARAN INSULATION LTD,850.00,Insulation Imps,Improvements,22 Mar 2023,2223/12,SME,N,
0000366910,ORWELL REMOVALS & STORAGE LTD,670.00,Homeless Prevention Fund,Removal Expenses,22 Nov 2022,2223/12,SME,N,
0000366952,ORWELL REMOVALS & STORAGE LTD,390.00,Homeless Prevention Fund,Removal Expenses,13 Mar 2023,2223/12,SME,N,
0000423159,TOMMYS,327.74,Bring Sites,Contributions & Donations,29 Mar 2023,2223/12,SME,N,
0000366566,IAN BOOTH CONSULTANT ENGINEER LTD,520.00,Strategic Assets,Prof & Consultancy Fees,01 Mar 2023,2223/12,SME,N,
0000366567,IAN BOOTH CONSULTANT ENGINEER LTD,805.20,Roads and Paths,Improvements,02 Mar 2023,2223/12,SME,N,
0000366934,EYE & DISTRICT CRICKET CLUB,"1,993.85",Grants & Contrbns,Contributions & Donations,10 Mar 2023,2223/12,SME,N,
0000366560,MARCHDELL LTD,715.00,Guaranteed Rent Scheme,Rent Payable,01 Mar 2023,2223/12,SME,N,
0000366915,POLYSOLAR LTD,"46,609.25",Public Sector Decarbonisation,Contracted Services,02 Mar 2023,2223/12,SME,N,
0000367052,E.ON NEXT,274.51,HRA Strategic Property,Gas,17 Feb 2023,2223/12,LGE,N,
0000367052,E.ON NEXT,233.77,HRA Strategic Property,Electricity,17 Feb 2023,2223/12,LGE,N,
0000367178,E.ON NEXT,371.56,HRA Strategic Property,Electricity,17 Mar 2023,2223/12,LGE,N,
0000367273,E.ON NEXT,388.95,Other HRA Temp Accommodation,Heating Charges,19 Mar 2023,2223/12,LGE,N,
0000366571,IPSERV LTD,218.35,Central Printing,Commercial Printing,01 Mar 2023,2223/12,SME,N,
0000366571,IPSERV LTD,710.15,Communications,Commercial Printing,01 Mar 2023,2223/12,SME,N,
0000367015,SEH FRENCH LTD,"56,460.30",Needham Lake Vis Centre (CAP),Major Contracts,23 Jan 2023,2223/12,SME,N,
0000367134,PRIVATE LANDLORD,669.00,Guaranteed Rent Scheme,Rent Payable,20 Mar 2023,2223/12,ST,N,
0000366439,5TH STOWMARKET BROWNIES,945.00,Grants & Contrbns,Contributions & Donations,23 Feb 2023,2223/12,SME,N,
0000366588,PRIVATE LANDLORD,650.00,Guaranteed Rent Scheme,Rent Payable,01 Mar 2023,2223/12,ST,N,
0000366569,BUCKINGHAM FUTURES,"1,125.00",Covid-19 Test and Trace,Agency Staff,22 Feb 2023,2223/12,SME,Y,50%
0000367128,MK AUTOS MOT CENTRE LIMITED,350.00,Taxi & Private Hire Licensing,Contracted Services,28 Feb 2023,2223/12,SME,N,
0000367394,NORMANTON SCREENPRINT,912.95,Street & Major Road Cleansing,"Equipment, Tools & Materials",23 Mar 2023,2223/12,SME,Y,50%
0000366593,RICHARD WILLS TRAINING ASSOCIATES LTD,"2,495.00",Devt Management - Apps,Training,01 Mar 2023,2223/12,ST,Y,45%
0000366587,PRIVATE LANDLORD,555.00,Guaranteed Rent Scheme,Rent Payable,01 Mar 2023,2223/12,ST,N,
0000366589,SHJ HOMES LTD,525.00,Guaranteed Rent Scheme,Rent Payable,01 Mar 2023,2223/12,SME,N,
0000367133,SHJ HOMES LTD,550.00,Guaranteed Rent Scheme,Rent Payable,20 Mar 2023,2223/12,SME,N,
0000365536,METRIC GROUP LTD,"39,389.10",Pld Maint/ Enhncmts-C Parks,"Equipment, Tools & Materials",18 Jan 2023,2223/12,SME,N,
0000366815,METRIC GROUP LTD,"1,688.00",Pld Maint/ Enhncmts-C Parks,"Equipment, Tools & Materials",07 Mar 2023,2223/12,SME,N,
0000366815,METRIC GROUP LTD,"6,752.52",C Parks General,Contracted Services,07 Mar 2023,2223/12,SME,N,
0000367102,METRIC GROUP LTD,547.50,C Parks General,Contracted Services,17 Mar 2023,2223/12,SME,N,
0000366913,KEYS REMOVALS LTD,469.43,Homeless Prevention Fund,Removal Expenses,20 Feb 2023,2223/12,SME,N,
0000366689,NAGELS UK LTD,"5,350.00",C Parks General,Stationery,03 Mar 2023,2223/12,SME,N,
0000367436,PREMIER EDUCATION,"2,026.67",Holiday Activity Fund,"Equipment, Tools & Materials",27 Mar 2023,2223/12,SME,N,
0000366811,SHARPS ACOUSTICS LLP,"2,000.00",Devt Management - Appeals,Environmental  Consultancy,28 Feb 2023,2223/12,SME,N,
0000366483,FIFIELD TRAINING LTD,800.00,Governance,Training,23 Feb 2023,2223/12,SME,N,
0000367110,NEEDHAM MARKET BOWLS CLUB,482.00,Grants & Contrbns,Contributions & Donations,17 Mar 2023,2223/12,SME,N,
0000366706,WOOLPIT DRAMA CLUB,"1,600.00",Grants & Contrbns,Contributions & Donations,03 Mar 2023,2223/12,SME,N,
0000366814,CASPERS CATERING AND CAKES,269.58,Endeavour House - HQ,Food & Drink,25 Jan 2023,2223/12,SME,Y,50%
0000367107,GIPPING WOMENS CLUB,461.00,Grants & Contrbns,Contributions & Donations,17 Mar 2023,2223/12,SME,N,
0000366245,NEC SOFTWARE SOLUTIONS UK LTD,"3,500.00",Housing Standards,Software Licnse (Line of Bus) ,14 Feb 2023,2223/12,LGE,Y,50%
0000366246,NEC SOFTWARE SOLUTIONS UK LTD,700.00,Housing Standards,Software Licnse (Line of Bus) ,14 Feb 2023,2223/12,LGE,Y,50%
0000366578,HAMILTON SMITH LETTINGS,550.00,Guaranteed Rent Scheme,Rent Payable,01 Mar 2023,2223/12,SME,N,
0000366931,HAMILTON SMITH LETTINGS,590.00,Guaranteed Rent Scheme,Rent Payable,13 Mar 2023,2223/12,SME,N,
0000366933,HAMILTON SMITH LETTINGS,775.00,Guaranteed Rent Scheme,Rent Payable,13 Mar 2023,2223/12,SME,N,
0000367164,HAMILTON SMITH LETTINGS,"1,884.70",Guaranteed Rent Scheme,Rent Payable,20 Mar 2023,2223/12,SME,N,
0000367113,NATURAL ENGLAND (SSCL),500.00,Paddock House Eye,Prof & Consultancy Fees,17 Mar 2023,2223/12,LGE,N,
0000366857,REDACTIVE EVENTS LTD,695.00,Management Team,Conference Expenses,08 Mar 2023,2223/12,SME,Y,50%
0000367046,PAY 360 LIMITED,"4,239.81",Bank Chgs,Bank Charges,15 Mar 2023,2223/12,LGE,N,
0000366917,THE FOOD MUSEUM LTD,"18,500.00",Communities,Grants,10 Mar 2023,2223/12,SME,N,
0000367020,THE FOOD MUSEUM LTD,"3,572.15",CIL Funded REFCUS,Grants,15 Mar 2023,2223/12,SME,N,
0000367274,STILLVIEW PHOTOGRAPHY,525.00,Cost of Democracy,Advertising&mkting (non-staff),23 Mar 2023,2223/12,SME,Y,50%
0000366384,KADA RESEARCH LTD,"6,000.00",SHELF Project,Prof & Consultancy Fees,21 Feb 2023,2223/12,SME,N,
0000366836,TILE HILL INTERIM & EXECUTIVE LTD,"6,240.00",Financial Servs,Agency Staff,08 Mar 2023,2223/12,SME,Y,50%
0000366837,TILE HILL INTERIM & EXECUTIVE LTD,"11,625.00",Organisational Devt,Agency Staff,08 Mar 2023,2223/12,SME,Y,47.5%
0000366838,TILE HILL INTERIM & EXECUTIVE LTD,"6,630.00",Financial Servs,Agency Staff,08 Mar 2023,2223/12,SME,Y,50%
0000366903,A W & D HAMMOND LTD,"24,785.00",Vehicle and Plant Renewals,Plant & Vehicle - Purchase,01 Feb 2023,2223/12,LGE,N,
0000366904,A W & D HAMMOND LTD,"35,785.00",Vehicle and Plant Renewals,Plant & Vehicle - Purchase,01 Feb 2023,2223/12,LGE,N,
0000366550,PRIVATE LANDLORD,900.00,Guaranteed Rent Scheme,Rent Payable,01 Mar 2023,2223/12,ST,N,
0000366544,RATTLESDEN PRE-SCHOOL,"1,219.50",Grants & Contrbns,Contributions & Donations,28 Feb 2023,2223/12,SME,N,
0000366580,PRIVATE LANDLORD,875.00,Guaranteed Rent Scheme,Rent Payable,01 Mar 2023,2223/12,ST,N,
0000366932,BENICIA PROPERTIES LTD,575.00,Guaranteed Rent Scheme,Rent Payable,13 Mar 2023,2223/12,SME,N,
0000367313,BENICIA PROPERTIES LTD,650.00,Guaranteed Rent Scheme,Rent Payable,27 Mar 2023,2223/12,SME,N,
0000367437,GRANTHAM INDUSTRIES LTD T/A GBM DEMOLITI,"17,800.37",Paddock House Eye,Annual Bldg Maint Contracts,06 Mar 2023,2223/12,SME,N,
0000367112,1st COMBS SCOUT GROUP,"1,277.28",Grants & Contrbns,Contributions & Donations,17 Mar 2023,2223/12,SME,N,
0000367314,PRIVATE LANDLORD,800.00,Guaranteed Rent Scheme,Rent Payable,27 Mar 2023,2223/12,ST,N,
0000366396,DOT TO DOT TECHNICAL LTD,750.00,Community Safety-General,Training,21 Feb 2023,2223/12,SME,Y,50%
0000367514,WILD HERITAGE SUFFOLK,"1,200.00",Grants & Contrbns,Grants,31 Mar 2023,2223/12,SME,N,
0000366626,NEWSQUEST MEDIA GROUP,"2,966.40",Council Tax Collection,Advertising&mkting (non-staff),28 Feb 2023,2223/12,LGE,N,
0000366723,NEWSQUEST MEDIA GROUP,770.44,Devt Management - Apps,Advertising&mkting (non-staff),02 Mar 2023,2223/12,LGE,N,
0000366889,NEWSQUEST MEDIA GROUP,"1,118.60",Devt Management - Apps,Advertising&mkting (non-staff),09 Mar 2023,2223/12,LGE,N,
0000366983,NEWSQUEST MEDIA GROUP,541.80,Taxi & Private Hire Licensing,Advertising&mkting (non-staff),13 Mar 2023,2223/12,LGE,N,
0000367056,NEWSQUEST MEDIA GROUP,"1,036.20",Devt Management - Apps,Advertising&mkting (non-staff),16 Mar 2023,2223/12,LGE,N,
0000367278,NEWSQUEST MEDIA GROUP,789.00,Devt Management - Apps,Advertising&mkting (non-staff),23 Mar 2023,2223/12,LGE,N,
0000367463,NEWSQUEST MEDIA GROUP,"1,201.00",Devt Management - Apps,Advertising&mkting (non-staff),30 Mar 2023,2223/12,LGE,N,
0000366633,FMG CONSULTING LTD,"3,750.00",SHELF Project,Prof & Consultancy Fees,28 Feb 2023,2223/12,SME,N,
0000366726,THE HALESWORTH CARPET SHOP LTD,308.54,Tenants Forum,"Equipment, Tools & Materials",20 Sep 2022,2223/12,SME,N,
0000367190,BELL DECORATING GROUP LTD,"19,723.12",Planned Maint - Ext Painting,Major Contracts,21 Mar 2023,2223/12,LGE,N,
0000367495,BELL DECORATING GROUP LTD,"5,725.40",Planned Maint - Ext Painting,Major Contracts,30 Mar 2023,2223/12,LGE,N,
0000366930,PRIVATE LANDLORD,800.00,Guaranteed Rent Scheme,Rent Payable,13 Mar 2023,2223/12,ST,N,
0000367119,LEAD GENERA LTD,"2,112.50",Economy & Business,Prof & Consultancy Fees,17 Mar 2023,2223/12,SME,Y,50%
0000366520,COUNTERCULTURE PARTNERSHIP LLP,"2,600.00",Town Centres,Prof & Consultancy Fees,24 Feb 2023,2223/12,SME,N,
0000366759,STEALTH REMOVALS LTD,276.00,Homeless Prevention Fund,Removal Expenses,02 Mar 2023,2223/12,SME,N,
0000366796,A T COOMBES ASSOCIATES LTD,"1,687.50",SHELF Project,BC and Planning Fees,22 Dec 2022,2223/12,SME,N,
0000366610,ALAN CONISBEE & ASSOCIATES LTD,"2,437.50",SHELF Project,Prof & Consultancy Fees,28 Feb 2023,2223/12,SME,N,
0000366827,GCS COMPLIANCE LTD,"1,843.72",Building Services,Prof & Consultancy Fees,28 Feb 2023,2223/12,SME,N,
0000366902,MILLS & REEVE LLP,"1,500.00",Pure Gym & Adjacent Building,Prof & Consultancy Fees,07 Mar 2023,2223/12,LGE,N,
0000367443,R G MAINTENANCE SERVICES LTD,"1,200.00",Neighbourhood Services,Neighbourhood Improvement Proj,30 Mar 2023,2223/12,SME,N,
0000366444,BLOOM PROCUREMENT SERVICES LTD,"61,866.00",SHELF Project,Prof & Consultancy Fees,23 Feb 2023,2223/12,SME,N,
0000366217,NOVA ACOUSTICS LTD,"2,775.00",SHELF Project,BC and Planning Fees,14 Feb 2023,2223/12,SME,N,
0000366515,IA PLAY SOLUTION,"2,798.00",Open Spaces,Grounds & Site Maintenance,24 Feb 2023,2223/12,SME,N,
0000366350,KMC TRANSPORT PLANNING LTD,"1,900.00",SHELF Project,Prof & Consultancy Fees,20 Feb 2023,2223/12,SME,N,
0000367297,KMC TRANSPORT PLANNING LTD,"1,500.00",SHELF Project,Prof & Consultancy Fees,24 Mar 2023,2223/12,SME,N,
0000367297,KMC TRANSPORT PLANNING LTD,"1,330.00",SHELF Project,Prof & Consultancy Fees,24 Mar 2023,2223/12,SME,N,
0000367129,THOMPSONS ESTATE OFFICES LTD,670.00,Guaranteed Rent Scheme,Rent Payable,20 Mar 2023,2223/12,SME,N,
0000366943,PRIVATE LANDLORD,895.00,Guaranteed Rent Scheme,Rent Payable,13 Mar 2023,2223/12,ST,N,
0000366817,DEFENSE.COM CYBER LTD T/A BULLETPROOF,"3,000.00",Economy & Business,Prof & Consultancy Fees,27 Feb 2023,2223/12,SME,Y,50%
0000423089,SEFE ENERGY LIMITED,267.73,Creeting Rd Depot,Gas,17 Mar 2023,2223/12,LGE,Y,50%
0000423089,SEFE ENERGY LIMITED,26.09,Headquarters General,Gas,17 Mar 2023,2223/12,LGE,N,
0000423089,SEFE ENERGY LIMITED,180.03,HRA Strategic Property,Gas,17 Mar 2023,2223/12,LGE,N,
0000423089,SEFE ENERGY LIMITED,"15,204.52",Leisure Contract,Gas,17 Mar 2023,2223/12,LGE,N,
0000423089,SEFE ENERGY LIMITED,12.23,Open Spaces,Gas,17 Mar 2023,2223/12,LGE,N,
0000423089,SEFE ENERGY LIMITED,"6,590.00",Sheltered Accommodation,Gas,17 Mar 2023,2223/12,LGE,N,
0000423089,SEFE ENERGY LIMITED,682.74,Temporary Accommodation,Gas,17 Mar 2023,2223/12,LGE,N,
0000423089,SEFE ENERGY LIMITED,546.98,Tenancy Services,Gas,17 Mar 2023,2223/12,LGE,N,
0000366832,TURVEC SOLUTIONS LTD,"1,455.00",MSM Sustainable Travel,"Equipment, Tools & Materials",14 Feb 2023,2223/12,SME,N,
0000366247,SIGNIX LTD,"32,583.47",Carbon Monoxide Detectors,Major Contracts,03 Feb 2023,2223/12,SME,N,
0000366247,SIGNIX LTD,"32,583.47",Smoke Alarms (Bbgh Standard),Major Contracts,03 Feb 2023,2223/12,SME,N,
0000366248,SIGNIX LTD,"104,123.93",Carbon Monoxide Detectors,Major Contracts,10 Feb 2023,2223/12,SME,N,
0000366248,SIGNIX LTD,"104,123.93",Smoke Alarms (Bbgh Standard),Major Contracts,10 Feb 2023,2223/12,SME,N,
0000366253,SIGNIX LTD,"12,442.31",Carbon Monoxide Detectors,Major Contracts,13 Feb 2023,2223/12,SME,N,
0000366253,SIGNIX LTD,"12,442.31",Smoke Alarms (Bbgh Standard),Major Contracts,13 Feb 2023,2223/12,SME,N,
0000366254,SIGNIX LTD,"6,031.37",Carbon Monoxide Detectors,Major Contracts,13 Feb 2023,2223/12,SME,N,
0000366254,SIGNIX LTD,"6,031.37",Smoke Alarms (Bbgh Standard),Major Contracts,13 Feb 2023,2223/12,SME,N,
0000367332,SIGNIX LTD,"6,995.04",Carbon Monoxide Detectors,Major Contracts,03 Mar 2023,2223/12,SME,N,
0000367332,SIGNIX LTD,"6,995.04",Smoke Alarms (Bbgh Standard),Major Contracts,03 Mar 2023,2223/12,SME,N,
0000367333,SIGNIX LTD,"7,355.50",Carbon Monoxide Detectors,Major Contracts,03 Mar 2023,2223/12,SME,N,
0000367333,SIGNIX LTD,"7,355.50",Smoke Alarms (Bbgh Standard),Major Contracts,03 Mar 2023,2223/12,SME,N,
0000367334,SIGNIX LTD,533.56,Carbon Monoxide Detectors,Major Contracts,03 Mar 2023,2223/12,SME,N,
